Workbook

Sheet MyProgram
A1: 3DV2020 MyProgram Select your time zone and your favorite papers. Then, your personal program will appear on the MyChoice sheet. | I1: Time Zone
I2: UTC | J2: 9
A4: Day 1 : Wednesday 25 November | E4: 1st Round | G4: 2nd Round | I4: My Choice
A6: Opening Remarks
A7: * | C7: Opening Remarks and Paper Awards | E7: =S!B2 -> 2020-11-25T09:00:00 | J7: FALSE | K7: 0
K8: 0
A9: Keynote 1
A10: * | C10: Beyond the Current Application Horizon of 3D Models | E10: =S!B3 -> 2020-11-25T09:30:00 | G10: =S!C3 -> 2020-11-25T22:00:00 | J10: FALSE | K10: 0
C11: Katsushi Ikeuchi (Microsoft, University of Tokyo) | E11: =S!B6 -> 44160.47917 | K11: 0
A13: Oral 1A : Stereo and SfM
A14: 171 | C14: Neural Ray Surfaces for Self-Supervised Learning of Depth and Ego-motion | E14: =S!B4 -> 2020-11-25T10:30:00 | G14: =S!C4 -> 2020-11-25T23:00:00 | J14: FALSE | K14: 0
C15: Igor Vasiljevic; Greg Shakhnarovich; Vitor Guizilini; Adrien Gaidon; Rareș A. Ambruș; Sudeep Pillai; Wolfram Burgard | E15: =S!B10 -> 44160.6875 | G15: =S!C10 -> 44161.125 | K15: 0
A16: =A14+1 -> 172 | C16: Deep NRSfM++: Towards Unsupervised 2D-3D Lifting in the Wild | E16: =E14 -> 2020-11-25T10:30:00 | G16: =G14 -> 2020-11-25T23:00:00 | J16: FALSE | K16: 0
C17: Chaoyang Wang; Chen-Hsuan Lin; Simon Lucey | K17: 0
A18: =A16+1 -> 173 | C18: Nighttime Stereo Depth Estimation using Joint Translation-Stereo Learning: Light Effects and Uninformative Regions | E18: =E16 -> 2020-11-25T10:30:00 | G18: =G16 -> 2020-11-25T23:00:00 | J18: FALSE | K18: 0
C19: Aashish Sharma; Lionel Heng; Loong Fah Cheong; Robby T. Tan | K19: 0
A20: =A18+1 -> 174 | C20: Underwater Scene Recovery Using Wavelength-Dependent Refraction of Light | E20: =E18 -> 2020-11-25T10:30:00 | G20: =G18 -> 2020-11-25T23:00:00 | J20: FALSE | K20: 0
C21: Shin Ishihara; Yuta Asano; Yinqiang Zheng; Imari Sato | K21: 0
A22: =A20+1 -> 175 | C22: Improving Structure from Motion with Reliable Resectioning | E22: =E20 -> 2020-11-25T10:30:00 | G22: =G20 -> 2020-11-25T23:00:00 | J22: FALSE | K22: 0
C23: Rajbir Kataria; Joseph Degol; Derek Hoiem | K23: 0
A24: =A22+1 -> 176 | C24: Reducing Drift in Structure from Motion using Extended Features | E24: =E22 -> 2020-11-25T10:30:00 | G24: =G22 -> 2020-11-25T23:00:00 | J24: FALSE | K24: 0
C25: Aleksander Holynski; David Geraghty; Jan-Michael Frahm; Christopher Sweeney; Richard Szeliski | K25: 0
A27: Poster Spotlight 1A
A28: 111 | C28: Matching-space Stereo Networks for Cross-domain Generalization | E28: =S!B5 -> 2020-11-25T11:00:00 | G28: =S!C5 -> 2020-11-25T23:30:00 | J28: FALSE | K28: 0
C29: Changjiang Cai; Matteo Poggi; Stefano Mattoccia; Philippos Mordohai | E29: =S!#REF! ->  | G29: =S!#REF! ->  | K29: 0
A30: =A28+1 -> 112 | C30: Do End-to-end Stereo Algorithms Under-utilize Information? | E30: =E28 -> 2020-11-25T11:00:00 | G30: =G28 -> 2020-11-25T23:30:00 | J30: FALSE | K30: 0
C31: Changjiang Cai; Philippos Mordohai | K31: 0
A32: =A30+1 -> 113 | C32: Refractive Multi-view Stereo | E32: =E30 -> 2020-11-25T11:00:00 | G32: =G30 -> 2020-11-25T23:30:00 | J32: FALSE | K32: 0
C33: Matthew Cassidy; Jean Mélou; Yvain Queau; Francois Lauze; Jean-Denis Durou | K33: 0
A34: =A32+1 -> 114 | C34: BP-MVSNet: Belief-Propagation-Layers for Multi-View-Stereo | E34: =E32 -> 2020-11-25T11:00:00 | G34: 2020-11-25T23:30:00 | J34: FALSE | K34: 0
C35: Christian Sormann; Patrick Knöbelreiter; Mattia Rossi; Andreas Kuhn; Thomas Pock; Friedrich Fraundorfer | K35: 0
A36: =A34+1 -> 115 | C36: DeepC-MVS: Deep Confidence Prediction for Multi-View Stereo Reconstruction | E36: =E34 -> 2020-11-25T11:00:00 | G36: 2020-11-25T23:30:00 | J36: FALSE | K36: 0
C37: Andreas Kuhn; Christian Sormann; Mattia Rossi; Oliver Erdler; Friedrich Fraundorfer | K37: 0
A38: 121 | C38: RocNet: Recursive Octree Network for Efficient 3D Deep Representation | E38: =E36 -> 2020-11-25T11:00:00 | G38: 2020-11-25T23:30:00 | J38: FALSE | K38: 0
C39: Juncheng Liu; Brendan Mccane; Steven Mills | K39: 0
A40: =A38+1 -> 122 | C40: Semantic Implicit Neural Scene Representations with Semi-supervised Training | E40: =E38 -> 2020-11-25T11:00:00 | G40: 2020-11-25T23:30:00 | J40: FALSE | K40: 0
C41: Amit Pal Kohli; Vincent Sitzmann; Gordon Wetzstein | K41: 0
A42: =A40+1 -> 123 | C42: Learning to Infer Semantic Parameters for 3D Shape Editing | E42: =E40 -> 2020-11-25T11:00:00 | G42: 2020-11-25T23:30:00 | J42: FALSE | K42: 0
C43: Fangyin Wei; Elena Sizikova; Avneesh Sud; Thomas Funkhouser; Szymon Rusinkiewicz | K43: 0
A44: =A42+1 -> 124 | C44: Recalibration of Neural Networks for Point Cloud Analysis | E44: =E42 -> 2020-11-25T11:00:00 | G44: 2020-11-25T23:30:00 | J44: FALSE | K44: 0
C45: Ignacio Sarasua; Sebastian Pölsterl; Christian Wachinger | K45: 0
A46: =A44+1 -> 125 | C46: Learning Implicit Surface Light Fields | E46: =E44 -> 2020-11-25T11:00:00 | G46: 2020-11-25T23:30:00 | J46: FALSE | K46: 0
C47: Michael Oechsle; Michael Niemeyer; Christian Reiser; Lars M. Mescheder; Thilo Strauss; Andreas Geiger | K47: 0
A48: 131 | C48: KeystoneDepth: History in 3D | E48: =E46 -> 2020-11-25T11:00:00 | G48: 2020-11-25T23:30:00 | J48: FALSE | K48: 0
C49: Xuan Luo; Yanmeng Kong; Jason Lawrence; Ricardo Martin-Brualla; Steve Seitz | K49: 0
A50: =A48+1 -> 132 | C50: Learning Wasserstein Isometric Embedding for Point Clouds | E50: =E48 -> 2020-11-25T11:00:00 | G50: 2020-11-25T23:30:00 | J50: FALSE | K50: 0
C51: Keisuke Kawano; Satoshi Koide; Takuro Kutsuna | K51: 0
A52: =A50+1 -> 133 | C52: Benchmarking Image Retrieval for Visual Localization | E52: =E50 -> 2020-11-25T11:00:00 | G52: 2020-11-25T23:30:00 | J52: FALSE | K52: 0
C53: Noe Pion; Martin Humenberger; Gabriela Csurka; Yohann Cabon; Torsten Sattler | K53: 0
A54: =A52+1 -> 134 | C54: Class-unbalanced domain adaptation for object detection via dynamic weighting mechanism | E54: =E52 -> 2020-11-25T11:00:00 | G54: 2020-11-25T23:30:00 | J54: FALSE | K54: 0
C55: Xing Wei; Shaofan Liu; Changguang Wang; Yaoci Xiang; Xuanyuan Qiao; Zhangling Duan; Chong Zhao; Yang Lu | K55: 0
A56: =A54+1 -> 135 | C56: Rotation-Invariant Point Convolution with Multiple Equivariant Alignments. | E56: =E54 -> 2020-11-25T11:00:00 | G56: 2020-11-25T23:30:00 | J56: FALSE | K56: 0
C57: Hugues Thomas | K57: 0
A59: Oral 1B : 3D Modelling
A60: 181 | C60: COALESCE: Component Assembly by Learning to Synthesize Connections | E60: =S!B7 -> 2020-11-25T14:00:00 | G60: =S!C7 -> 2020-11-26T00:30:00 | J60: FALSE | K60: 0
C61: Kangxue Yin; Zhiqin Chen; Siddhartha Chaudhuri; Matthew Fisher; Vladimir Kim; Hao Zhang | E61: =S!#REF! ->  | G61: =S!#REF! ->  | K61: 0
A62: =A60+1 -> 182 | C62: Improved Modeling of 3D Shapes with Multi-view Depth Maps | E62: =E60 -> 2020-11-25T14:00:00 | G62: 2020-11-26T00:30:00 | J62: FALSE | K62: 0
C63: Kamal Gupta; Susmija Jabbireddy; Ketul Shah; Abhinav Shrivastava; Matthias Zwicker | K63: 0
A64: =A62+1 -> 183 | C64: Towards 3D VR-Sketch to 3D Shape Retrieval | E64: =E62 -> 2020-11-25T14:00:00 | G64: 2020-11-26T00:30:00 | J64: FALSE | K64: 0
C65: Ling Luo; Yulia Gryaditskaya; Yongxin Yang; Tao Xiang; Yi-Zhe Song | K65: 0
A66: =A64+1 -> 184 | C66: Fast Simultaneous Gravitational Alignment of Multiple Point Sets | E66: =E64 -> 2020-11-25T14:00:00 | G66: 2020-11-26T00:30:00 | J66: FALSE | K66: 0
C67: Vladislav Golyanik; Soshi Shimada; Christian Theobalt | K67: 0
A68: =A66+1 -> 185 | C68: KAPLAN: A 3D Point Descriptor for Shape Completion | E68: =E66 -> 2020-11-25T14:00:00 | G68: 2020-11-26T00:30:00 | J68: FALSE | K68: 0
C69: Audrey Richard; Ian Cherabier; Martin R. Oswald; Marc Pollefeys; Konrad Schindler | K69: 0
A70: =A68+1 -> 186 | C70: LMSCNet: Lightweight Multiscale 3D Semantic Completion | E70: =E68 -> 2020-11-25T14:00:00 | G70: 2020-11-26T00:30:00 | J70: FALSE | K70: 0
C71: Luis Roldao; Raoul de Charette; Anne Verroust-Blondet | K71: 0
A73: Poster Spotlight 1B
A74: 141 | C74: DynOcc: Learning Single-View Depth from Dynamic Occlusion Cues | E74: =S!B8 -> 2020-11-25T14:30:00 | G74: =S!C8 -> 2020-11-26T01:00:00 | J74: FALSE | K74: 0
C75: Yifan Wang; Linjie Luo; Xiaohui Shen; Xing Mei | E75: =S!B42 -> 0 | G75: =S!C42 -> 0 | K75: 0
A76: =A74+1 -> 142 | C76: Deep Depth Estimation on 360-degree Images with a Double Quaternion Loss | E76: =E74 -> 2020-11-25T14:30:00 | G76: 2020-11-26T01:00:00 | J76: FALSE | K76: 0
C77: Yushan Feng; Wangjue Yao; Zheyuan Liu; Amitabh Varshney | K77: 0
A78: =A76+1 -> 143 | C78: Learning Monocular Dense Depth from Events | E78: =E76 -> 2020-11-25T14:30:00 | G78: 2020-11-26T01:00:00 | J78: FALSE | K78: 0
C79: Javier Hidalgo-Carrio; Daniel Gehrig; Davide Scaramuzza | K79: 0
A80: =A78+1 -> 144 | C80: Deep Sketch-Based Modelling: Tips and Tricks | E80: =E78 -> 2020-11-25T14:30:00 | G80: 2020-11-26T01:00:00 | J80: FALSE | K80: 0
C81: Yue Zhong; Yulia Gryaditskaya; Honggang Zhang; Yi-Zhe Song | K81: 0
A82: =A80+1 -> 145 | C82: VIPNet: a fast and accurate single-view Volumetric reconstruction by learning sparse Implicit Point guidance | E82: =E80 -> 2020-11-25T14:30:00 | G82: 2020-11-26T01:00:00 | J82: FALSE | K82: 0
C83: Dong Du; Zhiyi Zhang; Xiaoguang Han; Shuguang Cui; Ligang Liu | K83: 0
A84: 151 | C84: Registration Loss Learning for Deep Probabilistic Point Set Registration | E84: =E82 -> 2020-11-25T14:30:00 | G84: 2020-11-26T01:00:00 | J84: FALSE | K84: 0
C85: Felix FJL Järemo Lawin; Per-Erik Forssén | K85: 0
A86: =A84+1 -> 152 | C86: Unsupervised Dense Shape Correspondence using Heat Kernels | E86: =E84 -> 2020-11-25T14:30:00 | G86: 2020-11-26T01:00:00 | J86: FALSE | K86: 0
C87: Mehmet Aygün; Zorah Laehner; Daniel Cremers | K87: 0
A88: =A86+1 -> 153 | C88: Adiabatic Quantum Graph Matching with Permutation Matrix Constraints | E88: =E86 -> 2020-11-25T14:30:00 | G88: 2020-11-26T01:00:00 | J88: FALSE | K88: 0
C89: Marcel Seelbach Benkner; Vladislav Golyanik; Christian Theobalt; Michael Moeller | K89: 0
A90: =A88+1 -> 154 | C90: Better Patch Stitching for Parametric Surface Reconstruction | E90: =E88 -> 2020-11-25T14:30:00 | G90: 2020-11-26T01:00:00 | J90: FALSE | K90: 0
C91: Zhantao Deng; Jan Bednarik; Mathieu Salzmann; Pascal Fua | K91: 0
A92: =A90+1 -> 155 | C92: Correspondence Matrices are Underrated | E92: =E90 -> 2020-11-25T14:30:00 | G92: 2020-11-26T01:00:00 | J92: FALSE | K92: 0
C93: Tejas Zodage; Rahul U. Chakwate; Vinit Sarode; Arun Srivatsan Rangaprasad; Howie Choset | K93: 0
A94: 161 | C94: Motion Annotation Programs: A Scalable Approach to Annotating Kinematic Articulations in Large 3D Shape Collections | E94: =E92 -> 2020-11-25T14:30:00 | G94: 2020-11-26T01:00:00 | J94: FALSE | K94: 0
C95: Xianghao Xu; David Charatan; Sonia Raychaudhuri; Hanxiao Jiang; Mae Heitmann; Vladimir Kim; Siddhartha Chaudhuri; Manolis Savva; Angel X Chang; Daniel Ritchie | K95: 0
A96: =A94+1 -> 162 | C96: A Transformer-based Network for Dynamic Hand Gesture Recognition | E96: =E94 -> 2020-11-25T14:30:00 | G96: 2020-11-26T01:00:00 | J96: FALSE | K96: 0
C97: Andrea D'Eusanio; Alessandro Simoni; Stefano Pini; Guido Borghi; Roberto Vezzani; Rita Cucchiara | K97: 0
A98: =A96+1 -> 163 | C98: Depthwise Separable Temporal Convolutional Network for Action Segmentation | E98: =E96 -> 2020-11-25T14:30:00 | G98: 2020-11-26T01:00:00 | J98: FALSE | K98: 0
C99: Basavaraj Hampiholi; Christian Jarvers; Wolfgang Mader; Heiko Neumann | K99: 0
A100: =A98+1 -> 164 | C100: PLACE: Proximity Learning of Articulation and Contact in 3D Environments | E100: =E98 -> 2020-11-25T14:30:00 | G100: =G98 -> 2020-11-26T01:00:00 | J100: FALSE | K100: 0
C101: Siwei Zhang; Yan Zhang; Qianli Ma; Michael J. Black; Siyu Tang | K101: 0
A103: Poster Session 1
A104: * | C104: Live poster presentation at SpatialChat rooms | E104: =S!B9 -> 2020-11-25T15:00:00 | G104: =S!C9 -> 2020-11-26T01:30:00 | J104: FALSE | K104: 0
C105: (papers in Poster Spotlight 1A & 1B, Oral 1A & 1B and demos) | E105: =S!B74 -> 0 | G105: =S!C74 -> 0 | K105: 0
A108: Day 2 : Thursday 26 November | E108: 1st Round | G108: 2nd Round | I108: My Choice
A110: Keynote 2
A111: * | C111: Recent Progress in Solving Minimal Problems in 3D Reconstruction | E111: =S!B20 -> 2020-11-26T16:40:00 | G111: =S!C12 -> 2020-11-26T22:00:00 | J111: FALSE | K111: 0
C112: Tomas Pajdla (Czech Technical University in Prague) | E112: =S!B104 -> 0 | G112: =S!C103 -> 0 | K112: 0
A114: Oral 2A : Shape and Motion
A115: 271 | C115: Instant recovery of shape from spectrum via latent space connections | E115: =S!B13 -> 2020-11-26T10:30:00 | G115: =S!C13 -> 2020-11-26T23:00:00 | J115: FALSE | K115: 0
C116: Riccardo Marin; Arianna Rampini; Umberto Castellani; Emanuele Rodola; Maks Ovsjanikov; Simone Melzi | E116: =S!B107 -> 0 | G116: =S!C107 -> 0 | K116: 0
A117: =A115+1 -> 272 | C117: Differential Photometric Consistency | E117: =E115 -> 2020-11-26T10:30:00 | G117: 2020-11-26T23:00:00 | J117: FALSE | K117: 0
C118: Hongyi Fan; Benjamin Kunsberg; Benjamin Kimia | K118: 0
A119: =A117+1 -> 273 | C119: Distributed Photometric Bundle Adjustment | E119: =E117 -> 2020-11-26T10:30:00 | G119: 2020-11-26T23:00:00 | J119: FALSE | K119: 0
C120: Nikolaus Demmel; Maolin Gao; Emanuel Laude; Tao Wu; Daniel Cremers | K120: 0
A121: =A119+1 -> 274 | C121: Self-Supervised Learning of Non-Rigid Residual Flow and Ego-Motion | E121: =E119 -> 2020-11-26T10:30:00 | G121: 2020-11-26T23:00:00 | J121: FALSE | K121: 0
C122: Ivan Tishchenko; Sandro Lombardi; Martin R. Oswald; Marc Pollefeys | K122: 0
A123: =A121+1 -> 275 | C123: A Divide et Impera Approach for 3D Shape Reconstruction from Multiple Views | E123: =E121 -> 2020-11-26T10:30:00 | G123: 2020-11-26T23:00:00 | J123: FALSE | K123: 0
C124: Riccardo Spezialetti; David Joseph New Tan; Alessio Tonioni; Keisuke Tateno; Federico Tombari | K124: 0
A125: =A123+1 -> 276 | C125: Time Shifted IMU Preintegration for Temporal Calibration in Incremental Visual-Inertial Initialization | E125: =E123 -> 2020-11-26T10:30:00 | G125: 2020-11-26T23:00:00 | J125: FALSE | K125: 0
C126: Bruno Petit; Richard Guillemard; Vincent Gay-Bellile | K126: 0
A128: Poster Spotlight 2A
A129: 211 | C129: RidgeSfM: Structure from Motion via Robust Pairwise Matching Under Depth Uncertainty | E129: =S!B14 -> 2020-11-26T11:00:00 | G129: =S!C14 -> 2020-11-26T23:30:00 | J129: FALSE | K129: 0
C130: Ben Graham; David Novotny | E130: =S!B121 -> 0 | G130: =S!C121 -> 0 | K130: 0
A131: =A129+1 -> 212 | C131: Visualizing Spectral Bundle Adjustment Uncertainty | E131: =E129 -> 2020-11-26T11:00:00 | G131: 2020-11-26T23:30:00 | J131: FALSE | K131: 0
C132: Kyle Wilson; Scott Wehrwein | K132: 0
A133: =A131+1 -> 213 | C133: A Linear Approach to Absolute Pose Estimation for Light Fields | E133: =E131 -> 2020-11-26T11:00:00 | G133: 2020-11-26T23:30:00 | J133: FALSE | K133: 0
C134: Sotiris Nousias; Manolis Lourakis; Christos Bergeles; Sebastien Ourselin; Pearse A Keane | K134: 0
A135: =A133+1 -> 214 | C135: Joint Unsupervised Learning of Optical Flow and Egomotion with Bi-Level Optimization | E135: =E133 -> 2020-11-26T11:00:00 | G135: 2020-11-26T23:30:00 | J135: FALSE | K135: 0
C136: Shihao Jiang; Dylan Campbell; Miaomiao Liu; Stephen Gould; Richard Hartley | K136: 0
A137: =A135+1 -> 215 | C137: Intrinsic Dynamic Shape Prior for Dense Non-Rigid Structure from Motion | E137: =E135 -> 2020-11-26T11:00:00 | G137: 2020-11-26T23:30:00 | J137: FALSE | K137: 0
C138: Vladislav Golyanik; Andre Jonas; Didier Stricker; Christian Theobalt | K138: 0
A139: 221 | C139: GAMesh: Guided and Augmented Meshing for Deep Point Networks | E139: =E137 -> 2020-11-26T11:00:00 | G139: 2020-11-26T23:30:00 | J139: FALSE | K139: 0
C140: Nitin Agarwal; Gopi Meenakshisundaram | K140: 0
A141: =A139+1 -> 222 | C141: A Progressive Conditional Generative Adversarial Network for Generating Dense and Colored 3D Point Clouds | E141: =E139 -> 2020-11-26T11:00:00 | G141: 2020-11-26T23:30:00 | J141: FALSE | K141: 0
C142: Mohammad Samiul Arshad; William Beksi | K142: 0
A143: =A141+1 -> 223 | C143: Depth Completion using a View-constrained Deep Prior | E143: =E141 -> 2020-11-26T11:00:00 | G143: 2020-11-26T23:30:00 | J143: FALSE | K143: 0
C144: Pallabi Ghosh; Vibhav Vineet; Larry Davis; Abhinav Shrivastava; Sudipta Sinha; Neel Joshi | K144: 0
A145: =A143+1 -> 224 | C145: Compression and Completion of Animated Point Clouds using Topological Properties of the Manifold | E145: =E143 -> 2020-11-26T11:00:00 | G145: 2020-11-26T23:30:00 | J145: FALSE | K145: 0
C146: Linfei Pan; Lubor Ladicky; Marc Pollefeys | K146: 0
A147: =A145+1 -> 225 | C147: Self-supervised Depth Denoising Using Lower- and Higher-quality RGB-D sensors | E147: =E145 -> 2020-11-26T11:00:00 | G147: 2020-11-26T23:30:00 | J147: FALSE | K147: 0
C148: Akhmedkhan Shabanov; Ilya Krotov; Nikolay N. Chinaev; Vsevolod Poletaev; Sergei Viktorovic Kozlukov; Igor Pasechnik; Bulat Yakupov; Artsiom O. Sanakoyeu; Vadim Lebedev; Dmitry Ulyanov | K148: 0
A149: 231 | C149: PanoNet3D: Combining Semantic and Geometric Understanding for LiDAR Point Cloud Detection | E149: =E147 -> 2020-11-26T11:00:00 | G149: 2020-11-26T23:30:00 | J149: FALSE | K149: 0
C150: Xia Chen; Jianren Wang; David Held; Martial Hebert | K150: 0
A151: =A149+1 -> 232 | C151: Dense Point Diffusion for 3D Object Detection | E151: =E149 -> 2020-11-26T11:00:00 | G151: 2020-11-26T23:30:00 | J151: FALSE | K151: 0
C152: Xu Liu; Jiayan Cao; Qianqian Bi; Yichen Wei; Jian Wang; Boxin Shi | K152: 0
A153: =A151+1 -> 233 | C153: SF-UDA-3D: Source-Free Unsupervised Domain Adaptation for LiDAR-based 3D Object Detection | E153: =E151 -> 2020-11-26T11:00:00 | G153: 2020-11-26T23:30:00 | J153: FALSE | K153: 0
C154: Cristiano Saltori; Stéphane Lathuilière; Elisa Ricci; Nicu Sebe; Fabio Galasso | K154: 0
A155: =A153+1 -> 234 | C155: LiDAR-based Recurrent 3D Semantic Segmentation with Temporal Memory Alignment | E155: =E153 -> 2020-11-26T11:00:00 | G155: 2020-11-26T23:30:00 | J155: FALSE | K155: 0
C156: Fabian Duerr; Mario Pfaller; Hendrik Weigel; Jürgen Beyerer | K156: 0
A157: =A155+1 -> 235 | C157: Rethinking PointNet Embedding for Faster and Compact Model | E157: =E155 -> 2020-11-26T11:00:00 | G157: 2020-11-26T23:30:00 | J157: FALSE | K157: 0
C158: Teppei Suzuki; Keisuke Ozawa; Yusuke Sekikawa | K158: 0
A160: Oral 2B : Deep Learning for 3D Data
A161: 281 | C161: RANP: Resource Aware Neuron Pruning at Initialization for 3D CNNs | E161: =S!B16 -> 2020-11-26T14:00:00 | G161: =S!C16 -> 2020-11-27T00:30:00 | J161: FALSE | K161: 0
C162: Zhiwei Xu; Thalaiyasingam Ajanthan; Vibhav Vineet; Richard Hartley | E162: =S!B153 -> 0 | G162: =S!C153 -> 0 | K162: 0
A163: =A161+1 -> 282 | C163: Torch-Points3D: A Modular Multi-Task Framework for Reproducible Deep Learning on 3D Point Clouds | E163: =E161 -> 2020-11-26T14:00:00 | G163: 2020-11-27T00:30:00 | J163: FALSE | K163: 0
C164: Nicolas Chaulet; Thomas Chaton; Sofiane Horache; loic landrieu | K164: 0
A165: =A163+1 -> 283 | C165: Learning Rotation-Invariant Representations of Point Clouds Using Aligned Edge Convolutional Neural Networks | E165: =E163 -> 2020-11-26T14:00:00 | G165: 2020-11-27T00:30:00 | J165: FALSE | K165: 0
C166: Junming Zhang; Ming-Yuan Yu; Ram Vasudevan; Matthew Johnson Roberson | K166: 0
A167: =A165+1 -> 284 | C167: Global Context Aware Convolutions for 3D Point Cloud Understanding | E167: =E165 -> 2020-11-26T14:00:00 | G167: 2020-11-27T00:30:00 | J167: FALSE | K167: 0
C168: Zhiyuan Zhang; Binh-Son Hua; Wei Chen; Yibin Tian; Sai-Kit Yeung | K168: 0
A169: =A167+1 -> 285 | C169: Screen-space Regularization on Differentiable Rasterization | E169: =E167 -> 2020-11-26T14:00:00 | G169: 2020-11-27T00:30:00 | J169: FALSE | K169: 0
C170: Kunyao Chen; Cheolhong An; Truong Nguyen | K170: 0
A171: =A169+1 -> 286 | C171: Cycle-Consistent Generative Rendering for 2D-3D Modality Translation | E171: =E169 -> 2020-11-26T14:00:00 | G171: 2020-11-27T00:30:00 | J171: FALSE | K171: 0
C172: Tristan T. Aumentado-Armstrong; Alex Levinshtein; Stavros Tsogkas; Konstantinos Derpanis; Allan D. Jepson | K172: 0
A174: Poster Spotlight 2B
A175: 241 | C175: SCFusion: Real-time Incremental Scene Reconstruction with Semantic Completion | E175: =S!B17 -> 2020-11-26T14:30:00 | G175: =S!C17 -> 2020-11-27T01:00:00 | J175: FALSE | K175: 0
C176: Shuncheng Wu; Federico Tombari; Keisuke Tateno; Nassir Navab | E176: =S!B167 -> 0 | G176: =S!C167 -> 0 | K176: 0
A177: =A175+1 -> 242 | C177: Smart Time-Multiplexing of Quads Solves the Multicamera Interference Problem | E177: =E175 -> 2020-11-26T14:30:00 | G177: 2020-11-27T01:00:00 | J177: FALSE | K177: 0
C178: Tomislav Pribanic; Tomislav Petković; David Bojanić; Kristijan Bartol; Mohit Gupta | K178: 0
A179: =A177+1 -> 243 | C179: Restoration of Motion Blur in Time-of-Flight Depth Image using Data Alignment | E179: =E177 -> 2020-11-26T14:30:00 | G179: 2020-11-27T01:00:00 | J179: FALSE | K179: 0
C180: Zhuo Chen; Rendong Ying; Peilin Liu; Fei Wen; Jun Wang | K180: 0
A181: =A179+1 -> 244 | C181: Temporal LiDAR Frame Prediction for Autonomous Driving | E181: =E179 -> 2020-11-26T14:30:00 | G181: 2020-11-27T01:00:00 | J181: FALSE | K181: 0
C182: David Deng; Avideh Zakhor | K182: 0
A183: =A181+1 -> 245 | C183: Deep LiDAR localization using optical flow sensor-map correspondences | E183: =E181 -> 2020-11-26T14:30:00 | G183: 2020-11-27T01:00:00 | J183: FALSE | K183: 0
C184: Anders Karlsson; Lennart Svensson; Torsten Sattler | K184: 0
A185: 251 | C185: Learning Distribution Independent Latent Representation for 3D Face Disentanglement | E185: =E183 -> 2020-11-26T14:30:00 | G185: 2020-11-27T01:00:00 | J185: FALSE | K185: 0
C186: Zihui Zhang; Cuican Yu; Huibin Li; Jian Sun; Liu Feng | K186: 0
A187: =A185+1 -> 252 | C187: Learning 3D Faces from Photo-Realistic Facial Synthesis | E187: =E185 -> 2020-11-26T14:30:00 | G187: 2020-11-27T01:00:00 | J187: FALSE | K187: 0
C188: Ruizhe Wang; Chih-Fan Chen; Hao Peng; Xudong Liu; Xin Li | K188: 0
A189: =A187+1 -> 253 | C189: GIF: Generative Interpretable Faces | E189: =E187 -> 2020-11-26T14:30:00 | G189: 2020-11-27T01:00:00 | J189: FALSE | K189: 0
C190: Partha Ghosh; Pravir Singh Gupta; Roy Uziel; Anurag Ranjan; Michael J. Black; Timo Bolkart | K190: 0
A191: =A189+1 -> 254 | C191: PeeledHuman: Robust shape representation for textured 3D human body reconstruction | E191: =E189 -> 2020-11-26T14:30:00 | G191: 2020-11-27T01:00:00 | J191: FALSE | K191: 0
C192: Sai Sagar; Rohan Chacko; Avinash Sharma; P. J. Narayanan | K192: 0
A193: =A191+1 -> 255 | C193: Do We Need Depth in State-Of-The-Art Face Authentication? | E193: =E191 -> 2020-11-26T14:30:00 | G193: 2020-11-27T01:00:00 | J193: FALSE | K193: 0
C194: Amir Livne; Alex Bronstein; Ron Kimmel; Ziv Aviv; Shahaf Grofit | K194: 0
A195: 261 | C195: Error Bounds of Projection Models in Weakly Supervised 3D Human Pose Estimation | E195: =E193 -> 2020-11-26T14:30:00 | G195: 2020-11-27T01:00:00 | J195: FALSE | K195: 0
C196: Nikolas Klug; Moritz Einfalt; Stephan Brehm; Rainer Lienhart | K196: 0
A197: =A195+1 -> 262 | C197: LCD – Line Clustering and Description for Place Recognition | E197: =E195 -> 2020-11-26T14:30:00 | G197: 2020-11-27T01:00:00 | J197: FALSE | K197: 0
C198: Felix K. J. Taubner; Florian Tschopp; Tonci Novkovic; Roland Siegwart; Fadri Furrer | K198: 0
A199: =A197+1 -> 263 | C199: Convolutional Autoencoders for Human Motion Infilling | E199: =E197 -> 2020-11-26T14:30:00 | G199: 2020-11-27T01:00:00 | J199: FALSE | K199: 0
C200: Manuel Kaufmann; Emre Aksan; Jie Song; Fabrizio Pece; Remo Ziegler; Otmar Hilliges | K200: 0
A201: =A199+1 -> 264 | C201: 3D Deep Learning for Biological Function Prediction from Physical Fields | E201: =E199 -> 2020-11-26T14:30:00 | G201: 2020-11-27T01:00:00 | J201: FALSE | K201: 0
C202: Vladimir Golkov; Marcin J. Skwark; Atanas Mirchev; Georgi Dikov; Alexander R. Geanes; Jeffrey Mendenhall; Jens Meiler; Daniel Cremers | K202: 0
A204: Poster Session 2
A205: * | C205: Live poster presentation at SpatialChat rooms | E205: =S!B18 -> 2020-11-26T15:00:00 | G205: =S!C18 -> 2020-11-27T01:30:00 | J205: FALSE | K205: 0
C206: (papers in Poster Spotlight 2A & 2B, Oral 2A & 2B and demos) | E206: =S!B197 -> 0 | G206: =S!C197 -> 0 | K206: 0
A209: Day 3 : Friday 27 November | E209: 1st Round | G209: 2nd Round | I209: My Choice
A211: Keynote 3
A212: * | C212: Photorealistic Telepresence | E212: =S!B23 -> 2020-11-27T09:30:00 | G212: =S!C23 -> 2020-11-27T22:00:00 | J212: FALSE | K212: 0
C213: Yaser Sheikh (CMU, Facebook Reality Lab) | E213: =S!B208 -> 0 | G213: =S!C208 -> 0 | K213: 0
A215: Oral 3A : 3D Analysis
A216: 371 | C216: Graphite: GRAPH-Induced feaTure Extraction for Point Cloud Registration | E216: =S!B24 -> 2020-11-27T10:30:00 | G216: =S!C24 -> 2020-11-27T23:00:00 | J216: FALSE | K216: 0
C217: Mahdi Saleh; Shervin Dehghani; Benjamin Busam; Nassir Navab; Federico Tombari | E217: =S!B212 -> 0 | G217: =S!C212 -> 0 | K217: 0
A218: =A216+1 -> 372 | C218: Simulated Annealing for 3D Shape Correspondence | E218: =E216 -> 2020-11-27T10:30:00 | G218: 2020-11-27T23:00:00 | J218: FALSE | K218: 0
C219: Benjamin J. Holzschuh; Zorah Laehner; Daniel Cremers | K219: 0
... 94 more rows

Sheet MyChoice
A1: 3DV2020 MyChoice
E4: 1st Round | G4: 2nd Round
A5: =IFERROR(INDEX(MyProgram!$A$7:$G$326,SMALL(IF(MyProgram!$K$7:$K$326,ROW($A$1:$A$320)),ROW($A1)),COLUMN(A$1)),"") ->  | B5: =IFERROR(INDEX(MyProgram!$A$7:$G$326,SMALL(IF(MyProgram!$K$7:$K$326,ROW($A$1:$A$320)),ROW($A1)),COLUMN(B$1)),"") ->  | C5: =IFERROR(INDEX(MyProgram!$A$7:$G$326,SMALL(IF(MyProgram!$K$7:$K$326,ROW($A$1:$A$320)),ROW($A1)),COLUMN(C$1)),"") ->  | D5: =IFERROR(INDEX(MyProgram!$A$7:$G$326,SMALL(IF(MyProgram!$K$7:$K$326,ROW($A$1:$A$320)),ROW($A1)),COLUMN(D$1)),"") ->  | E5: =IFERROR(INDEX(MyProgram!$A$7:$G$326,SMALL(IF(MyProgram!$K$7:$K$326,ROW($A$1:$A$320)),ROW($A1)),COLUMN(E$1)),"") ->  | F5: =IFERROR(INDEX(MyProgram!$A$7:$G$326,SMALL(IF(MyProgram!$K$7:$K$326,ROW($A$1:$A$320)),ROW($A1)),COLUMN(F$1)),"") ->  | G5: =IFERROR(INDEX(MyProgram!$A$7:$G$326,SMALL(IF(MyProgram!$K$7:$K$326,ROW($A$1:$A$320)),ROW($A1)),COLUMN(G$1)),"") -> 
B6: =IFERROR(INDEX(MyProgram!$A$7:$G$326,SMALL(IF(MyProgram!$K$7:$K$326,ROW($A$1:$A$320)),ROW($A2)),COLUMN(B$1)),"") ->  | C6: =IFERROR(INDEX(MyProgram!$A$7:$G$326,SMALL(IF(MyProgram!$K$7:$K$326,ROW($A$1:$A$320)),ROW($A2)),COLUMN(C$1)),"") ->  | D6: =IFERROR(INDEX(MyProgram!$A$7:$G$326,SMALL(IF(MyProgram!$K$7:$K$326,ROW($A$1:$A$320)),ROW($A2)),COLUMN(D$1)),"") ->  | F6: =IFERROR(INDEX(MyProgram!$A$7:$G$326,SMALL(IF(MyProgram!$K$7:$K$326,ROW($A$1:$A$320)),ROW($A2)),COLUMN(F$1)),"") -> 
A7: =IFERROR(INDEX(MyProgram!$A$7:$G$326,SMALL(IF(MyProgram!$K$7:$K$326,ROW($A$1:$A$320)),ROW($A3)),COLUMN(A$1)),"") ->  | B7: =IFERROR(INDEX(MyProgram!$A$7:$G$326,SMALL(IF(MyProgram!$K$7:$K$326,ROW($A$1:$A$320)),ROW($A3)),COLUMN(B$1)),"") ->  | C7: =IFERROR(INDEX(MyProgram!$A$7:$G$326,SMALL(IF(MyProgram!$K$7:$K$326,ROW($A$1:$A$320)),ROW($A3)),COLUMN(C$1)),"") ->  | D7: =IFERROR(INDEX(MyProgram!$A$7:$G$326,SMALL(IF(MyProgram!$K$7:$K$326,ROW($A$1:$A$320)),ROW($A3)),COLUMN(D$1)),"") ->  | E7: =IFERROR(INDEX(MyProgram!$A$7:$G$326,SMALL(IF(MyProgram!$K$7:$K$326,ROW($A$1:$A$320)),ROW($A3)),COLUMN(E$1)),"") ->  | F7: =IFERROR(INDEX(MyProgram!$A$7:$G$326,SMALL(IF(MyProgram!$K$7:$K$326,ROW($A$1:$A$320)),ROW($A3)),COLUMN(F$1)),"") ->  | G7: =IFERROR(INDEX(MyProgram!$A$7:$G$326,SMALL(IF(MyProgram!$K$7:$K$326,ROW($A$1:$A$320)),ROW($A3)),COLUMN(G$1)),"") -> 
B8: =IFERROR(INDEX(MyProgram!$A$7:$G$326,SMALL(IF(MyProgram!$K$7:$K$326,ROW($A$1:$A$320)),ROW($A4)),COLUMN(B$1)),"") ->  | C8: =IFERROR(INDEX(MyProgram!$A$7:$G$326,SMALL(IF(MyProgram!$K$7:$K$326,ROW($A$1:$A$320)),ROW($A4)),COLUMN(C$1)),"") ->  | D8: =IFERROR(INDEX(MyProgram!$A$7:$G$326,SMALL(IF(MyProgram!$K$7:$K$326,ROW($A$1:$A$320)),ROW($A4)),COLUMN(D$1)),"") ->  | F8: =IFERROR(INDEX(MyProgram!$A$7:$G$326,SMALL(IF(MyProgram!$K$7:$K$326,ROW($A$1:$A$320)),ROW($A4)),COLUMN(F$1)),"") -> 
A9: =IFERROR(INDEX(MyProgram!$A$7:$G$326,SMALL(IF(MyProgram!$K$7:$K$326,ROW($A$1:$A$320)),ROW($A5)),COLUMN(A$1)),"") ->  | B9: =IFERROR(INDEX(MyProgram!$A$7:$G$326,SMALL(IF(MyProgram!$K$7:$K$326,ROW($A$1:$A$320)),ROW($A5)),COLUMN(B$1)),"") ->  | C9: =IFERROR(INDEX(MyProgram!$A$7:$G$326,SMALL(IF(MyProgram!$K$7:$K$326,ROW($A$1:$A$320)),ROW($A5)),COLUMN(C$1)),"") ->  | D9: =IFERROR(INDEX(MyProgram!$A$7:$G$326,SMALL(IF(MyProgram!$K$7:$K$326,ROW($A$1:$A$320)),ROW($A5)),COLUMN(D$1)),"") ->  | E9: =IFERROR(INDEX(MyProgram!$A$7:$G$326,SMALL(IF(MyProgram!$K$7:$K$326,ROW($A$1:$A$320)),ROW($A5)),COLUMN(E$1)),"") ->  | F9: =IFERROR(INDEX(MyProgram!$A$7:$G$326,SMALL(IF(MyProgram!$K$7:$K$326,ROW($A$1:$A$320)),ROW($A5)),COLUMN(F$1)),"") ->  | G9: =IFERROR(INDEX(MyProgram!$A$7:$G$326,SMALL(IF(MyProgram!$K$7:$K$326,ROW($A$1:$A$320)),ROW($A5)),COLUMN(G$1)),"") -> 
B10: =IFERROR(INDEX(MyProgram!$A$7:$G$326,SMALL(IF(MyProgram!$K$7:$K$326,ROW($A$1:$A$320)),ROW($A6)),COLUMN(B$1)),"") ->  | C10: =IFERROR(INDEX(MyProgram!$A$7:$G$326,SMALL(IF(MyProgram!$K$7:$K$326,ROW($A$1:$A$320)),ROW($A6)),COLUMN(C$1)),"") ->  | D10: =IFERROR(INDEX(MyProgram!$A$7:$G$326,SMALL(IF(MyProgram!$K$7:$K$326,ROW($A$1:$A$320)),ROW($A6)),COLUMN(D$1)),"") ->  | F10: =IFERROR(INDEX(MyProgram!$A$7:$G$326,SMALL(IF(MyProgram!$K$7:$K$326,ROW($A$1:$A$320)),ROW($A6)),COLUMN(F$1)),"") -> 
A11: =IFERROR(INDEX(MyProgram!$A$7:$G$326,SMALL(IF(MyProgram!$K$7:$K$326,ROW($A$1:$A$320)),ROW($A7)),COLUMN(A$1)),"") ->  | B11: =IFERROR(INDEX(MyProgram!$A$7:$G$326,SMALL(IF(MyProgram!$K$7:$K$326,ROW($A$1:$A$320)),ROW($A7)),COLUMN(B$1)),"") ->  | C11: =IFERROR(INDEX(MyProgram!$A$7:$G$326,SMALL(IF(MyProgram!$K$7:$K$326,ROW($A$1:$A$320)),ROW($A7)),COLUMN(C$1)),"") ->  | D11: =IFERROR(INDEX(MyProgram!$A$7:$G$326,SMALL(IF(MyProgram!$K$7:$K$326,ROW($A$1:$A$320)),ROW($A7)),COLUMN(D$1)),"") ->  | E11: =IFERROR(INDEX(MyProgram!$A$7:$G$326,SMALL(IF(MyProgram!$K$7:$K$326,ROW($A$1:$A$320)),ROW($A7)),COLUMN(E$1)),"") ->  | F11: =IFERROR(INDEX(MyProgram!$A$7:$G$326,SMALL(IF(MyProgram!$K$7:$K$326,ROW($A$1:$A$320)),ROW($A7)),COLUMN(F$1)),"") ->  | G11: =IFERROR(INDEX(MyProgram!$A$7:$G$326,SMALL(IF(MyProgram!$K$7:$K$326,ROW($A$1:$A$320)),ROW($A7)),COLUMN(G$1)),"") -> 
B12: =IFERROR(INDEX(MyProgram!$A$7:$G$326,SMALL(IF(MyProgram!$K$7:$K$326,ROW($A$1:$A$320)),ROW($A8)),COLUMN(B$1)),"") ->  | C12: =IFERROR(INDEX(MyProgram!$A$7:$G$326,SMALL(IF(MyProgram!$K$7:$K$326,ROW($A$1:$A$320)),ROW($A8)),COLUMN(C$1)),"") ->  | D12: =IFERROR(INDEX(MyProgram!$A$7:$G$326,SMALL(IF(MyProgram!$K$7:$K$326,ROW($A$1:$A$320)),ROW($A8)),COLUMN(D$1)),"") ->  | F12: =IFERROR(INDEX(MyProgram!$A$7:$G$326,SMALL(IF(MyProgram!$K$7:$K$326,ROW($A$1:$A$320)),ROW($A8)),COLUMN(F$1)),"") -> 
A13: =IFERROR(INDEX(MyProgram!$A$7:$G$326,SMALL(IF(MyProgram!$K$7:$K$326,ROW($A$1:$A$320)),ROW($A9)),COLUMN(A$1)),"") ->  | B13: =IFERROR(INDEX(MyProgram!$A$7:$G$326,SMALL(IF(MyProgram!$K$7:$K$326,ROW($A$1:$A$320)),ROW($A9)),COLUMN(B$1)),"") ->  | C13: =IFERROR(INDEX(MyProgram!$A$7:$G$326,SMALL(IF(MyProgram!$K$7:$K$326,ROW($A$1:$A$320)),ROW($A9)),COLUMN(C$1)),"") ->  | D13: =IFERROR(INDEX(MyProgram!$A$7:$G$326,SMALL(IF(MyProgram!$K$7:$K$326,ROW($A$1:$A$320)),ROW($A9)),COLUMN(D$1)),"") ->  | E13: =IFERROR(INDEX(MyProgram!$A$7:$G$326,SMALL(IF(MyProgram!$K$7:$K$326,ROW($A$1:$A$320)),ROW($A9)),COLUMN(E$1)),"") ->  | F13: =IFERROR(INDEX(MyProgram!$A$7:$G$326,SMALL(IF(MyProgram!$K$7:$K$326,ROW($A$1:$A$320)),ROW($A9)),COLUMN(F$1)),"") ->  | G13: =IFERROR(INDEX(MyProgram!$A$7:$G$326,SMALL(IF(MyProgram!$K$7:$K$326,ROW($A$1:$A$320)),ROW($A9)),COLUMN(G$1)),"") -> 
B14: =IFERROR(INDEX(MyProgram!$A$7:$G$326,SMALL(IF(MyProgram!$K$7:$K$326,ROW($A$1:$A$320)),ROW($A10)),COLUMN(B$1)),"") ->  | C14: =IFERROR(INDEX(MyProgram!$A$7:$G$326,SMALL(IF(MyProgram!$K$7:$K$326,ROW($A$1:$A$320)),ROW($A10)),COLUMN(C$1)),"") ->  | D14: =IFERROR(INDEX(MyProgram!$A$7:$G$326,SMALL(IF(MyProgram!$K$7:$K$326,ROW($A$1:$A$320)),ROW($A10)),COLUMN(D$1)),"") ->  | F14: =IFERROR(INDEX(MyProgram!$A$7:$G$326,SMALL(IF(MyProgram!$K$7:$K$326,ROW($A$1:$A$320)),ROW($A10)),COLUMN(F$1)),"") -> 
A15: =IFERROR(INDEX(MyProgram!$A$7:$G$326,SMALL(IF(MyProgram!$K$7:$K$326,ROW($A$1:$A$320)),ROW($A11)),COLUMN(A$1)),"") ->  | B15: =IFERROR(INDEX(MyProgram!$A$7:$G$326,SMALL(IF(MyProgram!$K$7:$K$326,ROW($A$1:$A$320)),ROW($A11)),COLUMN(B$1)),"") ->  | C15: =IFERROR(INDEX(MyProgram!$A$7:$G$326,SMALL(IF(MyProgram!$K$7:$K$326,ROW($A$1:$A$320)),ROW($A11)),COLUMN(C$1)),"") ->  | D15: =IFERROR(INDEX(MyProgram!$A$7:$G$326,SMALL(IF(MyProgram!$K$7:$K$326,ROW($A$1:$A$320)),ROW($A11)),COLUMN(D$1)),"") ->  | E15: =IFERROR(INDEX(MyProgram!$A$7:$G$326,SMALL(IF(MyProgram!$K$7:$K$326,ROW($A$1:$A$320)),ROW($A11)),COLUMN(E$1)),"") ->  | F15: =IFERROR(INDEX(MyProgram!$A$7:$G$326,SMALL(IF(MyProgram!$K$7:$K$326,ROW($A$1:$A$320)),ROW($A11)),COLUMN(F$1)),"") ->  | G15: =IFERROR(INDEX(MyProgram!$A$7:$G$326,SMALL(IF(MyProgram!$K$7:$K$326,ROW($A$1:$A$320)),ROW($A11)),COLUMN(G$1)),"") -> 
B16: =IFERROR(INDEX(MyProgram!$A$7:$G$326,SMALL(IF(MyProgram!$K$7:$K$326,ROW($A$1:$A$320)),ROW($A12)),COLUMN(B$1)),"") ->  | C16: =IFERROR(INDEX(MyProgram!$A$7:$G$326,SMALL(IF(MyProgram!$K$7:$K$326,ROW($A$1:$A$320)),ROW($A12)),COLUMN(C$1)),"") ->  | D16: =IFERROR(INDEX(MyProgram!$A$7:$G$326,SMALL(IF(MyProgram!$K$7:$K$326,ROW($A$1:$A$320)),ROW($A12)),COLUMN(D$1)),"") ->  | F16: =IFERROR(INDEX(MyProgram!$A$7:$G$326,SMALL(IF(MyProgram!$K$7:$K$326,ROW($A$1:$A$320)),ROW($A12)),COLUMN(F$1)),"") -> 
A17: =IFERROR(INDEX(MyProgram!$A$7:$G$326,SMALL(IF(MyProgram!$K$7:$K$326,ROW($A$1:$A$320)),ROW($A13)),COLUMN(A$1)),"") ->  | B17: =IFERROR(INDEX(MyProgram!$A$7:$G$326,SMALL(IF(MyProgram!$K$7:$K$326,ROW($A$1:$A$320)),ROW($A13)),COLUMN(B$1)),"") ->  | C17: =IFERROR(INDEX(MyProgram!$A$7:$G$326,SMALL(IF(MyProgram!$K$7:$K$326,ROW($A$1:$A$320)),ROW($A13)),COLUMN(C$1)),"") ->  | D17: =IFERROR(INDEX(MyProgram!$A$7:$G$326,SMALL(IF(MyProgram!$K$7:$K$326,ROW($A$1:$A$320)),ROW($A13)),COLUMN(D$1)),"") ->  | E17: =IFERROR(INDEX(MyProgram!$A$7:$G$326,SMALL(IF(MyProgram!$K$7:$K$326,ROW($A$1:$A$320)),ROW($A13)),COLUMN(E$1)),"") ->  | F17: =IFERROR(INDEX(MyProgram!$A$7:$G$326,SMALL(IF(MyProgram!$K$7:$K$326,ROW($A$1:$A$320)),ROW($A13)),COLUMN(F$1)),"") ->  | G17: =IFERROR(INDEX(MyProgram!$A$7:$G$326,SMALL(IF(MyProgram!$K$7:$K$326,ROW($A$1:$A$320)),ROW($A13)),COLUMN(G$1)),"") -> 
B18: =IFERROR(INDEX(MyProgram!$A$7:$G$326,SMALL(IF(MyProgram!$K$7:$K$326,ROW($A$1:$A$320)),ROW($A14)),COLUMN(B$1)),"") ->  | C18: =IFERROR(INDEX(MyProgram!$A$7:$G$326,SMALL(IF(MyProgram!$K$7:$K$326,ROW($A$1:$A$320)),ROW($A14)),COLUMN(C$1)),"") ->  | D18: =IFERROR(INDEX(MyProgram!$A$7:$G$326,SMALL(IF(MyProgram!$K$7:$K$326,ROW($A$1:$A$320)),ROW($A14)),COLUMN(D$1)),"") ->  | F18: =IFERROR(INDEX(MyProgram!$A$7:$G$326,SMALL(IF(MyProgram!$K$7:$K$326,ROW($A$1:$A$320)),ROW($A14)),COLUMN(F$1)),"") -> 
A19: =IFERROR(INDEX(MyProgram!$A$7:$G$326,SMALL(IF(MyProgram!$K$7:$K$326,ROW($A$1:$A$320)),ROW($A15)),COLUMN(A$1)),"") ->  | B19: =IFERROR(INDEX(MyProgram!$A$7:$G$326,SMALL(IF(MyProgram!$K$7:$K$326,ROW($A$1:$A$320)),ROW($A15)),COLUMN(B$1)),"") ->  | C19: =IFERROR(INDEX(MyProgram!$A$7:$G$326,SMALL(IF(MyProgram!$K$7:$K$326,ROW($A$1:$A$320)),ROW($A15)),COLUMN(C$1)),"") ->  | D19: =IFERROR(INDEX(MyProgram!$A$7:$G$326,SMALL(IF(MyProgram!$K$7:$K$326,ROW($A$1:$A$320)),ROW($A15)),COLUMN(D$1)),"") ->  | E19: =IFERROR(INDEX(MyProgram!$A$7:$G$326,SMALL(IF(MyProgram!$K$7:$K$326,ROW($A$1:$A$320)),ROW($A15)),COLUMN(E$1)),"") ->  | F19: =IFERROR(INDEX(MyProgram!$A$7:$G$326,SMALL(IF(MyProgram!$K$7:$K$326,ROW($A$1:$A$320)),ROW($A15)),COLUMN(F$1)),"") ->  | G19: =IFERROR(INDEX(MyProgram!$A$7:$G$326,SMALL(IF(MyProgram!$K$7:$K$326,ROW($A$1:$A$320)),ROW($A15)),COLUMN(G$1)),"") -> 
B20: =IFERROR(INDEX(MyProgram!$A$7:$G$326,SMALL(IF(MyProgram!$K$7:$K$326,ROW($A$1:$A$320)),ROW($A16)),COLUMN(B$1)),"") ->  | C20: =IFERROR(INDEX(MyProgram!$A$7:$G$326,SMALL(IF(MyProgram!$K$7:$K$326,ROW($A$1:$A$320)),ROW($A16)),COLUMN(C$1)),"") ->  | D20: =IFERROR(INDEX(MyProgram!$A$7:$G$326,SMALL(IF(MyProgram!$K$7:$K$326,ROW($A$1:$A$320)),ROW($A16)),COLUMN(D$1)),"") ->  | F20: =IFERROR(INDEX(MyProgram!$A$7:$G$326,SMALL(IF(MyProgram!$K$7:$K$326,ROW($A$1:$A$320)),ROW($A16)),COLUMN(F$1)),"") -> 
A21: =IFERROR(INDEX(MyProgram!$A$7:$G$326,SMALL(IF(MyProgram!$K$7:$K$326,ROW($A$1:$A$320)),ROW($A17)),COLUMN(A$1)),"") ->  | B21: =IFERROR(INDEX(MyProgram!$A$7:$G$326,SMALL(IF(MyProgram!$K$7:$K$326,ROW($A$1:$A$320)),ROW($A17)),COLUMN(B$1)),"") ->  | C21: =IFERROR(INDEX(MyProgram!$A$7:$G$326,SMALL(IF(MyProgram!$K$7:$K$326,ROW($A$1:$A$320)),ROW($A17)),COLUMN(C$1)),"") ->  | D21: =IFERROR(INDEX(MyProgram!$A$7:$G$326,SMALL(IF(MyProgram!$K$7:$K$326,ROW($A$1:$A$320)),ROW($A17)),COLUMN(D$1)),"") ->  | E21: =IFERROR(INDEX(MyProgram!$A$7:$G$326,SMALL(IF(MyProgram!$K$7:$K$326,ROW($A$1:$A$320)),ROW($A17)),COLUMN(E$1)),"") ->  | F21: =IFERROR(INDEX(MyProgram!$A$7:$G$326,SMALL(IF(MyProgram!$K$7:$K$326,ROW($A$1:$A$320)),ROW($A17)),COLUMN(F$1)),"") ->  | G21: =IFERROR(INDEX(MyProgram!$A$7:$G$326,SMALL(IF(MyProgram!$K$7:$K$326,ROW($A$1:$A$320)),ROW($A17)),COLUMN(G$1)),"") -> 
B22: =IFERROR(INDEX(MyProgram!$A$7:$G$326,SMALL(IF(MyProgram!$K$7:$K$326,ROW($A$1:$A$320)),ROW($A18)),COLUMN(B$1)),"") ->  | C22: =IFERROR(INDEX(MyProgram!$A$7:$G$326,SMALL(IF(MyProgram!$K$7:$K$326,ROW($A$1:$A$320)),ROW($A18)),COLUMN(C$1)),"") ->  | D22: =IFERROR(INDEX(MyProgram!$A$7:$G$326,SMALL(IF(MyProgram!$K$7:$K$326,ROW($A$1:$A$320)),ROW($A18)),COLUMN(D$1)),"") ->  | F22: =IFERROR(INDEX(MyProgram!$A$7:$G$326,SMALL(IF(MyProgram!$K$7:$K$326,ROW($A$1:$A$320)),ROW($A18)),COLUMN(F$1)),"") -> 
A23: =IFERROR(INDEX(MyProgram!$A$7:$G$326,SMALL(IF(MyProgram!$K$7:$K$326,ROW($A$1:$A$320)),ROW($A19)),COLUMN(A$1)),"") ->  | B23: =IFERROR(INDEX(MyProgram!$A$7:$G$326,SMALL(IF(MyProgram!$K$7:$K$326,ROW($A$1:$A$320)),ROW($A19)),COLUMN(B$1)),"") ->  | C23: =IFERROR(INDEX(MyProgram!$A$7:$G$326,SMALL(IF(MyProgram!$K$7:$K$326,ROW($A$1:$A$320)),ROW($A19)),COLUMN(C$1)),"") ->  | D23: =IFERROR(INDEX(MyProgram!$A$7:$G$326,SMALL(IF(MyProgram!$K$7:$K$326,ROW($A$1:$A$320)),ROW($A19)),COLUMN(D$1)),"") ->  | E23: =IFERROR(INDEX(MyProgram!$A$7:$G$326,SMALL(IF(MyProgram!$K$7:$K$326,ROW($A$1:$A$320)),ROW($A19)),COLUMN(E$1)),"") ->  | F23: =IFERROR(INDEX(MyProgram!$A$7:$G$326,SMALL(IF(MyProgram!$K$7:$K$326,ROW($A$1:$A$320)),ROW($A19)),COLUMN(F$1)),"") ->  | G23: =IFERROR(INDEX(MyProgram!$A$7:$G$326,SMALL(IF(MyProgram!$K$7:$K$326,ROW($A$1:$A$320)),ROW($A19)),COLUMN(G$1)),"") -> 
B24: =IFERROR(INDEX(MyProgram!$A$7:$G$326,SMALL(IF(MyProgram!$K$7:$K$326,ROW($A$1:$A$320)),ROW($A20)),COLUMN(B$1)),"") ->  | C24: =IFERROR(INDEX(MyProgram!$A$7:$G$326,SMALL(IF(MyProgram!$K$7:$K$326,ROW($A$1:$A$320)),ROW($A20)),COLUMN(C$1)),"") ->  | D24: =IFERROR(INDEX(MyProgram!$A$7:$G$326,SMALL(IF(MyProgram!$K$7:$K$326,ROW($A$1:$A$320)),ROW($A20)),COLUMN(D$1)),"") ->  | F24: =IFERROR(INDEX(MyProgram!$A$7:$G$326,SMALL(IF(MyProgram!$K$7:$K$326,ROW($A$1:$A$320)),ROW($A20)),COLUMN(F$1)),"") -> 
A25: =IFERROR(INDEX(MyProgram!$A$7:$G$326,SMALL(IF(MyProgram!$K$7:$K$326,ROW($A$1:$A$320)),ROW($A21)),COLUMN(A$1)),"") ->  | B25: =IFERROR(INDEX(MyProgram!$A$7:$G$326,SMALL(IF(MyProgram!$K$7:$K$326,ROW($A$1:$A$320)),ROW($A21)),COLUMN(B$1)),"") ->  | C25: =IFERROR(INDEX(MyProgram!$A$7:$G$326,SMALL(IF(MyProgram!$K$7:$K$326,ROW($A$1:$A$320)),ROW($A21)),COLUMN(C$1)),"") ->  | D25: =IFERROR(INDEX(MyProgram!$A$7:$G$326,SMALL(IF(MyProgram!$K$7:$K$326,ROW($A$1:$A$320)),ROW($A21)),COLUMN(D$1)),"") ->  | E25: =IFERROR(INDEX(MyProgram!$A$7:$G$326,SMALL(IF(MyProgram!$K$7:$K$326,ROW($A$1:$A$320)),ROW($A21)),COLUMN(E$1)),"") ->  | F25: =IFERROR(INDEX(MyProgram!$A$7:$G$326,SMALL(IF(MyProgram!$K$7:$K$326,ROW($A$1:$A$320)),ROW($A21)),COLUMN(F$1)),"") ->  | G25: =IFERROR(INDEX(MyProgram!$A$7:$G$326,SMALL(IF(MyProgram!$K$7:$K$326,ROW($A$1:$A$320)),ROW($A21)),COLUMN(G$1)),"") -> 
B26: =IFERROR(INDEX(MyProgram!$A$7:$G$326,SMALL(IF(MyProgram!$K$7:$K$326,ROW($A$1:$A$320)),ROW($A22)),COLUMN(B$1)),"") ->  | C26: =IFERROR(INDEX(MyProgram!$A$7:$G$326,SMALL(IF(MyProgram!$K$7:$K$326,ROW($A$1:$A$320)),ROW($A22)),COLUMN(C$1)),"") ->  | D26: =IFERROR(INDEX(MyProgram!$A$7:$G$326,SMALL(IF(MyProgram!$K$7:$K$326,ROW($A$1:$A$320)),ROW($A22)),COLUMN(D$1)),"") ->  | F26: =IFERROR(INDEX(MyProgram!$A$7:$G$326,SMALL(IF(MyProgram!$K$7:$K$326,ROW($A$1:$A$320)),ROW($A22)),COLUMN(F$1)),"") -> 
A27: =IFERROR(INDEX(MyProgram!$A$7:$G$326,SMALL(IF(MyProgram!$K$7:$K$326,ROW($A$1:$A$320)),ROW($A23)),COLUMN(A$1)),"") ->  | B27: =IFERROR(INDEX(MyProgram!$A$7:$G$326,SMALL(IF(MyProgram!$K$7:$K$326,ROW($A$1:$A$320)),ROW($A23)),COLUMN(B$1)),"") ->  | C27: =IFERROR(INDEX(MyProgram!$A$7:$G$326,SMALL(IF(MyProgram!$K$7:$K$326,ROW($A$1:$A$320)),ROW($A23)),COLUMN(C$1)),"") ->  | D27: =IFERROR(INDEX(MyProgram!$A$7:$G$326,SMALL(IF(MyProgram!$K$7:$K$326,ROW($A$1:$A$320)),ROW($A23)),COLUMN(D$1)),"") ->  | E27: =IFERROR(INDEX(MyProgram!$A$7:$G$326,SMALL(IF(MyProgram!$K$7:$K$326,ROW($A$1:$A$320)),ROW($A23)),COLUMN(E$1)),"") ->  | F27: =IFERROR(INDEX(MyProgram!$A$7:$G$326,SMALL(IF(MyProgram!$K$7:$K$326,ROW($A$1:$A$320)),ROW($A23)),COLUMN(F$1)),"") ->  | G27: =IFERROR(INDEX(MyProgram!$A$7:$G$326,SMALL(IF(MyProgram!$K$7:$K$326,ROW($A$1:$A$320)),ROW($A23)),COLUMN(G$1)),"") -> 
B28: =IFERROR(INDEX(MyProgram!$A$7:$G$326,SMALL(IF(MyProgram!$K$7:$K$326,ROW($A$1:$A$320)),ROW($A24)),COLUMN(B$1)),"") ->  | C28: =IFERROR(INDEX(MyProgram!$A$7:$G$326,SMALL(IF(MyProgram!$K$7:$K$326,ROW($A$1:$A$320)),ROW($A24)),COLUMN(C$1)),"") ->  | D28: =IFERROR(INDEX(MyProgram!$A$7:$G$326,SMALL(IF(MyProgram!$K$7:$K$326,ROW($A$1:$A$320)),ROW($A24)),COLUMN(D$1)),"") ->  | F28: =IFERROR(INDEX(MyProgram!$A$7:$G$326,SMALL(IF(MyProgram!$K$7:$K$326,ROW($A$1:$A$320)),ROW($A24)),COLUMN(F$1)),"") -> 
A29: =IFERROR(INDEX(MyProgram!$A$7:$G$326,SMALL(IF(MyProgram!$K$7:$K$326,ROW($A$1:$A$320)),ROW($A25)),COLUMN(A$1)),"") ->  | B29: =IFERROR(INDEX(MyProgram!$A$7:$G$326,SMALL(IF(MyProgram!$K$7:$K$326,ROW($A$1:$A$320)),ROW($A25)),COLUMN(B$1)),"") ->  | C29: =IFERROR(INDEX(MyProgram!$A$7:$G$326,SMALL(IF(MyProgram!$K$7:$K$326,ROW($A$1:$A$320)),ROW($A25)),COLUMN(C$1)),"") ->  | D29: =IFERROR(INDEX(MyProgram!$A$7:$G$326,SMALL(IF(MyProgram!$K$7:$K$326,ROW($A$1:$A$320)),ROW($A25)),COLUMN(D$1)),"") ->  | E29: =IFERROR(INDEX(MyProgram!$A$7:$G$326,SMALL(IF(MyProgram!$K$7:$K$326,ROW($A$1:$A$320)),ROW($A25)),COLUMN(E$1)),"") ->  | F29: =IFERROR(INDEX(MyProgram!$A$7:$G$326,SMALL(IF(MyProgram!$K$7:$K$326,ROW($A$1:$A$320)),ROW($A25)),COLUMN(F$1)),"") ->  | G29: =IFERROR(INDEX(MyProgram!$A$7:$G$326,SMALL(IF(MyProgram!$K$7:$K$326,ROW($A$1:$A$320)),ROW($A25)),COLUMN(G$1)),"") -> 
B30: =IFERROR(INDEX(MyProgram!$A$7:$G$326,SMALL(IF(MyProgram!$K$7:$K$326,ROW($A$1:$A$320)),ROW($A26)),COLUMN(B$1)),"") ->  | C30: =IFERROR(INDEX(MyProgram!$A$7:$G$326,SMALL(IF(MyProgram!$K$7:$K$326,ROW($A$1:$A$320)),ROW($A26)),COLUMN(C$1)),"") ->  | D30: =IFERROR(INDEX(MyProgram!$A$7:$G$326,SMALL(IF(MyProgram!$K$7:$K$326,ROW($A$1:$A$320)),ROW($A26)),COLUMN(D$1)),"") ->  | F30: =IFERROR(INDEX(MyProgram!$A$7:$G$326,SMALL(IF(MyProgram!$K$7:$K$326,ROW($A$1:$A$320)),ROW($A26)),COLUMN(F$1)),"") -> 
A31: =IFERROR(INDEX(MyProgram!$A$7:$G$326,SMALL(IF(MyProgram!$K$7:$K$326,ROW($A$1:$A$320)),ROW($A27)),COLUMN(A$1)),"") ->  | B31: =IFERROR(INDEX(MyProgram!$A$7:$G$326,SMALL(IF(MyProgram!$K$7:$K$326,ROW($A$1:$A$320)),ROW($A27)),COLUMN(B$1)),"") ->  | C31: =IFERROR(INDEX(MyProgram!$A$7:$G$326,SMALL(IF(MyProgram!$K$7:$K$326,ROW($A$1:$A$320)),ROW($A27)),COLUMN(C$1)),"") ->  | D31: =IFERROR(INDEX(MyProgram!$A$7:$G$326,SMALL(IF(MyProgram!$K$7:$K$326,ROW($A$1:$A$320)),ROW($A27)),COLUMN(D$1)),"") ->  | E31: =IFERROR(INDEX(MyProgram!$A$7:$G$326,SMALL(IF(MyProgram!$K$7:$K$326,ROW($A$1:$A$320)),ROW($A27)),COLUMN(E$1)),"") ->  | F31: =IFERROR(INDEX(MyProgram!$A$7:$G$326,SMALL(IF(MyProgram!$K$7:$K$326,ROW($A$1:$A$320)),ROW($A27)),COLUMN(F$1)),"") ->  | G31: =IFERROR(INDEX(MyProgram!$A$7:$G$326,SMALL(IF(MyProgram!$K$7:$K$326,ROW($A$1:$A$320)),ROW($A27)),COLUMN(G$1)),"") -> 
B32: =IFERROR(INDEX(MyProgram!$A$7:$G$326,SMALL(IF(MyProgram!$K$7:$K$326,ROW($A$1:$A$320)),ROW($A28)),COLUMN(B$1)),"") ->  | C32: =IFERROR(INDEX(MyProgram!$A$7:$G$326,SMALL(IF(MyProgram!$K$7:$K$326,ROW($A$1:$A$320)),ROW($A28)),COLUMN(C$1)),"") ->  | D32: =IFERROR(INDEX(MyProgram!$A$7:$G$326,SMALL(IF(MyProgram!$K$7:$K$326,ROW($A$1:$A$320)),ROW($A28)),COLUMN(D$1)),"") ->  | F32: =IFERROR(INDEX(MyProgram!$A$7:$G$326,SMALL(IF(MyProgram!$K$7:$K$326,ROW($A$1:$A$320)),ROW($A28)),COLUMN(F$1)),"") -> 
A33: =IFERROR(INDEX(MyProgram!$A$7:$G$326,SMALL(IF(MyProgram!$K$7:$K$326,ROW($A$1:$A$320)),ROW($A29)),COLUMN(A$1)),"") ->  | B33: =IFERROR(INDEX(MyProgram!$A$7:$G$326,SMALL(IF(MyProgram!$K$7:$K$326,ROW($A$1:$A$320)),ROW($A29)),COLUMN(B$1)),"") ->  | C33: =IFERROR(INDEX(MyProgram!$A$7:$G$326,SMALL(IF(MyProgram!$K$7:$K$326,ROW($A$1:$A$320)),ROW($A29)),COLUMN(C$1)),"") ->  | D33: =IFERROR(INDEX(MyProgram!$A$7:$G$326,SMALL(IF(MyProgram!$K$7:$K$326,ROW($A$1:$A$320)),ROW($A29)),COLUMN(D$1)),"") ->  | E33: =IFERROR(INDEX(MyProgram!$A$7:$G$326,SMALL(IF(MyProgram!$K$7:$K$326,ROW($A$1:$A$320)),ROW($A29)),COLUMN(E$1)),"") ->  | F33: =IFERROR(INDEX(MyProgram!$A$7:$G$326,SMALL(IF(MyProgram!$K$7:$K$326,ROW($A$1:$A$320)),ROW($A29)),COLUMN(F$1)),"") ->  | G33: =IFERROR(INDEX(MyProgram!$A$7:$G$326,SMALL(IF(MyProgram!$K$7:$K$326,ROW($A$1:$A$320)),ROW($A29)),COLUMN(G$1)),"") -> 
B34: =IFERROR(INDEX(MyProgram!$A$7:$G$326,SMALL(IF(MyProgram!$K$7:$K$326,ROW($A$1:$A$320)),ROW($A30)),COLUMN(B$1)),"") ->  | C34: =IFERROR(INDEX(MyProgram!$A$7:$G$326,SMALL(IF(MyProgram!$K$7:$K$326,ROW($A$1:$A$320)),ROW($A30)),COLUMN(C$1)),"") ->  | D34: =IFERROR(INDEX(MyProgram!$A$7:$G$326,SMALL(IF(MyProgram!$K$7:$K$326,ROW($A$1:$A$320)),ROW($A30)),COLUMN(D$1)),"") ->  | F34: =IFERROR(INDEX(MyProgram!$A$7:$G$326,SMALL(IF(MyProgram!$K$7:$K$326,ROW($A$1:$A$320)),ROW($A30)),COLUMN(F$1)),"") -> 
A35: =IFERROR(INDEX(MyProgram!$A$7:$G$326,SMALL(IF(MyProgram!$K$7:$K$326,ROW($A$1:$A$320)),ROW($A31)),COLUMN(A$1)),"") ->  | B35: =IFERROR(INDEX(MyProgram!$A$7:$G$326,SMALL(IF(MyProgram!$K$7:$K$326,ROW($A$1:$A$320)),ROW($A31)),COLUMN(B$1)),"") ->  | C35: =IFERROR(INDEX(MyProgram!$A$7:$G$326,SMALL(IF(MyProgram!$K$7:$K$326,ROW($A$1:$A$320)),ROW($A31)),COLUMN(C$1)),"") ->  | D35: =IFERROR(INDEX(MyProgram!$A$7:$G$326,SMALL(IF(MyProgram!$K$7:$K$326,ROW($A$1:$A$320)),ROW($A31)),COLUMN(D$1)),"") ->  | E35: =IFERROR(INDEX(MyProgram!$A$7:$G$326,SMALL(IF(MyProgram!$K$7:$K$326,ROW($A$1:$A$320)),ROW($A31)),COLUMN(E$1)),"") ->  | F35: =IFERROR(INDEX(MyProgram!$A$7:$G$326,SMALL(IF(MyProgram!$K$7:$K$326,ROW($A$1:$A$320)),ROW($A31)),COLUMN(F$1)),"") ->  | G35: =IFERROR(INDEX(MyProgram!$A$7:$G$326,SMALL(IF(MyProgram!$K$7:$K$326,ROW($A$1:$A$320)),ROW($A31)),COLUMN(G$1)),"") -> 
B36: =IFERROR(INDEX(MyProgram!$A$7:$G$326,SMALL(IF(MyProgram!$K$7:$K$326,ROW($A$1:$A$320)),ROW($A32)),COLUMN(B$1)),"") ->  | C36: =IFERROR(INDEX(MyProgram!$A$7:$G$326,SMALL(IF(MyProgram!$K$7:$K$326,ROW($A$1:$A$320)),ROW($A32)),COLUMN(C$1)),"") ->  | D36: =IFERROR(INDEX(MyProgram!$A$7:$G$326,SMALL(IF(MyProgram!$K$7:$K$326,ROW($A$1:$A$320)),ROW($A32)),COLUMN(D$1)),"") ->  | F36: =IFERROR(INDEX(MyProgram!$A$7:$G$326,SMALL(IF(MyProgram!$K$7:$K$326,ROW($A$1:$A$320)),ROW($A32)),COLUMN(F$1)),"") -> 
A37: =IFERROR(INDEX(MyProgram!$A$7:$G$326,SMALL(IF(MyProgram!$K$7:$K$326,ROW($A$1:$A$320)),ROW($A33)),COLUMN(A$1)),"") ->  | B37: =IFERROR(INDEX(MyProgram!$A$7:$G$326,SMALL(IF(MyProgram!$K$7:$K$326,ROW($A$1:$A$320)),ROW($A33)),COLUMN(B$1)),"") ->  | C37: =IFERROR(INDEX(MyProgram!$A$7:$G$326,SMALL(IF(MyProgram!$K$7:$K$326,ROW($A$1:$A$320)),ROW($A33)),COLUMN(C$1)),"") ->  | D37: =IFERROR(INDEX(MyProgram!$A$7:$G$326,SMALL(IF(MyProgram!$K$7:$K$326,ROW($A$1:$A$320)),ROW($A33)),COLUMN(D$1)),"") ->  | E37: =IFERROR(INDEX(MyProgram!$A$7:$G$326,SMALL(IF(MyProgram!$K$7:$K$326,ROW($A$1:$A$320)),ROW($A33)),COLUMN(E$1)),"") ->  | F37: =IFERROR(INDEX(MyProgram!$A$7:$G$326,SMALL(IF(MyProgram!$K$7:$K$326,ROW($A$1:$A$320)),ROW($A33)),COLUMN(F$1)),"") ->  | G37: =IFERROR(INDEX(MyProgram!$A$7:$G$326,SMALL(IF(MyProgram!$K$7:$K$326,ROW($A$1:$A$320)),ROW($A33)),COLUMN(G$1)),"") -> 
B38: =IFERROR(INDEX(MyProgram!$A$7:$G$326,SMALL(IF(MyProgram!$K$7:$K$326,ROW($A$1:$A$320)),ROW($A34)),COLUMN(B$1)),"") ->  | C38: =IFERROR(INDEX(MyProgram!$A$7:$G$326,SMALL(IF(MyProgram!$K$7:$K$326,ROW($A$1:$A$320)),ROW($A34)),COLUMN(C$1)),"") ->  | D38: =IFERROR(INDEX(MyProgram!$A$7:$G$326,SMALL(IF(MyProgram!$K$7:$K$326,ROW($A$1:$A$320)),ROW($A34)),COLUMN(D$1)),"") ->  | F38: =IFERROR(INDEX(MyProgram!$A$7:$G$326,SMALL(IF(MyProgram!$K$7:$K$326,ROW($A$1:$A$320)),ROW($A34)),COLUMN(F$1)),"") -> 
A39: =IFERROR(INDEX(MyProgram!$A$7:$G$326,SMALL(IF(MyProgram!$K$7:$K$326,ROW($A$1:$A$320)),ROW($A35)),COLUMN(A$1)),"") ->  | B39: =IFERROR(INDEX(MyProgram!$A$7:$G$326,SMALL(IF(MyProgram!$K$7:$K$326,ROW($A$1:$A$320)),ROW($A35)),COLUMN(B$1)),"") ->  | C39: =IFERROR(INDEX(MyProgram!$A$7:$G$326,SMALL(IF(MyProgram!$K$7:$K$326,ROW($A$1:$A$320)),ROW($A35)),COLUMN(C$1)),"") ->  | D39: =IFERROR(INDEX(MyProgram!$A$7:$G$326,SMALL(IF(MyProgram!$K$7:$K$326,ROW($A$1:$A$320)),ROW($A35)),COLUMN(D$1)),"") ->  | E39: =IFERROR(INDEX(MyProgram!$A$7:$G$326,SMALL(IF(MyProgram!$K$7:$K$326,ROW($A$1:$A$320)),ROW($A35)),COLUMN(E$1)),"") ->  | F39: =IFERROR(INDEX(MyProgram!$A$7:$G$326,SMALL(IF(MyProgram!$K$7:$K$326,ROW($A$1:$A$320)),ROW($A35)),COLUMN(F$1)),"") ->  | G39: =IFERROR(INDEX(MyProgram!$A$7:$G$326,SMALL(IF(MyProgram!$K$7:$K$326,ROW($A$1:$A$320)),ROW($A35)),COLUMN(G$1)),"") -> 
B40: =IFERROR(INDEX(MyProgram!$A$7:$G$326,SMALL(IF(MyProgram!$K$7:$K$326,ROW($A$1:$A$320)),ROW($A36)),COLUMN(B$1)),"") ->  | C40: =IFERROR(INDEX(MyProgram!$A$7:$G$326,SMALL(IF(MyProgram!$K$7:$K$326,ROW($A$1:$A$320)),ROW($A36)),COLUMN(C$1)),"") ->  | D40: =IFERROR(INDEX(MyProgram!$A$7:$G$326,SMALL(IF(MyProgram!$K$7:$K$326,ROW($A$1:$A$320)),ROW($A36)),COLUMN(D$1)),"") ->  | F40: =IFERROR(INDEX(MyProgram!$A$7:$G$326,SMALL(IF(MyProgram!$K$7:$K$326,ROW($A$1:$A$320)),ROW($A36)),COLUMN(F$1)),"") -> 
A41: =IFERROR(INDEX(MyProgram!$A$7:$G$326,SMALL(IF(MyProgram!$K$7:$K$326,ROW($A$1:$A$320)),ROW($A37)),COLUMN(A$1)),"") ->  | B41: =IFERROR(INDEX(MyProgram!$A$7:$G$326,SMALL(IF(MyProgram!$K$7:$K$326,ROW($A$1:$A$320)),ROW($A37)),COLUMN(B$1)),"") ->  | C41: =IFERROR(INDEX(MyProgram!$A$7:$G$326,SMALL(IF(MyProgram!$K$7:$K$326,ROW($A$1:$A$320)),ROW($A37)),COLUMN(C$1)),"") ->  | D41: =IFERROR(INDEX(MyProgram!$A$7:$G$326,SMALL(IF(MyProgram!$K$7:$K$326,ROW($A$1:$A$320)),ROW($A37)),COLUMN(D$1)),"") ->  | E41: =IFERROR(INDEX(MyProgram!$A$7:$G$326,SMALL(IF(MyProgram!$K$7:$K$326,ROW($A$1:$A$320)),ROW($A37)),COLUMN(E$1)),"") ->  | F41: =IFERROR(INDEX(MyProgram!$A$7:$G$326,SMALL(IF(MyProgram!$K$7:$K$326,ROW($A$1:$A$320)),ROW($A37)),COLUMN(F$1)),"") ->  | G41: =IFERROR(INDEX(MyProgram!$A$7:$G$326,SMALL(IF(MyProgram!$K$7:$K$326,ROW($A$1:$A$320)),ROW($A37)),COLUMN(G$1)),"") -> 
B42: =IFERROR(INDEX(MyProgram!$A$7:$G$326,SMALL(IF(MyProgram!$K$7:$K$326,ROW($A$1:$A$320)),ROW($A38)),COLUMN(B$1)),"") ->  | C42: =IFERROR(INDEX(MyProgram!$A$7:$G$326,SMALL(IF(MyProgram!$K$7:$K$326,ROW($A$1:$A$320)),ROW($A38)),COLUMN(C$1)),"") ->  | D42: =IFERROR(INDEX(MyProgram!$A$7:$G$326,SMALL(IF(MyProgram!$K$7:$K$326,ROW($A$1:$A$320)),ROW($A38)),COLUMN(D$1)),"") ->  | F42: =IFERROR(INDEX(MyProgram!$A$7:$G$326,SMALL(IF(MyProgram!$K$7:$K$326,ROW($A$1:$A$320)),ROW($A38)),COLUMN(F$1)),"") -> 
A43: =IFERROR(INDEX(MyProgram!$A$7:$G$326,SMALL(IF(MyProgram!$K$7:$K$326,ROW($A$1:$A$320)),ROW($A39)),COLUMN(A$1)),"") ->  | B43: =IFERROR(INDEX(MyProgram!$A$7:$G$326,SMALL(IF(MyProgram!$K$7:$K$326,ROW($A$1:$A$320)),ROW($A39)),COLUMN(B$1)),"") ->  | C43: =IFERROR(INDEX(MyProgram!$A$7:$G$326,SMALL(IF(MyProgram!$K$7:$K$326,ROW($A$1:$A$320)),ROW($A39)),COLUMN(C$1)),"") ->  | D43: =IFERROR(INDEX(MyProgram!$A$7:$G$326,SMALL(IF(MyProgram!$K$7:$K$326,ROW($A$1:$A$320)),ROW($A39)),COLUMN(D$1)),"") ->  | E43: =IFERROR(INDEX(MyProgram!$A$7:$G$326,SMALL(IF(MyProgram!$K$7:$K$326,ROW($A$1:$A$320)),ROW($A39)),COLUMN(E$1)),"") ->  | F43: =IFERROR(INDEX(MyProgram!$A$7:$G$326,SMALL(IF(MyProgram!$K$7:$K$326,ROW($A$1:$A$320)),ROW($A39)),COLUMN(F$1)),"") ->  | G43: =IFERROR(INDEX(MyProgram!$A$7:$G$326,SMALL(IF(MyProgram!$K$7:$K$326,ROW($A$1:$A$320)),ROW($A39)),COLUMN(G$1)),"") -> 
B44: =IFERROR(INDEX(MyProgram!$A$7:$G$326,SMALL(IF(MyProgram!$K$7:$K$326,ROW($A$1:$A$320)),ROW($A40)),COLUMN(B$1)),"") ->  | C44: =IFERROR(INDEX(MyProgram!$A$7:$G$326,SMALL(IF(MyProgram!$K$7:$K$326,ROW($A$1:$A$320)),ROW($A40)),COLUMN(C$1)),"") ->  | D44: =IFERROR(INDEX(MyProgram!$A$7:$G$326,SMALL(IF(MyProgram!$K$7:$K$326,ROW($A$1:$A$320)),ROW($A40)),COLUMN(D$1)),"") ->  | F44: =IFERROR(INDEX(MyProgram!$A$7:$G$326,SMALL(IF(MyProgram!$K$7:$K$326,ROW($A$1:$A$320)),ROW($A40)),COLUMN(F$1)),"") -> 
A45: =IFERROR(INDEX(MyProgram!$A$7:$G$326,SMALL(IF(MyProgram!$K$7:$K$326,ROW($A$1:$A$320)),ROW($A41)),COLUMN(A$1)),"") ->  | B45: =IFERROR(INDEX(MyProgram!$A$7:$G$326,SMALL(IF(MyProgram!$K$7:$K$326,ROW($A$1:$A$320)),ROW($A41)),COLUMN(B$1)),"") ->  | C45: =IFERROR(INDEX(MyProgram!$A$7:$G$326,SMALL(IF(MyProgram!$K$7:$K$326,ROW($A$1:$A$320)),ROW($A41)),COLUMN(C$1)),"") ->  | D45: =IFERROR(INDEX(MyProgram!$A$7:$G$326,SMALL(IF(MyProgram!$K$7:$K$326,ROW($A$1:$A$320)),ROW($A41)),COLUMN(D$1)),"") ->  | E45: =IFERROR(INDEX(MyProgram!$A$7:$G$326,SMALL(IF(MyProgram!$K$7:$K$326,ROW($A$1:$A$320)),ROW($A41)),COLUMN(E$1)),"") ->  | F45: =IFERROR(INDEX(MyProgram!$A$7:$G$326,SMALL(IF(MyProgram!$K$7:$K$326,ROW($A$1:$A$320)),ROW($A41)),COLUMN(F$1)),"") ->  | G45: =IFERROR(INDEX(MyProgram!$A$7:$G$326,SMALL(IF(MyProgram!$K$7:$K$326,ROW($A$1:$A$320)),ROW($A41)),COLUMN(G$1)),"") -> 
B46: =IFERROR(INDEX(MyProgram!$A$7:$G$326,SMALL(IF(MyProgram!$K$7:$K$326,ROW($A$1:$A$320)),ROW($A42)),COLUMN(B$1)),"") ->  | C46: =IFERROR(INDEX(MyProgram!$A$7:$G$326,SMALL(IF(MyProgram!$K$7:$K$326,ROW($A$1:$A$320)),ROW($A42)),COLUMN(C$1)),"") ->  | D46: =IFERROR(INDEX(MyProgram!$A$7:$G$326,SMALL(IF(MyProgram!$K$7:$K$326,ROW($A$1:$A$320)),ROW($A42)),COLUMN(D$1)),"") ->  | F46: =IFERROR(INDEX(MyProgram!$A$7:$G$326,SMALL(IF(MyProgram!$K$7:$K$326,ROW($A$1:$A$320)),ROW($A42)),COLUMN(F$1)),"") -> 
A47: =IFERROR(INDEX(MyProgram!$A$7:$G$326,SMALL(IF(MyProgram!$K$7:$K$326,ROW($A$1:$A$320)),ROW($A43)),COLUMN(A$1)),"") ->  | B47: =IFERROR(INDEX(MyProgram!$A$7:$G$326,SMALL(IF(MyProgram!$K$7:$K$326,ROW($A$1:$A$320)),ROW($A43)),COLUMN(B$1)),"") ->  | C47: =IFERROR(INDEX(MyProgram!$A$7:$G$326,SMALL(IF(MyProgram!$K$7:$K$326,ROW($A$1:$A$320)),ROW($A43)),COLUMN(C$1)),"") ->  | D47: =IFERROR(INDEX(MyProgram!$A$7:$G$326,SMALL(IF(MyProgram!$K$7:$K$326,ROW($A$1:$A$320)),ROW($A43)),COLUMN(D$1)),"") ->  | E47: =IFERROR(INDEX(MyProgram!$A$7:$G$326,SMALL(IF(MyProgram!$K$7:$K$326,ROW($A$1:$A$320)),ROW($A43)),COLUMN(E$1)),"") ->  | F47: =IFERROR(INDEX(MyProgram!$A$7:$G$326,SMALL(IF(MyProgram!$K$7:$K$326,ROW($A$1:$A$320)),ROW($A43)),COLUMN(F$1)),"") ->  | G47: =IFERROR(INDEX(MyProgram!$A$7:$G$326,SMALL(IF(MyProgram!$K$7:$K$326,ROW($A$1:$A$320)),ROW($A43)),COLUMN(G$1)),"") -> 
B48: =IFERROR(INDEX(MyProgram!$A$7:$G$326,SMALL(IF(MyProgram!$K$7:$K$326,ROW($A$1:$A$320)),ROW($A44)),COLUMN(B$1)),"") ->  | C48: =IFERROR(INDEX(MyProgram!$A$7:$G$326,SMALL(IF(MyProgram!$K$7:$K$326,ROW($A$1:$A$320)),ROW($A44)),COLUMN(C$1)),"") ->  | D48: =IFERROR(INDEX(MyProgram!$A$7:$G$326,SMALL(IF(MyProgram!$K$7:$K$326,ROW($A$1:$A$320)),ROW($A44)),COLUMN(D$1)),"") ->  | F48: =IFERROR(INDEX(MyProgram!$A$7:$G$326,SMALL(IF(MyProgram!$K$7:$K$326,ROW($A$1:$A$320)),ROW($A44)),COLUMN(F$1)),"") -> 
A49: =IFERROR(INDEX(MyProgram!$A$7:$G$326,SMALL(IF(MyProgram!$K$7:$K$326,ROW($A$1:$A$320)),ROW($A45)),COLUMN(A$1)),"") ->  | B49: =IFERROR(INDEX(MyProgram!$A$7:$G$326,SMALL(IF(MyProgram!$K$7:$K$326,ROW($A$1:$A$320)),ROW($A45)),COLUMN(B$1)),"") ->  | C49: =IFERROR(INDEX(MyProgram!$A$7:$G$326,SMALL(IF(MyProgram!$K$7:$K$326,ROW($A$1:$A$320)),ROW($A45)),COLUMN(C$1)),"") ->  | D49: =IFERROR(INDEX(MyProgram!$A$7:$G$326,SMALL(IF(MyProgram!$K$7:$K$326,ROW($A$1:$A$320)),ROW($A45)),COLUMN(D$1)),"") ->  | E49: =IFERROR(INDEX(MyProgram!$A$7:$G$326,SMALL(IF(MyProgram!$K$7:$K$326,ROW($A$1:$A$320)),ROW($A45)),COLUMN(E$1)),"") ->  | F49: =IFERROR(INDEX(MyProgram!$A$7:$G$326,SMALL(IF(MyProgram!$K$7:$K$326,ROW($A$1:$A$320)),ROW($A45)),COLUMN(F$1)),"") ->  | G49: =IFERROR(INDEX(MyProgram!$A$7:$G$326,SMALL(IF(MyProgram!$K$7:$K$326,ROW($A$1:$A$320)),ROW($A45)),COLUMN(G$1)),"") -> 
B50: =IFERROR(INDEX(MyProgram!$A$7:$G$326,SMALL(IF(MyProgram!$K$7:$K$326,ROW($A$1:$A$320)),ROW($A46)),COLUMN(B$1)),"") ->  | C50: =IFERROR(INDEX(MyProgram!$A$7:$G$326,SMALL(IF(MyProgram!$K$7:$K$326,ROW($A$1:$A$320)),ROW($A46)),COLUMN(C$1)),"") ->  | D50: =IFERROR(INDEX(MyProgram!$A$7:$G$326,SMALL(IF(MyProgram!$K$7:$K$326,ROW($A$1:$A$320)),ROW($A46)),COLUMN(D$1)),"") ->  | F50: =IFERROR(INDEX(MyProgram!$A$7:$G$326,SMALL(IF(MyProgram!$K$7:$K$326,ROW($A$1:$A$320)),ROW($A46)),COLUMN(F$1)),"") -> 
A51: =IFERROR(INDEX(MyProgram!$A$7:$G$326,SMALL(IF(MyProgram!$K$7:$K$326,ROW($A$1:$A$320)),ROW($A47)),COLUMN(A$1)),"") ->  | B51: =IFERROR(INDEX(MyProgram!$A$7:$G$326,SMALL(IF(MyProgram!$K$7:$K$326,ROW($A$1:$A$320)),ROW($A47)),COLUMN(B$1)),"") ->  | C51: =IFERROR(INDEX(MyProgram!$A$7:$G$326,SMALL(IF(MyProgram!$K$7:$K$326,ROW($A$1:$A$320)),ROW($A47)),COLUMN(C$1)),"") ->  | D51: =IFERROR(INDEX(MyProgram!$A$7:$G$326,SMALL(IF(MyProgram!$K$7:$K$326,ROW($A$1:$A$320)),ROW($A47)),COLUMN(D$1)),"") ->  | E51: =IFERROR(INDEX(MyProgram!$A$7:$G$326,SMALL(IF(MyProgram!$K$7:$K$326,ROW($A$1:$A$320)),ROW($A47)),COLUMN(E$1)),"") ->  | F51: =IFERROR(INDEX(MyProgram!$A$7:$G$326,SMALL(IF(MyProgram!$K$7:$K$326,ROW($A$1:$A$320)),ROW($A47)),COLUMN(F$1)),"") ->  | G51: =IFERROR(INDEX(MyProgram!$A$7:$G$326,SMALL(IF(MyProgram!$K$7:$K$326,ROW($A$1:$A$320)),ROW($A47)),COLUMN(G$1)),"") -> 
B52: =IFERROR(INDEX(MyProgram!$A$7:$G$326,SMALL(IF(MyProgram!$K$7:$K$326,ROW($A$1:$A$320)),ROW($A48)),COLUMN(B$1)),"") ->  | C52: =IFERROR(INDEX(MyProgram!$A$7:$G$326,SMALL(IF(MyProgram!$K$7:$K$326,ROW($A$1:$A$320)),ROW($A48)),COLUMN(C$1)),"") ->  | D52: =IFERROR(INDEX(MyProgram!$A$7:$G$326,SMALL(IF(MyProgram!$K$7:$K$326,ROW($A$1:$A$320)),ROW($A48)),COLUMN(D$1)),"") ->  | F52: =IFERROR(INDEX(MyProgram!$A$7:$G$326,SMALL(IF(MyProgram!$K$7:$K$326,ROW($A$1:$A$320)),ROW($A48)),COLUMN(F$1)),"") -> 
A53: =IFERROR(INDEX(MyProgram!$A$7:$G$326,SMALL(IF(MyProgram!$K$7:$K$326,ROW($A$1:$A$320)),ROW($A49)),COLUMN(A$1)),"") ->  | B53: =IFERROR(INDEX(MyProgram!$A$7:$G$326,SMALL(IF(MyProgram!$K$7:$K$326,ROW($A$1:$A$320)),ROW($A49)),COLUMN(B$1)),"") ->  | C53: =IFERROR(INDEX(MyProgram!$A$7:$G$326,SMALL(IF(MyProgram!$K$7:$K$326,ROW($A$1:$A$320)),ROW($A49)),COLUMN(C$1)),"") ->  | D53: =IFERROR(INDEX(MyProgram!$A$7:$G$326,SMALL(IF(MyProgram!$K$7:$K$326,ROW($A$1:$A$320)),ROW($A49)),COLUMN(D$1)),"") ->  | E53: =IFERROR(INDEX(MyProgram!$A$7:$G$326,SMALL(IF(MyProgram!$K$7:$K$326,ROW($A$1:$A$320)),ROW($A49)),COLUMN(E$1)),"") ->  | F53: =IFERROR(INDEX(MyProgram!$A$7:$G$326,SMALL(IF(MyProgram!$K$7:$K$326,ROW($A$1:$A$320)),ROW($A49)),COLUMN(F$1)),"") ->  | G53: =IFERROR(INDEX(MyProgram!$A$7:$G$326,SMALL(IF(MyProgram!$K$7:$K$326,ROW($A$1:$A$320)),ROW($A49)),COLUMN(G$1)),"") -> 
B54: =IFERROR(INDEX(MyProgram!$A$7:$G$326,SMALL(IF(MyProgram!$K$7:$K$326,ROW($A$1:$A$320)),ROW($A50)),COLUMN(B$1)),"") ->  | C54: =IFERROR(INDEX(MyProgram!$A$7:$G$326,SMALL(IF(MyProgram!$K$7:$K$326,ROW($A$1:$A$320)),ROW($A50)),COLUMN(C$1)),"") ->  | D54: =IFERROR(INDEX(MyProgram!$A$7:$G$326,SMALL(IF(MyProgram!$K$7:$K$326,ROW($A$1:$A$320)),ROW($A50)),COLUMN(D$1)),"") ->  | F54: =IFERROR(INDEX(MyProgram!$A$7:$G$326,SMALL(IF(MyProgram!$K$7:$K$326,ROW($A$1:$A$320)),ROW($A50)),COLUMN(F$1)),"") -> 
A55: =IFERROR(INDEX(MyProgram!$A$7:$G$326,SMALL(IF(MyProgram!$K$7:$K$326,ROW($A$1:$A$320)),ROW($A51)),COLUMN(A$1)),"") ->  | B55: =IFERROR(INDEX(MyProgram!$A$7:$G$326,SMALL(IF(MyProgram!$K$7:$K$326,ROW($A$1:$A$320)),ROW($A51)),COLUMN(B$1)),"") ->  | C55: =IFERROR(INDEX(MyProgram!$A$7:$G$326,SMALL(IF(MyProgram!$K$7:$K$326,ROW($A$1:$A$320)),ROW($A51)),COLUMN(C$1)),"") ->  | D55: =IFERROR(INDEX(MyProgram!$A$7:$G$326,SMALL(IF(MyProgram!$K$7:$K$326,ROW($A$1:$A$320)),ROW($A51)),COLUMN(D$1)),"") ->  | E55: =IFERROR(INDEX(MyProgram!$A$7:$G$326,SMALL(IF(MyProgram!$K$7:$K$326,ROW($A$1:$A$320)),ROW($A51)),COLUMN(E$1)),"") ->  | F55: =IFERROR(INDEX(MyProgram!$A$7:$G$326,SMALL(IF(MyProgram!$K$7:$K$326,ROW($A$1:$A$320)),ROW($A51)),COLUMN(F$1)),"") ->  | G55: =IFERROR(INDEX(MyProgram!$A$7:$G$326,SMALL(IF(MyProgram!$K$7:$K$326,ROW($A$1:$A$320)),ROW($A51)),COLUMN(G$1)),"") -> 
B56: =IFERROR(INDEX(MyProgram!$A$7:$G$326,SMALL(IF(MyProgram!$K$7:$K$326,ROW($A$1:$A$320)),ROW($A52)),COLUMN(B$1)),"") ->  | C56: =IFERROR(INDEX(MyProgram!$A$7:$G$326,SMALL(IF(MyProgram!$K$7:$K$326,ROW($A$1:$A$320)),ROW($A52)),COLUMN(C$1)),"") ->  | D56: =IFERROR(INDEX(MyProgram!$A$7:$G$326,SMALL(IF(MyProgram!$K$7:$K$326,ROW($A$1:$A$320)),ROW($A52)),COLUMN(D$1)),"") ->  | F56: =IFERROR(INDEX(MyProgram!$A$7:$G$326,SMALL(IF(MyProgram!$K$7:$K$326,ROW($A$1:$A$320)),ROW($A52)),COLUMN(F$1)),"") -> 
A57: =IFERROR(INDEX(MyProgram!$A$7:$G$326,SMALL(IF(MyProgram!$K$7:$K$326,ROW($A$1:$A$320)),ROW($A53)),COLUMN(A$1)),"") ->  | B57: =IFERROR(INDEX(MyProgram!$A$7:$G$326,SMALL(IF(MyProgram!$K$7:$K$326,ROW($A$1:$A$320)),ROW($A53)),COLUMN(B$1)),"") ->  | C57: =IFERROR(INDEX(MyProgram!$A$7:$G$326,SMALL(IF(MyProgram!$K$7:$K$326,ROW($A$1:$A$320)),ROW($A53)),COLUMN(C$1)),"") ->  | D57: =IFERROR(INDEX(MyProgram!$A$7:$G$326,SMALL(IF(MyProgram!$K$7:$K$326,ROW($A$1:$A$320)),ROW($A53)),COLUMN(D$1)),"") ->  | E57: =IFERROR(INDEX(MyProgram!$A$7:$G$326,SMALL(IF(MyProgram!$K$7:$K$326,ROW($A$1:$A$320)),ROW($A53)),COLUMN(E$1)),"") ->  | F57: =IFERROR(INDEX(MyProgram!$A$7:$G$326,SMALL(IF(MyProgram!$K$7:$K$326,ROW($A$1:$A$320)),ROW($A53)),COLUMN(F$1)),"") ->  | G57: =IFERROR(INDEX(MyProgram!$A$7:$G$326,SMALL(IF(MyProgram!$K$7:$K$326,ROW($A$1:$A$320)),ROW($A53)),COLUMN(G$1)),"") -> 
B58: =IFERROR(INDEX(MyProgram!$A$7:$G$326,SMALL(IF(MyProgram!$K$7:$K$326,ROW($A$1:$A$320)),ROW($A54)),COLUMN(B$1)),"") ->  | C58: =IFERROR(INDEX(MyProgram!$A$7:$G$326,SMALL(IF(MyProgram!$K$7:$K$326,ROW($A$1:$A$320)),ROW($A54)),COLUMN(C$1)),"") ->  | D58: =IFERROR(INDEX(MyProgram!$A$7:$G$326,SMALL(IF(MyProgram!$K$7:$K$326,ROW($A$1:$A$320)),ROW($A54)),COLUMN(D$1)),"") ->  | F58: =IFERROR(INDEX(MyProgram!$A$7:$G$326,SMALL(IF(MyProgram!$K$7:$K$326,ROW($A$1:$A$320)),ROW($A54)),COLUMN(F$1)),"") -> 
A59: =IFERROR(INDEX(MyProgram!$A$7:$G$326,SMALL(IF(MyProgram!$K$7:$K$326,ROW($A$1:$A$320)),ROW($A55)),COLUMN(A$1)),"") ->  | B59: =IFERROR(INDEX(MyProgram!$A$7:$G$326,SMALL(IF(MyProgram!$K$7:$K$326,ROW($A$1:$A$320)),ROW($A55)),COLUMN(B$1)),"") ->  | C59: =IFERROR(INDEX(MyProgram!$A$7:$G$326,SMALL(IF(MyProgram!$K$7:$K$326,ROW($A$1:$A$320)),ROW($A55)),COLUMN(C$1)),"") ->  | D59: =IFERROR(INDEX(MyProgram!$A$7:$G$326,SMALL(IF(MyProgram!$K$7:$K$326,ROW($A$1:$A$320)),ROW($A55)),COLUMN(D$1)),"") ->  | E59: =IFERROR(INDEX(MyProgram!$A$7:$G$326,SMALL(IF(MyProgram!$K$7:$K$326,ROW($A$1:$A$320)),ROW($A55)),COLUMN(E$1)),"") ->  | F59: =IFERROR(INDEX(MyProgram!$A$7:$G$326,SMALL(IF(MyProgram!$K$7:$K$326,ROW($A$1:$A$320)),ROW($A55)),COLUMN(F$1)),"") ->  | G59: =IFERROR(INDEX(MyProgram!$A$7:$G$326,SMALL(IF(MyProgram!$K$7:$K$326,ROW($A$1:$A$320)),ROW($A55)),COLUMN(G$1)),"") -> 
B60: =IFERROR(INDEX(MyProgram!$A$7:$G$326,SMALL(IF(MyProgram!$K$7:$K$326,ROW($A$1:$A$320)),ROW($A56)),COLUMN(B$1)),"") ->  | C60: =IFERROR(INDEX(MyProgram!$A$7:$G$326,SMALL(IF(MyProgram!$K$7:$K$326,ROW($A$1:$A$320)),ROW($A56)),COLUMN(C$1)),"") ->  | D60: =IFERROR(INDEX(MyProgram!$A$7:$G$326,SMALL(IF(MyProgram!$K$7:$K$326,ROW($A$1:$A$320)),ROW($A56)),COLUMN(D$1)),"") ->  | F60: =IFERROR(INDEX(MyProgram!$A$7:$G$326,SMALL(IF(MyProgram!$K$7:$K$326,ROW($A$1:$A$320)),ROW($A56)),COLUMN(F$1)),"") -> 
A61: =IFERROR(INDEX(MyProgram!$A$7:$G$326,SMALL(IF(MyProgram!$K$7:$K$326,ROW($A$1:$A$320)),ROW($A57)),COLUMN(A$1)),"") ->  | B61: =IFERROR(INDEX(MyProgram!$A$7:$G$326,SMALL(IF(MyProgram!$K$7:$K$326,ROW($A$1:$A$320)),ROW($A57)),COLUMN(B$1)),"") ->  | C61: =IFERROR(INDEX(MyProgram!$A$7:$G$326,SMALL(IF(MyProgram!$K$7:$K$326,ROW($A$1:$A$320)),ROW($A57)),COLUMN(C$1)),"") ->  | D61: =IFERROR(INDEX(MyProgram!$A$7:$G$326,SMALL(IF(MyProgram!$K$7:$K$326,ROW($A$1:$A$320)),ROW($A57)),COLUMN(D$1)),"") ->  | E61: =IFERROR(INDEX(MyProgram!$A$7:$G$326,SMALL(IF(MyProgram!$K$7:$K$326,ROW($A$1:$A$320)),ROW($A57)),COLUMN(E$1)),"") ->  | F61: =IFERROR(INDEX(MyProgram!$A$7:$G$326,SMALL(IF(MyProgram!$K$7:$K$326,ROW($A$1:$A$320)),ROW($A57)),COLUMN(F$1)),"") ->  | G61: =IFERROR(INDEX(MyProgram!$A$7:$G$326,SMALL(IF(MyProgram!$K$7:$K$326,ROW($A$1:$A$320)),ROW($A57)),COLUMN(G$1)),"") -> 
B62: =IFERROR(INDEX(MyProgram!$A$7:$G$326,SMALL(IF(MyProgram!$K$7:$K$326,ROW($A$1:$A$320)),ROW($A58)),COLUMN(B$1)),"") ->  | C62: =IFERROR(INDEX(MyProgram!$A$7:$G$326,SMALL(IF(MyProgram!$K$7:$K$326,ROW($A$1:$A$320)),ROW($A58)),COLUMN(C$1)),"") ->  | D62: =IFERROR(INDEX(MyProgram!$A$7:$G$326,SMALL(IF(MyProgram!$K$7:$K$326,ROW($A$1:$A$320)),ROW($A58)),COLUMN(D$1)),"") ->  | F62: =IFERROR(INDEX(MyProgram!$A$7:$G$326,SMALL(IF(MyProgram!$K$7:$K$326,ROW($A$1:$A$320)),ROW($A58)),COLUMN(F$1)),"") -> 
A63: =IFERROR(INDEX(MyProgram!$A$7:$G$326,SMALL(IF(MyProgram!$K$7:$K$326,ROW($A$1:$A$320)),ROW($A59)),COLUMN(A$1)),"") ->  | B63: =IFERROR(INDEX(MyProgram!$A$7:$G$326,SMALL(IF(MyProgram!$K$7:$K$326,ROW($A$1:$A$320)),ROW($A59)),COLUMN(B$1)),"") ->  | C63: =IFERROR(INDEX(MyProgram!$A$7:$G$326,SMALL(IF(MyProgram!$K$7:$K$326,ROW($A$1:$A$320)),ROW($A59)),COLUMN(C$1)),"") ->  | D63: =IFERROR(INDEX(MyProgram!$A$7:$G$326,SMALL(IF(MyProgram!$K$7:$K$326,ROW($A$1:$A$320)),ROW($A59)),COLUMN(D$1)),"") ->  | E63: =IFERROR(INDEX(MyProgram!$A$7:$G$326,SMALL(IF(MyProgram!$K$7:$K$326,ROW($A$1:$A$320)),ROW($A59)),COLUMN(E$1)),"") ->  | F63: =IFERROR(INDEX(MyProgram!$A$7:$G$326,SMALL(IF(MyProgram!$K$7:$K$326,ROW($A$1:$A$320)),ROW($A59)),COLUMN(F$1)),"") ->  | G63: =IFERROR(INDEX(MyProgram!$A$7:$G$326,SMALL(IF(MyProgram!$K$7:$K$326,ROW($A$1:$A$320)),ROW($A59)),COLUMN(G$1)),"") -> 
B64: =IFERROR(INDEX(MyProgram!$A$7:$G$326,SMALL(IF(MyProgram!$K$7:$K$326,ROW($A$1:$A$320)),ROW($A60)),COLUMN(B$1)),"") ->  | C64: =IFERROR(INDEX(MyProgram!$A$7:$G$326,SMALL(IF(MyProgram!$K$7:$K$326,ROW($A$1:$A$320)),ROW($A60)),COLUMN(C$1)),"") ->  | D64: =IFERROR(INDEX(MyProgram!$A$7:$G$326,SMALL(IF(MyProgram!$K$7:$K$326,ROW($A$1:$A$320)),ROW($A60)),COLUMN(D$1)),"") ->  | F64: =IFERROR(INDEX(MyProgram!$A$7:$G$326,SMALL(IF(MyProgram!$K$7:$K$326,ROW($A$1:$A$320)),ROW($A60)),COLUMN(F$1)),"") -> 
A65: =IFERROR(INDEX(MyProgram!$A$7:$G$326,SMALL(IF(MyProgram!$K$7:$K$326,ROW($A$1:$A$320)),ROW($A61)),COLUMN(A$1)),"") ->  | B65: =IFERROR(INDEX(MyProgram!$A$7:$G$326,SMALL(IF(MyProgram!$K$7:$K$326,ROW($A$1:$A$320)),ROW($A61)),COLUMN(B$1)),"") ->  | C65: =IFERROR(INDEX(MyProgram!$A$7:$G$326,SMALL(IF(MyProgram!$K$7:$K$326,ROW($A$1:$A$320)),ROW($A61)),COLUMN(C$1)),"") ->  | D65: =IFERROR(INDEX(MyProgram!$A$7:$G$326,SMALL(IF(MyProgram!$K$7:$K$326,ROW($A$1:$A$320)),ROW($A61)),COLUMN(D$1)),"") ->  | E65: =IFERROR(INDEX(MyProgram!$A$7:$G$326,SMALL(IF(MyProgram!$K$7:$K$326,ROW($A$1:$A$320)),ROW($A61)),COLUMN(E$1)),"") ->  | F65: =IFERROR(INDEX(MyProgram!$A$7:$G$326,SMALL(IF(MyProgram!$K$7:$K$326,ROW($A$1:$A$320)),ROW($A61)),COLUMN(F$1)),"") ->  | G65: =IFERROR(INDEX(MyProgram!$A$7:$G$326,SMALL(IF(MyProgram!$K$7:$K$326,ROW($A$1:$A$320)),ROW($A61)),COLUMN(G$1)),"") -> 
B66: =IFERROR(INDEX(MyProgram!$A$7:$G$326,SMALL(IF(MyProgram!$K$7:$K$326,ROW($A$1:$A$320)),ROW($A62)),COLUMN(B$1)),"") ->  | C66: =IFERROR(INDEX(MyProgram!$A$7:$G$326,SMALL(IF(MyProgram!$K$7:$K$326,ROW($A$1:$A$320)),ROW($A62)),COLUMN(C$1)),"") ->  | D66: =IFERROR(INDEX(MyProgram!$A$7:$G$326,SMALL(IF(MyProgram!$K$7:$K$326,ROW($A$1:$A$320)),ROW($A62)),COLUMN(D$1)),"") ->  | F66: =IFERROR(INDEX(MyProgram!$A$7:$G$326,SMALL(IF(MyProgram!$K$7:$K$326,ROW($A$1:$A$320)),ROW($A62)),COLUMN(F$1)),"") -> 
A67: =IFERROR(INDEX(MyProgram!$A$7:$G$326,SMALL(IF(MyProgram!$K$7:$K$326,ROW($A$1:$A$320)),ROW($A63)),COLUMN(A$1)),"") ->  | B67: =IFERROR(INDEX(MyProgram!$A$7:$G$326,SMALL(IF(MyProgram!$K$7:$K$326,ROW($A$1:$A$320)),ROW($A63)),COLUMN(B$1)),"") ->  | C67: =IFERROR(INDEX(MyProgram!$A$7:$G$326,SMALL(IF(MyProgram!$K$7:$K$326,ROW($A$1:$A$320)),ROW($A63)),COLUMN(C$1)),"") ->  | D67: =IFERROR(INDEX(MyProgram!$A$7:$G$326,SMALL(IF(MyProgram!$K$7:$K$326,ROW($A$1:$A$320)),ROW($A63)),COLUMN(D$1)),"") ->  | E67: =IFERROR(INDEX(MyProgram!$A$7:$G$326,SMALL(IF(MyProgram!$K$7:$K$326,ROW($A$1:$A$320)),ROW($A63)),COLUMN(E$1)),"") ->  | F67: =IFERROR(INDEX(MyProgram!$A$7:$G$326,SMALL(IF(MyProgram!$K$7:$K$326,ROW($A$1:$A$320)),ROW($A63)),COLUMN(F$1)),"") ->  | G67: =IFERROR(INDEX(MyProgram!$A$7:$G$326,SMALL(IF(MyProgram!$K$7:$K$326,ROW($A$1:$A$320)),ROW($A63)),COLUMN(G$1)),"") -> 
B68: =IFERROR(INDEX(MyProgram!$A$7:$G$326,SMALL(IF(MyProgram!$K$7:$K$326,ROW($A$1:$A$320)),ROW($A64)),COLUMN(B$1)),"") ->  | C68: =IFERROR(INDEX(MyProgram!$A$7:$G$326,SMALL(IF(MyProgram!$K$7:$K$326,ROW($A$1:$A$320)),ROW($A64)),COLUMN(C$1)),"") ->  | D68: =IFERROR(INDEX(MyProgram!$A$7:$G$326,SMALL(IF(MyProgram!$K$7:$K$326,ROW($A$1:$A$320)),ROW($A64)),COLUMN(D$1)),"") ->  | F68: =IFERROR(INDEX(MyProgram!$A$7:$G$326,SMALL(IF(MyProgram!$K$7:$K$326,ROW($A$1:$A$320)),ROW($A64)),COLUMN(F$1)),"") -> 
A69: =IFERROR(INDEX(MyProgram!$A$7:$G$326,SMALL(IF(MyProgram!$K$7:$K$326,ROW($A$1:$A$320)),ROW($A65)),COLUMN(A$1)),"") ->  | B69: =IFERROR(INDEX(MyProgram!$A$7:$G$326,SMALL(IF(MyProgram!$K$7:$K$326,ROW($A$1:$A$320)),ROW($A65)),COLUMN(B$1)),"") ->  | C69: =IFERROR(INDEX(MyProgram!$A$7:$G$326,SMALL(IF(MyProgram!$K$7:$K$326,ROW($A$1:$A$320)),ROW($A65)),COLUMN(C$1)),"") ->  | D69: =IFERROR(INDEX(MyProgram!$A$7:$G$326,SMALL(IF(MyProgram!$K$7:$K$326,ROW($A$1:$A$320)),ROW($A65)),COLUMN(D$1)),"") ->  | E69: =IFERROR(INDEX(MyProgram!$A$7:$G$326,SMALL(IF(MyProgram!$K$7:$K$326,ROW($A$1:$A$320)),ROW($A65)),COLUMN(E$1)),"") ->  | F69: =IFERROR(INDEX(MyProgram!$A$7:$G$326,SMALL(IF(MyProgram!$K$7:$K$326,ROW($A$1:$A$320)),ROW($A65)),COLUMN(F$1)),"") ->  | G69: =IFERROR(INDEX(MyProgram!$A$7:$G$326,SMALL(IF(MyProgram!$K$7:$K$326,ROW($A$1:$A$320)),ROW($A65)),COLUMN(G$1)),"") -> 
B70: =IFERROR(INDEX(MyProgram!$A$7:$G$326,SMALL(IF(MyProgram!$K$7:$K$326,ROW($A$1:$A$320)),ROW($A66)),COLUMN(B$1)),"") ->  | C70: =IFERROR(INDEX(MyProgram!$A$7:$G$326,SMALL(IF(MyProgram!$K$7:$K$326,ROW($A$1:$A$320)),ROW($A66)),COLUMN(C$1)),"") ->  | D70: =IFERROR(INDEX(MyProgram!$A$7:$G$326,SMALL(IF(MyProgram!$K$7:$K$326,ROW($A$1:$A$320)),ROW($A66)),COLUMN(D$1)),"") ->  | F70: =IFERROR(INDEX(MyProgram!$A$7:$G$326,SMALL(IF(MyProgram!$K$7:$K$326,ROW($A$1:$A$320)),ROW($A66)),COLUMN(F$1)),"") -> 
A71: =IFERROR(INDEX(MyProgram!$A$7:$G$326,SMALL(IF(MyProgram!$K$7:$K$326,ROW($A$1:$A$320)),ROW($A67)),COLUMN(A$1)),"") ->  | B71: =IFERROR(INDEX(MyProgram!$A$7:$G$326,SMALL(IF(MyProgram!$K$7:$K$326,ROW($A$1:$A$320)),ROW($A67)),COLUMN(B$1)),"") ->  | C71: =IFERROR(INDEX(MyProgram!$A$7:$G$326,SMALL(IF(MyProgram!$K$7:$K$326,ROW($A$1:$A$320)),ROW($A67)),COLUMN(C$1)),"") ->  | D71: =IFERROR(INDEX(MyProgram!$A$7:$G$326,SMALL(IF(MyProgram!$K$7:$K$326,ROW($A$1:$A$320)),ROW($A67)),COLUMN(D$1)),"") ->  | E71: =IFERROR(INDEX(MyProgram!$A$7:$G$326,SMALL(IF(MyProgram!$K$7:$K$326,ROW($A$1:$A$320)),ROW($A67)),COLUMN(E$1)),"") ->  | F71: =IFERROR(INDEX(MyProgram!$A$7:$G$326,SMALL(IF(MyProgram!$K$7:$K$326,ROW($A$1:$A$320)),ROW($A67)),COLUMN(F$1)),"") ->  | G71: =IFERROR(INDEX(MyProgram!$A$7:$G$326,SMALL(IF(MyProgram!$K$7:$K$326,ROW($A$1:$A$320)),ROW($A67)),COLUMN(G$1)),"") -> 
B72: =IFERROR(INDEX(MyProgram!$A$7:$G$326,SMALL(IF(MyProgram!$K$7:$K$326,ROW($A$1:$A$320)),ROW($A68)),COLUMN(B$1)),"") ->  | C72: =IFERROR(INDEX(MyProgram!$A$7:$G$326,SMALL(IF(MyProgram!$K$7:$K$326,ROW($A$1:$A$320)),ROW($A68)),COLUMN(C$1)),"") ->  | D72: =IFERROR(INDEX(MyProgram!$A$7:$G$326,SMALL(IF(MyProgram!$K$7:$K$326,ROW($A$1:$A$320)),ROW($A68)),COLUMN(D$1)),"") ->  | F72: =IFERROR(INDEX(MyProgram!$A$7:$G$326,SMALL(IF(MyProgram!$K$7:$K$326,ROW($A$1:$A$320)),ROW($A68)),COLUMN(F$1)),"") -> 
A73: =IFERROR(INDEX(MyProgram!$A$7:$G$326,SMALL(IF(MyProgram!$K$7:$K$326,ROW($A$1:$A$320)),ROW($A69)),COLUMN(A$1)),"") ->  | B73: =IFERROR(INDEX(MyProgram!$A$7:$G$326,SMALL(IF(MyProgram!$K$7:$K$326,ROW($A$1:$A$320)),ROW($A69)),COLUMN(B$1)),"") ->  | C73: =IFERROR(INDEX(MyProgram!$A$7:$G$326,SMALL(IF(MyProgram!$K$7:$K$326,ROW($A$1:$A$320)),ROW($A69)),COLUMN(C$1)),"") ->  | D73: =IFERROR(INDEX(MyProgram!$A$7:$G$326,SMALL(IF(MyProgram!$K$7:$K$326,ROW($A$1:$A$320)),ROW($A69)),COLUMN(D$1)),"") ->  | E73: =IFERROR(INDEX(MyProgram!$A$7:$G$326,SMALL(IF(MyProgram!$K$7:$K$326,ROW($A$1:$A$320)),ROW($A69)),COLUMN(E$1)),"") ->  | F73: =IFERROR(INDEX(MyProgram!$A$7:$G$326,SMALL(IF(MyProgram!$K$7:$K$326,ROW($A$1:$A$320)),ROW($A69)),COLUMN(F$1)),"") ->  | G73: =IFERROR(INDEX(MyProgram!$A$7:$G$326,SMALL(IF(MyProgram!$K$7:$K$326,ROW($A$1:$A$320)),ROW($A69)),COLUMN(G$1)),"") -> 
B74: =IFERROR(INDEX(MyProgram!$A$7:$G$326,SMALL(IF(MyProgram!$K$7:$K$326,ROW($A$1:$A$320)),ROW($A70)),COLUMN(B$1)),"") ->  | C74: =IFERROR(INDEX(MyProgram!$A$7:$G$326,SMALL(IF(MyProgram!$K$7:$K$326,ROW($A$1:$A$320)),ROW($A70)),COLUMN(C$1)),"") ->  | D74: =IFERROR(INDEX(MyProgram!$A$7:$G$326,SMALL(IF(MyProgram!$K$7:$K$326,ROW($A$1:$A$320)),ROW($A70)),COLUMN(D$1)),"") ->  | F74: =IFERROR(INDEX(MyProgram!$A$7:$G$326,SMALL(IF(MyProgram!$K$7:$K$326,ROW($A$1:$A$320)),ROW($A70)),COLUMN(F$1)),"") -> 
A75: =IFERROR(INDEX(MyProgram!$A$7:$G$326,SMALL(IF(MyProgram!$K$7:$K$326,ROW($A$1:$A$320)),ROW($A71)),COLUMN(A$1)),"") ->  | B75: =IFERROR(INDEX(MyProgram!$A$7:$G$326,SMALL(IF(MyProgram!$K$7:$K$326,ROW($A$1:$A$320)),ROW($A71)),COLUMN(B$1)),"") ->  | C75: =IFERROR(INDEX(MyProgram!$A$7:$G$326,SMALL(IF(MyProgram!$K$7:$K$326,ROW($A$1:$A$320)),ROW($A71)),COLUMN(C$1)),"") ->  | D75: =IFERROR(INDEX(MyProgram!$A$7:$G$326,SMALL(IF(MyProgram!$K$7:$K$326,ROW($A$1:$A$320)),ROW($A71)),COLUMN(D$1)),"") ->  | E75: =IFERROR(INDEX(MyProgram!$A$7:$G$326,SMALL(IF(MyProgram!$K$7:$K$326,ROW($A$1:$A$320)),ROW($A71)),COLUMN(E$1)),"") ->  | F75: =IFERROR(INDEX(MyProgram!$A$7:$G$326,SMALL(IF(MyProgram!$K$7:$K$326,ROW($A$1:$A$320)),ROW($A71)),COLUMN(F$1)),"") ->  | G75: =IFERROR(INDEX(MyProgram!$A$7:$G$326,SMALL(IF(MyProgram!$K$7:$K$326,ROW($A$1:$A$320)),ROW($A71)),COLUMN(G$1)),"") -> 
B76: =IFERROR(INDEX(MyProgram!$A$7:$G$326,SMALL(IF(MyProgram!$K$7:$K$326,ROW($A$1:$A$320)),ROW($A72)),COLUMN(B$1)),"") ->  | C76: =IFERROR(INDEX(MyProgram!$A$7:$G$326,SMALL(IF(MyProgram!$K$7:$K$326,ROW($A$1:$A$320)),ROW($A72)),COLUMN(C$1)),"") ->  | D76: =IFERROR(INDEX(MyProgram!$A$7:$G$326,SMALL(IF(MyProgram!$K$7:$K$326,ROW($A$1:$A$320)),ROW($A72)),COLUMN(D$1)),"") ->  | F76: =IFERROR(INDEX(MyProgram!$A$7:$G$326,SMALL(IF(MyProgram!$K$7:$K$326,ROW($A$1:$A$320)),ROW($A72)),COLUMN(F$1)),"") -> 
A77: =IFERROR(INDEX(MyProgram!$A$7:$G$326,SMALL(IF(MyProgram!$K$7:$K$326,ROW($A$1:$A$320)),ROW($A73)),COLUMN(A$1)),"") ->  | B77: =IFERROR(INDEX(MyProgram!$A$7:$G$326,SMALL(IF(MyProgram!$K$7:$K$326,ROW($A$1:$A$320)),ROW($A73)),COLUMN(B$1)),"") ->  | C77: =IFERROR(INDEX(MyProgram!$A$7:$G$326,SMALL(IF(MyProgram!$K$7:$K$326,ROW($A$1:$A$320)),ROW($A73)),COLUMN(C$1)),"") ->  | D77: =IFERROR(INDEX(MyProgram!$A$7:$G$326,SMALL(IF(MyProgram!$K$7:$K$326,ROW($A$1:$A$320)),ROW($A73)),COLUMN(D$1)),"") ->  | E77: =IFERROR(INDEX(MyProgram!$A$7:$G$326,SMALL(IF(MyProgram!$K$7:$K$326,ROW($A$1:$A$320)),ROW($A73)),COLUMN(E$1)),"") ->  | F77: =IFERROR(INDEX(MyProgram!$A$7:$G$326,SMALL(IF(MyProgram!$K$7:$K$326,ROW($A$1:$A$320)),ROW($A73)),COLUMN(F$1)),"") ->  | G77: =IFERROR(INDEX(MyProgram!$A$7:$G$326,SMALL(IF(MyProgram!$K$7:$K$326,ROW($A$1:$A$320)),ROW($A73)),COLUMN(G$1)),"") -> 
B78: =IFERROR(INDEX(MyProgram!$A$7:$G$326,SMALL(IF(MyProgram!$K$7:$K$326,ROW($A$1:$A$320)),ROW($A74)),COLUMN(B$1)),"") ->  | C78: =IFERROR(INDEX(MyProgram!$A$7:$G$326,SMALL(IF(MyProgram!$K$7:$K$326,ROW($A$1:$A$320)),ROW($A74)),COLUMN(C$1)),"") ->  | D78: =IFERROR(INDEX(MyProgram!$A$7:$G$326,SMALL(IF(MyProgram!$K$7:$K$326,ROW($A$1:$A$320)),ROW($A74)),COLUMN(D$1)),"") ->  | F78: =IFERROR(INDEX(MyProgram!$A$7:$G$326,SMALL(IF(MyProgram!$K$7:$K$326,ROW($A$1:$A$320)),ROW($A74)),COLUMN(F$1)),"") -> 
A79: =IFERROR(INDEX(MyProgram!$A$7:$G$326,SMALL(IF(MyProgram!$K$7:$K$326,ROW($A$1:$A$320)),ROW($A75)),COLUMN(A$1)),"") ->  | B79: =IFERROR(INDEX(MyProgram!$A$7:$G$326,SMALL(IF(MyProgram!$K$7:$K$326,ROW($A$1:$A$320)),ROW($A75)),COLUMN(B$1)),"") ->  | C79: =IFERROR(INDEX(MyProgram!$A$7:$G$326,SMALL(IF(MyProgram!$K$7:$K$326,ROW($A$1:$A$320)),ROW($A75)),COLUMN(C$1)),"") ->  | D79: =IFERROR(INDEX(MyProgram!$A$7:$G$326,SMALL(IF(MyProgram!$K$7:$K$326,ROW($A$1:$A$320)),ROW($A75)),COLUMN(D$1)),"") ->  | E79: =IFERROR(INDEX(MyProgram!$A$7:$G$326,SMALL(IF(MyProgram!$K$7:$K$326,ROW($A$1:$A$320)),ROW($A75)),COLUMN(E$1)),"") ->  | F79: =IFERROR(INDEX(MyProgram!$A$7:$G$326,SMALL(IF(MyProgram!$K$7:$K$326,ROW($A$1:$A$320)),ROW($A75)),COLUMN(F$1)),"") ->  | G79: =IFERROR(INDEX(MyProgram!$A$7:$G$326,SMALL(IF(MyProgram!$K$7:$K$326,ROW($A$1:$A$320)),ROW($A75)),COLUMN(G$1)),"") -> 
B80: =IFERROR(INDEX(MyProgram!$A$7:$G$326,SMALL(IF(MyProgram!$K$7:$K$326,ROW($A$1:$A$320)),ROW($A76)),COLUMN(B$1)),"") ->  | C80: =IFERROR(INDEX(MyProgram!$A$7:$G$326,SMALL(IF(MyProgram!$K$7:$K$326,ROW($A$1:$A$320)),ROW($A76)),COLUMN(C$1)),"") ->  | D80: =IFERROR(INDEX(MyProgram!$A$7:$G$326,SMALL(IF(MyProgram!$K$7:$K$326,ROW($A$1:$A$320)),ROW($A76)),COLUMN(D$1)),"") ->  | F80: =IFERROR(INDEX(MyProgram!$A$7:$G$326,SMALL(IF(MyProgram!$K$7:$K$326,ROW($A$1:$A$320)),ROW($A76)),COLUMN(F$1)),"") -> 
A81: =IFERROR(INDEX(MyProgram!$A$7:$G$326,SMALL(IF(MyProgram!$K$7:$K$326,ROW($A$1:$A$320)),ROW($A77)),COLUMN(A$1)),"") ->  | B81: =IFERROR(INDEX(MyProgram!$A$7:$G$326,SMALL(IF(MyProgram!$K$7:$K$326,ROW($A$1:$A$320)),ROW($A77)),COLUMN(B$1)),"") ->  | C81: =IFERROR(INDEX(MyProgram!$A$7:$G$326,SMALL(IF(MyProgram!$K$7:$K$326,ROW($A$1:$A$320)),ROW($A77)),COLUMN(C$1)),"") ->  | D81: =IFERROR(INDEX(MyProgram!$A$7:$G$326,SMALL(IF(MyProgram!$K$7:$K$326,ROW($A$1:$A$320)),ROW($A77)),COLUMN(D$1)),"") ->  | E81: =IFERROR(INDEX(MyProgram!$A$7:$G$326,SMALL(IF(MyProgram!$K$7:$K$326,ROW($A$1:$A$320)),ROW($A77)),COLUMN(E$1)),"") ->  | F81: =IFERROR(INDEX(MyProgram!$A$7:$G$326,SMALL(IF(MyProgram!$K$7:$K$326,ROW($A$1:$A$320)),ROW($A77)),COLUMN(F$1)),"") ->  | G81: =IFERROR(INDEX(MyProgram!$A$7:$G$326,SMALL(IF(MyProgram!$K$7:$K$326,ROW($A$1:$A$320)),ROW($A77)),COLUMN(G$1)),"") -> 
B82: =IFERROR(INDEX(MyProgram!$A$7:$G$326,SMALL(IF(MyProgram!$K$7:$K$326,ROW($A$1:$A$320)),ROW($A78)),COLUMN(B$1)),"") ->  | C82: =IFERROR(INDEX(MyProgram!$A$7:$G$326,SMALL(IF(MyProgram!$K$7:$K$326,ROW($A$1:$A$320)),ROW($A78)),COLUMN(C$1)),"") ->  | D82: =IFERROR(INDEX(MyProgram!$A$7:$G$326,SMALL(IF(MyProgram!$K$7:$K$326,ROW($A$1:$A$320)),ROW($A78)),COLUMN(D$1)),"") ->  | F82: =IFERROR(INDEX(MyProgram!$A$7:$G$326,SMALL(IF(MyProgram!$K$7:$K$326,ROW($A$1:$A$320)),ROW($A78)),COLUMN(F$1)),"") -> 
A83: =IFERROR(INDEX(MyProgram!$A$7:$G$326,SMALL(IF(MyProgram!$K$7:$K$326,ROW($A$1:$A$320)),ROW($A79)),COLUMN(A$1)),"") ->  | B83: =IFERROR(INDEX(MyProgram!$A$7:$G$326,SMALL(IF(MyProgram!$K$7:$K$326,ROW($A$1:$A$320)),ROW($A79)),COLUMN(B$1)),"") ->  | C83: =IFERROR(INDEX(MyProgram!$A$7:$G$326,SMALL(IF(MyProgram!$K$7:$K$326,ROW($A$1:$A$320)),ROW($A79)),COLUMN(C$1)),"") ->  | D83: =IFERROR(INDEX(MyProgram!$A$7:$G$326,SMALL(IF(MyProgram!$K$7:$K$326,ROW($A$1:$A$320)),ROW($A79)),COLUMN(D$1)),"") ->  | E83: =IFERROR(INDEX(MyProgram!$A$7:$G$326,SMALL(IF(MyProgram!$K$7:$K$326,ROW($A$1:$A$320)),ROW($A79)),COLUMN(E$1)),"") ->  | F83: =IFERROR(INDEX(MyProgram!$A$7:$G$326,SMALL(IF(MyProgram!$K$7:$K$326,ROW($A$1:$A$320)),ROW($A79)),COLUMN(F$1)),"") ->  | G83: =IFERROR(INDEX(MyProgram!$A$7:$G$326,SMALL(IF(MyProgram!$K$7:$K$326,ROW($A$1:$A$320)),ROW($A79)),COLUMN(G$1)),"") -> 
B84: =IFERROR(INDEX(MyProgram!$A$7:$G$326,SMALL(IF(MyProgram!$K$7:$K$326,ROW($A$1:$A$320)),ROW($A80)),COLUMN(B$1)),"") ->  | C84: =IFERROR(INDEX(MyProgram!$A$7:$G$326,SMALL(IF(MyProgram!$K$7:$K$326,ROW($A$1:$A$320)),ROW($A80)),COLUMN(C$1)),"") ->  | D84: =IFERROR(INDEX(MyProgram!$A$7:$G$326,SMALL(IF(MyProgram!$K$7:$K$326,ROW($A$1:$A$320)),ROW($A80)),COLUMN(D$1)),"") ->  | F84: =IFERROR(INDEX(MyProgram!$A$7:$G$326,SMALL(IF(MyProgram!$K$7:$K$326,ROW($A$1:$A$320)),ROW($A80)),COLUMN(F$1)),"") -> 
A85: =IFERROR(INDEX(MyProgram!$A$7:$G$326,SMALL(IF(MyProgram!$K$7:$K$326,ROW($A$1:$A$320)),ROW($A81)),COLUMN(A$1)),"") ->  | B85: =IFERROR(INDEX(MyProgram!$A$7:$G$326,SMALL(IF(MyProgram!$K$7:$K$326,ROW($A$1:$A$320)),ROW($A81)),COLUMN(B$1)),"") ->  | C85: =IFERROR(INDEX(MyProgram!$A$7:$G$326,SMALL(IF(MyProgram!$K$7:$K$326,ROW($A$1:$A$320)),ROW($A81)),COLUMN(C$1)),"") ->  | D85: =IFERROR(INDEX(MyProgram!$A$7:$G$326,SMALL(IF(MyProgram!$K$7:$K$326,ROW($A$1:$A$320)),ROW($A81)),COLUMN(D$1)),"") ->  | E85: =IFERROR(INDEX(MyProgram!$A$7:$G$326,SMALL(IF(MyProgram!$K$7:$K$326,ROW($A$1:$A$320)),ROW($A81)),COLUMN(E$1)),"") ->  | F85: =IFERROR(INDEX(MyProgram!$A$7:$G$326,SMALL(IF(MyProgram!$K$7:$K$326,ROW($A$1:$A$320)),ROW($A81)),COLUMN(F$1)),"") ->  | G85: =IFERROR(INDEX(MyProgram!$A$7:$G$326,SMALL(IF(MyProgram!$K$7:$K$326,ROW($A$1:$A$320)),ROW($A81)),COLUMN(G$1)),"") -> 
B86: =IFERROR(INDEX(MyProgram!$A$7:$G$326,SMALL(IF(MyProgram!$K$7:$K$326,ROW($A$1:$A$320)),ROW($A82)),COLUMN(B$1)),"") ->  | C86: =IFERROR(INDEX(MyProgram!$A$7:$G$326,SMALL(IF(MyProgram!$K$7:$K$326,ROW($A$1:$A$320)),ROW($A82)),COLUMN(C$1)),"") ->  | D86: =IFERROR(INDEX(MyProgram!$A$7:$G$326,SMALL(IF(MyProgram!$K$7:$K$326,ROW($A$1:$A$320)),ROW($A82)),COLUMN(D$1)),"") ->  | F86: =IFERROR(INDEX(MyProgram!$A$7:$G$326,SMALL(IF(MyProgram!$K$7:$K$326,ROW($A$1:$A$320)),ROW($A82)),COLUMN(F$1)),"") -> 
A87: =IFERROR(INDEX(MyProgram!$A$7:$G$326,SMALL(IF(MyProgram!$K$7:$K$326,ROW($A$1:$A$320)),ROW($A83)),COLUMN(A$1)),"") ->  | B87: =IFERROR(INDEX(MyProgram!$A$7:$G$326,SMALL(IF(MyProgram!$K$7:$K$326,ROW($A$1:$A$320)),ROW($A83)),COLUMN(B$1)),"") ->  | C87: =IFERROR(INDEX(MyProgram!$A$7:$G$326,SMALL(IF(MyProgram!$K$7:$K$326,ROW($A$1:$A$320)),ROW($A83)),COLUMN(C$1)),"") ->  | D87: =IFERROR(INDEX(MyProgram!$A$7:$G$326,SMALL(IF(MyProgram!$K$7:$K$326,ROW($A$1:$A$320)),ROW($A83)),COLUMN(D$1)),"") ->  | E87: =IFERROR(INDEX(MyProgram!$A$7:$G$326,SMALL(IF(MyProgram!$K$7:$K$326,ROW($A$1:$A$320)),ROW($A83)),COLUMN(E$1)),"") ->  | F87: =IFERROR(INDEX(MyProgram!$A$7:$G$326,SMALL(IF(MyProgram!$K$7:$K$326,ROW($A$1:$A$320)),ROW($A83)),COLUMN(F$1)),"") ->  | G87: =IFERROR(INDEX(MyProgram!$A$7:$G$326,SMALL(IF(MyProgram!$K$7:$K$326,ROW($A$1:$A$320)),ROW($A83)),COLUMN(G$1)),"") -> 
B88: =IFERROR(INDEX(MyProgram!$A$7:$G$326,SMALL(IF(MyProgram!$K$7:$K$326,ROW($A$1:$A$320)),ROW($A84)),COLUMN(B$1)),"") ->  | C88: =IFERROR(INDEX(MyProgram!$A$7:$G$326,SMALL(IF(MyProgram!$K$7:$K$326,ROW($A$1:$A$320)),ROW($A84)),COLUMN(C$1)),"") ->  | D88: =IFERROR(INDEX(MyProgram!$A$7:$G$326,SMALL(IF(MyProgram!$K$7:$K$326,ROW($A$1:$A$320)),ROW($A84)),COLUMN(D$1)),"") ->  | F88: =IFERROR(INDEX(MyProgram!$A$7:$G$326,SMALL(IF(MyProgram!$K$7:$K$326,ROW($A$1:$A$320)),ROW($A84)),COLUMN(F$1)),"") -> 
A89: =IFERROR(INDEX(MyProgram!$A$7:$G$326,SMALL(IF(MyProgram!$K$7:$K$326,ROW($A$1:$A$320)),ROW($A85)),COLUMN(A$1)),"") ->  | B89: =IFERROR(INDEX(MyProgram!$A$7:$G$326,SMALL(IF(MyProgram!$K$7:$K$326,ROW($A$1:$A$320)),ROW($A85)),COLUMN(B$1)),"") ->  | C89: =IFERROR(INDEX(MyProgram!$A$7:$G$326,SMALL(IF(MyProgram!$K$7:$K$326,ROW($A$1:$A$320)),ROW($A85)),COLUMN(C$1)),"") ->  | D89: =IFERROR(INDEX(MyProgram!$A$7:$G$326,SMALL(IF(MyProgram!$K$7:$K$326,ROW($A$1:$A$320)),ROW($A85)),COLUMN(D$1)),"") ->  | E89: =IFERROR(INDEX(MyProgram!$A$7:$G$326,SMALL(IF(MyProgram!$K$7:$K$326,ROW($A$1:$A$320)),ROW($A85)),COLUMN(E$1)),"") ->  | F89: =IFERROR(INDEX(MyProgram!$A$7:$G$326,SMALL(IF(MyProgram!$K$7:$K$326,ROW($A$1:$A$320)),ROW($A85)),COLUMN(F$1)),"") ->  | G89: =IFERROR(INDEX(MyProgram!$A$7:$G$326,SMALL(IF(MyProgram!$K$7:$K$326,ROW($A$1:$A$320)),ROW($A85)),COLUMN(G$1)),"") -> 
B90: =IFERROR(INDEX(MyProgram!$A$7:$G$326,SMALL(IF(MyProgram!$K$7:$K$326,ROW($A$1:$A$320)),ROW($A86)),COLUMN(B$1)),"") ->  | C90: =IFERROR(INDEX(MyProgram!$A$7:$G$326,SMALL(IF(MyProgram!$K$7:$K$326,ROW($A$1:$A$320)),ROW($A86)),COLUMN(C$1)),"") ->  | D90: =IFERROR(INDEX(MyProgram!$A$7:$G$326,SMALL(IF(MyProgram!$K$7:$K$326,ROW($A$1:$A$320)),ROW($A86)),COLUMN(D$1)),"") ->  | F90: =IFERROR(INDEX(MyProgram!$A$7:$G$326,SMALL(IF(MyProgram!$K$7:$K$326,ROW($A$1:$A$320)),ROW($A86)),COLUMN(F$1)),"") -> 
A91: =IFERROR(INDEX(MyProgram!$A$7:$G$326,SMALL(IF(MyProgram!$K$7:$K$326,ROW($A$1:$A$320)),ROW($A87)),COLUMN(A$1)),"") ->  | B91: =IFERROR(INDEX(MyProgram!$A$7:$G$326,SMALL(IF(MyProgram!$K$7:$K$326,ROW($A$1:$A$320)),ROW($A87)),COLUMN(B$1)),"") ->  | C91: =IFERROR(INDEX(MyProgram!$A$7:$G$326,SMALL(IF(MyProgram!$K$7:$K$326,ROW($A$1:$A$320)),ROW($A87)),COLUMN(C$1)),"") ->  | D91: =IFERROR(INDEX(MyProgram!$A$7:$G$326,SMALL(IF(MyProgram!$K$7:$K$326,ROW($A$1:$A$320)),ROW($A87)),COLUMN(D$1)),"") ->  | E91: =IFERROR(INDEX(MyProgram!$A$7:$G$326,SMALL(IF(MyProgram!$K$7:$K$326,ROW($A$1:$A$320)),ROW($A87)),COLUMN(E$1)),"") ->  | F91: =IFERROR(INDEX(MyProgram!$A$7:$G$326,SMALL(IF(MyProgram!$K$7:$K$326,ROW($A$1:$A$320)),ROW($A87)),COLUMN(F$1)),"") ->  | G91: =IFERROR(INDEX(MyProgram!$A$7:$G$326,SMALL(IF(MyProgram!$K$7:$K$326,ROW($A$1:$A$320)),ROW($A87)),COLUMN(G$1)),"") -> 
B92: =IFERROR(INDEX(MyProgram!$A$7:$G$326,SMALL(IF(MyProgram!$K$7:$K$326,ROW($A$1:$A$320)),ROW($A88)),COLUMN(B$1)),"") ->  | C92: =IFERROR(INDEX(MyProgram!$A$7:$G$326,SMALL(IF(MyProgram!$K$7:$K$326,ROW($A$1:$A$320)),ROW($A88)),COLUMN(C$1)),"") ->  | D92: =IFERROR(INDEX(MyProgram!$A$7:$G$326,SMALL(IF(MyProgram!$K$7:$K$326,ROW($A$1:$A$320)),ROW($A88)),COLUMN(D$1)),"") ->  | F92: =IFERROR(INDEX(MyProgram!$A$7:$G$326,SMALL(IF(MyProgram!$K$7:$K$326,ROW($A$1:$A$320)),ROW($A88)),COLUMN(F$1)),"") -> 
A93: =IFERROR(INDEX(MyProgram!$A$7:$G$326,SMALL(IF(MyProgram!$K$7:$K$326,ROW($A$1:$A$320)),ROW($A89)),COLUMN(A$1)),"") ->  | B93: =IFERROR(INDEX(MyProgram!$A$7:$G$326,SMALL(IF(MyProgram!$K$7:$K$326,ROW($A$1:$A$320)),ROW($A89)),COLUMN(B$1)),"") ->  | C93: =IFERROR(INDEX(MyProgram!$A$7:$G$326,SMALL(IF(MyProgram!$K$7:$K$326,ROW($A$1:$A$320)),ROW($A89)),COLUMN(C$1)),"") ->  | D93: =IFERROR(INDEX(MyProgram!$A$7:$G$326,SMALL(IF(MyProgram!$K$7:$K$326,ROW($A$1:$A$320)),ROW($A89)),COLUMN(D$1)),"") ->  | E93: =IFERROR(INDEX(MyProgram!$A$7:$G$326,SMALL(IF(MyProgram!$K$7:$K$326,ROW($A$1:$A$320)),ROW($A89)),COLUMN(E$1)),"") ->  | F93: =IFERROR(INDEX(MyProgram!$A$7:$G$326,SMALL(IF(MyProgram!$K$7:$K$326,ROW($A$1:$A$320)),ROW($A89)),COLUMN(F$1)),"") ->  | G93: =IFERROR(INDEX(MyProgram!$A$7:$G$326,SMALL(IF(MyProgram!$K$7:$K$326,ROW($A$1:$A$320)),ROW($A89)),COLUMN(G$1)),"") -> 
B94: =IFERROR(INDEX(MyProgram!$A$7:$G$326,SMALL(IF(MyProgram!$K$7:$K$326,ROW($A$1:$A$320)),ROW($A90)),COLUMN(B$1)),"") ->  | C94: =IFERROR(INDEX(MyProgram!$A$7:$G$326,SMALL(IF(MyProgram!$K$7:$K$326,ROW($A$1:$A$320)),ROW($A90)),COLUMN(C$1)),"") ->  | D94: =IFERROR(INDEX(MyProgram!$A$7:$G$326,SMALL(IF(MyProgram!$K$7:$K$326,ROW($A$1:$A$320)),ROW($A90)),COLUMN(D$1)),"") ->  | F94: =IFERROR(INDEX(MyProgram!$A$7:$G$326,SMALL(IF(MyProgram!$K$7:$K$326,ROW($A$1:$A$320)),ROW($A90)),COLUMN(F$1)),"") -> 
A95: =IFERROR(INDEX(MyProgram!$A$7:$G$326,SMALL(IF(MyProgram!$K$7:$K$326,ROW($A$1:$A$320)),ROW($A91)),COLUMN(A$1)),"") ->  | B95: =IFERROR(INDEX(MyProgram!$A$7:$G$326,SMALL(IF(MyProgram!$K$7:$K$326,ROW($A$1:$A$320)),ROW($A91)),COLUMN(B$1)),"") ->  | C95: =IFERROR(INDEX(MyProgram!$A$7:$G$326,SMALL(IF(MyProgram!$K$7:$K$326,ROW($A$1:$A$320)),ROW($A91)),COLUMN(C$1)),"") ->  | D95: =IFERROR(INDEX(MyProgram!$A$7:$G$326,SMALL(IF(MyProgram!$K$7:$K$326,ROW($A$1:$A$320)),ROW($A91)),COLUMN(D$1)),"") ->  | E95: =IFERROR(INDEX(MyProgram!$A$7:$G$326,SMALL(IF(MyProgram!$K$7:$K$326,ROW($A$1:$A$320)),ROW($A91)),COLUMN(E$1)),"") ->  | F95: =IFERROR(INDEX(MyProgram!$A$7:$G$326,SMALL(IF(MyProgram!$K$7:$K$326,ROW($A$1:$A$320)),ROW($A91)),COLUMN(F$1)),"") ->  | G95: =IFERROR(INDEX(MyProgram!$A$7:$G$326,SMALL(IF(MyProgram!$K$7:$K$326,ROW($A$1:$A$320)),ROW($A91)),COLUMN(G$1)),"") -> 
B96: =IFERROR(INDEX(MyProgram!$A$7:$G$326,SMALL(IF(MyProgram!$K$7:$K$326,ROW($A$1:$A$320)),ROW($A92)),COLUMN(B$1)),"") ->  | C96: =IFERROR(INDEX(MyProgram!$A$7:$G$326,SMALL(IF(MyProgram!$K$7:$K$326,ROW($A$1:$A$320)),ROW($A92)),COLUMN(C$1)),"") ->  | D96: =IFERROR(INDEX(MyProgram!$A$7:$G$326,SMALL(IF(MyProgram!$K$7:$K$326,ROW($A$1:$A$320)),ROW($A92)),COLUMN(D$1)),"") ->  | F96: =IFERROR(INDEX(MyProgram!$A$7:$G$326,SMALL(IF(MyProgram!$K$7:$K$326,ROW($A$1:$A$320)),ROW($A92)),COLUMN(F$1)),"") -> 
A97: =IFERROR(INDEX(MyProgram!$A$7:$G$326,SMALL(IF(MyProgram!$K$7:$K$326,ROW($A$1:$A$320)),ROW($A93)),COLUMN(A$1)),"") ->  | B97: =IFERROR(INDEX(MyProgram!$A$7:$G$326,SMALL(IF(MyProgram!$K$7:$K$326,ROW($A$1:$A$320)),ROW($A93)),COLUMN(B$1)),"") ->  | C97: =IFERROR(INDEX(MyProgram!$A$7:$G$326,SMALL(IF(MyProgram!$K$7:$K$326,ROW($A$1:$A$320)),ROW($A93)),COLUMN(C$1)),"") ->  | D97: =IFERROR(INDEX(MyProgram!$A$7:$G$326,SMALL(IF(MyProgram!$K$7:$K$326,ROW($A$1:$A$320)),ROW($A93)),COLUMN(D$1)),"") ->  | E97: =IFERROR(INDEX(MyProgram!$A$7:$G$326,SMALL(IF(MyProgram!$K$7:$K$326,ROW($A$1:$A$320)),ROW($A93)),COLUMN(E$1)),"") ->  | F97: =IFERROR(INDEX(MyProgram!$A$7:$G$326,SMALL(IF(MyProgram!$K$7:$K$326,ROW($A$1:$A$320)),ROW($A93)),COLUMN(F$1)),"") ->  | G97: =IFERROR(INDEX(MyProgram!$A$7:$G$326,SMALL(IF(MyProgram!$K$7:$K$326,ROW($A$1:$A$320)),ROW($A93)),COLUMN(G$1)),"") -> 
B98: =IFERROR(INDEX(MyProgram!$A$7:$G$326,SMALL(IF(MyProgram!$K$7:$K$326,ROW($A$1:$A$320)),ROW($A94)),COLUMN(B$1)),"") ->  | C98: =IFERROR(INDEX(MyProgram!$A$7:$G$326,SMALL(IF(MyProgram!$K$7:$K$326,ROW($A$1:$A$320)),ROW($A94)),COLUMN(C$1)),"") ->  | D98: =IFERROR(INDEX(MyProgram!$A$7:$G$326,SMALL(IF(MyProgram!$K$7:$K$326,ROW($A$1:$A$320)),ROW($A94)),COLUMN(D$1)),"") ->  | F98: =IFERROR(INDEX(MyProgram!$A$7:$G$326,SMALL(IF(MyProgram!$K$7:$K$326,ROW($A$1:$A$320)),ROW($A94)),COLUMN(F$1)),"") -> 
A99: =IFERROR(INDEX(MyProgram!$A$7:$G$326,SMALL(IF(MyProgram!$K$7:$K$326,ROW($A$1:$A$320)),ROW($A95)),COLUMN(A$1)),"") ->  | B99: =IFERROR(INDEX(MyProgram!$A$7:$G$326,SMALL(IF(MyProgram!$K$7:$K$326,ROW($A$1:$A$320)),ROW($A95)),COLUMN(B$1)),"") ->  | C99: =IFERROR(INDEX(MyProgram!$A$7:$G$326,SMALL(IF(MyProgram!$K$7:$K$326,ROW($A$1:$A$320)),ROW($A95)),COLUMN(C$1)),"") ->  | D99: =IFERROR(INDEX(MyProgram!$A$7:$G$326,SMALL(IF(MyProgram!$K$7:$K$326,ROW($A$1:$A$320)),ROW($A95)),COLUMN(D$1)),"") ->  | E99: =IFERROR(INDEX(MyProgram!$A$7:$G$326,SMALL(IF(MyProgram!$K$7:$K$326,ROW($A$1:$A$320)),ROW($A95)),COLUMN(E$1)),"") ->  | F99: =IFERROR(INDEX(MyProgram!$A$7:$G$326,SMALL(IF(MyProgram!$K$7:$K$326,ROW($A$1:$A$320)),ROW($A95)),COLUMN(F$1)),"") ->  | G99: =IFERROR(INDEX(MyProgram!$A$7:$G$326,SMALL(IF(MyProgram!$K$7:$K$326,ROW($A$1:$A$320)),ROW($A95)),COLUMN(G$1)),"") -> 
B100: =IFERROR(INDEX(MyProgram!$A$7:$G$326,SMALL(IF(MyProgram!$K$7:$K$326,ROW($A$1:$A$320)),ROW($A96)),COLUMN(B$1)),"") ->  | C100: =IFERROR(INDEX(MyProgram!$A$7:$G$326,SMALL(IF(MyProgram!$K$7:$K$326,ROW($A$1:$A$320)),ROW($A96)),COLUMN(C$1)),"") ->  | D100: =IFERROR(INDEX(MyProgram!$A$7:$G$326,SMALL(IF(MyProgram!$K$7:$K$326,ROW($A$1:$A$320)),ROW($A96)),COLUMN(D$1)),"") ->  | F100: =IFERROR(INDEX(MyProgram!$A$7:$G$326,SMALL(IF(MyProgram!$K$7:$K$326,ROW($A$1:$A$320)),ROW($A96)),COLUMN(F$1)),"") -> 
A101: =IFERROR(INDEX(MyProgram!$A$7:$G$326,SMALL(IF(MyProgram!$K$7:$K$326,ROW($A$1:$A$320)),ROW($A97)),COLUMN(A$1)),"") ->  | B101: =IFERROR(INDEX(MyProgram!$A$7:$G$326,SMALL(IF(MyProgram!$K$7:$K$326,ROW($A$1:$A$320)),ROW($A97)),COLUMN(B$1)),"") ->  | C101: =IFERROR(INDEX(MyProgram!$A$7:$G$326,SMALL(IF(MyProgram!$K$7:$K$326,ROW($A$1:$A$320)),ROW($A97)),COLUMN(C$1)),"") ->  | D101: =IFERROR(INDEX(MyProgram!$A$7:$G$326,SMALL(IF(MyProgram!$K$7:$K$326,ROW($A$1:$A$320)),ROW($A97)),COLUMN(D$1)),"") ->  | E101: =IFERROR(INDEX(MyProgram!$A$7:$G$326,SMALL(IF(MyProgram!$K$7:$K$326,ROW($A$1:$A$320)),ROW($A97)),COLUMN(E$1)),"") ->  | F101: =IFERROR(INDEX(MyProgram!$A$7:$G$326,SMALL(IF(MyProgram!$K$7:$K$326,ROW($A$1:$A$320)),ROW($A97)),COLUMN(F$1)),"") ->  | G101: =IFERROR(INDEX(MyProgram!$A$7:$G$326,SMALL(IF(MyProgram!$K$7:$K$326,ROW($A$1:$A$320)),ROW($A97)),COLUMN(G$1)),"") -> 
B102: =IFERROR(INDEX(MyProgram!$A$7:$G$326,SMALL(IF(MyProgram!$K$7:$K$326,ROW($A$1:$A$320)),ROW($A98)),COLUMN(B$1)),"") ->  | C102: =IFERROR(INDEX(MyProgram!$A$7:$G$326,SMALL(IF(MyProgram!$K$7:$K$326,ROW($A$1:$A$320)),ROW($A98)),COLUMN(C$1)),"") ->  | D102: =IFERROR(INDEX(MyProgram!$A$7:$G$326,SMALL(IF(MyProgram!$K$7:$K$326,ROW($A$1:$A$320)),ROW($A98)),COLUMN(D$1)),"") ->  | F102: =IFERROR(INDEX(MyProgram!$A$7:$G$326,SMALL(IF(MyProgram!$K$7:$K$326,ROW($A$1:$A$320)),ROW($A98)),COLUMN(F$1)),"") -> 
A103: =IFERROR(INDEX(MyProgram!$A$7:$G$326,SMALL(IF(MyProgram!$K$7:$K$326,ROW($A$1:$A$320)),ROW($A99)),COLUMN(A$1)),"") ->  | B103: =IFERROR(INDEX(MyProgram!$A$7:$G$326,SMALL(IF(MyProgram!$K$7:$K$326,ROW($A$1:$A$320)),ROW($A99)),COLUMN(B$1)),"") ->  | C103: =IFERROR(INDEX(MyProgram!$A$7:$G$326,SMALL(IF(MyProgram!$K$7:$K$326,ROW($A$1:$A$320)),ROW($A99)),COLUMN(C$1)),"") ->  | D103: =IFERROR(INDEX(MyProgram!$A$7:$G$326,SMALL(IF(MyProgram!$K$7:$K$326,ROW($A$1:$A$320)),ROW($A99)),COLUMN(D$1)),"") ->  | E103: =IFERROR(INDEX(MyProgram!$A$7:$G$326,SMALL(IF(MyProgram!$K$7:$K$326,ROW($A$1:$A$320)),ROW($A99)),COLUMN(E$1)),"") ->  | F103: =IFERROR(INDEX(MyProgram!$A$7:$G$326,SMALL(IF(MyProgram!$K$7:$K$326,ROW($A$1:$A$320)),ROW($A99)),COLUMN(F$1)),"") ->  | G103: =IFERROR(INDEX(MyProgram!$A$7:$G$326,SMALL(IF(MyProgram!$K$7:$K$326,ROW($A$1:$A$320)),ROW($A99)),COLUMN(G$1)),"") -> 
B104: =IFERROR(INDEX(MyProgram!$A$7:$G$326,SMALL(IF(MyProgram!$K$7:$K$326,ROW($A$1:$A$320)),ROW($A100)),COLUMN(B$1)),"") ->  | C104: =IFERROR(INDEX(MyProgram!$A$7:$G$326,SMALL(IF(MyProgram!$K$7:$K$326,ROW($A$1:$A$320)),ROW($A100)),COLUMN(C$1)),"") ->  | D104: =IFERROR(INDEX(MyProgram!$A$7:$G$326,SMALL(IF(MyProgram!$K$7:$K$326,ROW($A$1:$A$320)),ROW($A100)),COLUMN(D$1)),"") ->  | F104: =IFERROR(INDEX(MyProgram!$A$7:$G$326,SMALL(IF(MyProgram!$K$7:$K$326,ROW($A$1:$A$320)),ROW($A100)),COLUMN(F$1)),"") -> 
A105: =IFERROR(INDEX(MyProgram!$A$7:$G$326,SMALL(IF(MyProgram!$K$7:$K$326,ROW($A$1:$A$320)),ROW($A101)),COLUMN(A$1)),"") ->  | B105: =IFERROR(INDEX(MyProgram!$A$7:$G$326,SMALL(IF(MyProgram!$K$7:$K$326,ROW($A$1:$A$320)),ROW($A101)),COLUMN(B$1)),"") ->  | C105: =IFERROR(INDEX(MyProgram!$A$7:$G$326,SMALL(IF(MyProgram!$K$7:$K$326,ROW($A$1:$A$320)),ROW($A101)),COLUMN(C$1)),"") ->  | D105: =IFERROR(INDEX(MyProgram!$A$7:$G$326,SMALL(IF(MyProgram!$K$7:$K$326,ROW($A$1:$A$320)),ROW($A101)),COLUMN(D$1)),"") ->  | E105: =IFERROR(INDEX(MyProgram!$A$7:$G$326,SMALL(IF(MyProgram!$K$7:$K$326,ROW($A$1:$A$320)),ROW($A101)),COLUMN(E$1)),"") ->  | F105: =IFERROR(INDEX(MyProgram!$A$7:$G$326,SMALL(IF(MyProgram!$K$7:$K$326,ROW($A$1:$A$320)),ROW($A101)),COLUMN(F$1)),"") ->  | G105: =IFERROR(INDEX(MyProgram!$A$7:$G$326,SMALL(IF(MyProgram!$K$7:$K$326,ROW($A$1:$A$320)),ROW($A101)),COLUMN(G$1)),"") -> 
B106: =IFERROR(INDEX(MyProgram!$A$7:$G$326,SMALL(IF(MyProgram!$K$7:$K$326,ROW($A$1:$A$320)),ROW($A102)),COLUMN(B$1)),"") ->  | C106: =IFERROR(INDEX(MyProgram!$A$7:$G$326,SMALL(IF(MyProgram!$K$7:$K$326,ROW($A$1:$A$320)),ROW($A102)),COLUMN(C$1)),"") ->  | D106: =IFERROR(INDEX(MyProgram!$A$7:$G$326,SMALL(IF(MyProgram!$K$7:$K$326,ROW($A$1:$A$320)),ROW($A102)),COLUMN(D$1)),"") ->  | F106: =IFERROR(INDEX(MyProgram!$A$7:$G$326,SMALL(IF(MyProgram!$K$7:$K$326,ROW($A$1:$A$320)),ROW($A102)),COLUMN(F$1)),"") -> 
A107: =IFERROR(INDEX(MyProgram!$A$7:$G$326,SMALL(IF(MyProgram!$K$7:$K$326,ROW($A$1:$A$320)),ROW($A103)),COLUMN(A$1)),"") ->  | B107: =IFERROR(INDEX(MyProgram!$A$7:$G$326,SMALL(IF(MyProgram!$K$7:$K$326,ROW($A$1:$A$320)),ROW($A103)),COLUMN(B$1)),"") ->  | C107: =IFERROR(INDEX(MyProgram!$A$7:$G$326,SMALL(IF(MyProgram!$K$7:$K$326,ROW($A$1:$A$320)),ROW($A103)),COLUMN(C$1)),"") ->  | D107: =IFERROR(INDEX(MyProgram!$A$7:$G$326,SMALL(IF(MyProgram!$K$7:$K$326,ROW($A$1:$A$320)),ROW($A103)),COLUMN(D$1)),"") ->  | E107: =IFERROR(INDEX(MyProgram!$A$7:$G$326,SMALL(IF(MyProgram!$K$7:$K$326,ROW($A$1:$A$320)),ROW($A103)),COLUMN(E$1)),"") ->  | F107: =IFERROR(INDEX(MyProgram!$A$7:$G$326,SMALL(IF(MyProgram!$K$7:$K$326,ROW($A$1:$A$320)),ROW($A103)),COLUMN(F$1)),"") ->  | G107: =IFERROR(INDEX(MyProgram!$A$7:$G$326,SMALL(IF(MyProgram!$K$7:$K$326,ROW($A$1:$A$320)),ROW($A103)),COLUMN(G$1)),"") -> 
B108: =IFERROR(INDEX(MyProgram!$A$7:$G$326,SMALL(IF(MyProgram!$K$7:$K$326,ROW($A$1:$A$320)),ROW($A104)),COLUMN(B$1)),"") ->  | C108: =IFERROR(INDEX(MyProgram!$A$7:$G$326,SMALL(IF(MyProgram!$K$7:$K$326,ROW($A$1:$A$320)),ROW($A104)),COLUMN(C$1)),"") ->  | D108: =IFERROR(INDEX(MyProgram!$A$7:$G$326,SMALL(IF(MyProgram!$K$7:$K$326,ROW($A$1:$A$320)),ROW($A104)),COLUMN(D$1)),"") ->  | F108: =IFERROR(INDEX(MyProgram!$A$7:$G$326,SMALL(IF(MyProgram!$K$7:$K$326,ROW($A$1:$A$320)),ROW($A104)),COLUMN(F$1)),"") -> 
A109: =IFERROR(INDEX(MyProgram!$A$7:$G$326,SMALL(IF(MyProgram!$K$7:$K$326,ROW($A$1:$A$320)),ROW($A105)),COLUMN(A$1)),"") ->  | B109: =IFERROR(INDEX(MyProgram!$A$7:$G$326,SMALL(IF(MyProgram!$K$7:$K$326,ROW($A$1:$A$320)),ROW($A105)),COLUMN(B$1)),"") ->  | C109: =IFERROR(INDEX(MyProgram!$A$7:$G$326,SMALL(IF(MyProgram!$K$7:$K$326,ROW($A$1:$A$320)),ROW($A105)),COLUMN(C$1)),"") ->  | D109: =IFERROR(INDEX(MyProgram!$A$7:$G$326,SMALL(IF(MyProgram!$K$7:$K$326,ROW($A$1:$A$320)),ROW($A105)),COLUMN(D$1)),"") ->  | E109: =IFERROR(INDEX(MyProgram!$A$7:$G$326,SMALL(IF(MyProgram!$K$7:$K$326,ROW($A$1:$A$320)),ROW($A105)),COLUMN(E$1)),"") ->  | F109: =IFERROR(INDEX(MyProgram!$A$7:$G$326,SMALL(IF(MyProgram!$K$7:$K$326,ROW($A$1:$A$320)),ROW($A105)),COLUMN(F$1)),"") ->  | G109: =IFERROR(INDEX(MyProgram!$A$7:$G$326,SMALL(IF(MyProgram!$K$7:$K$326,ROW($A$1:$A$320)),ROW($A105)),COLUMN(G$1)),"") -> 
B110: =IFERROR(INDEX(MyProgram!$A$7:$G$326,SMALL(IF(MyProgram!$K$7:$K$326,ROW($A$1:$A$320)),ROW($A106)),COLUMN(B$1)),"") ->  | C110: =IFERROR(INDEX(MyProgram!$A$7:$G$326,SMALL(IF(MyProgram!$K$7:$K$326,ROW($A$1:$A$320)),ROW($A106)),COLUMN(C$1)),"") ->  | D110: =IFERROR(INDEX(MyProgram!$A$7:$G$326,SMALL(IF(MyProgram!$K$7:$K$326,ROW($A$1:$A$320)),ROW($A106)),COLUMN(D$1)),"") ->  | F110: =IFERROR(INDEX(MyProgram!$A$7:$G$326,SMALL(IF(MyProgram!$K$7:$K$326,ROW($A$1:$A$320)),ROW($A106)),COLUMN(F$1)),"") -> 
A111: =IFERROR(INDEX(MyProgram!$A$7:$G$326,SMALL(IF(MyProgram!$K$7:$K$326,ROW($A$1:$A$320)),ROW($A107)),COLUMN(A$1)),"") ->  | B111: =IFERROR(INDEX(MyProgram!$A$7:$G$326,SMALL(IF(MyProgram!$K$7:$K$326,ROW($A$1:$A$320)),ROW($A107)),COLUMN(B$1)),"") ->  | C111: =IFERROR(INDEX(MyProgram!$A$7:$G$326,SMALL(IF(MyProgram!$K$7:$K$326,ROW($A$1:$A$320)),ROW($A107)),COLUMN(C$1)),"") ->  | D111: =IFERROR(INDEX(MyProgram!$A$7:$G$326,SMALL(IF(MyProgram!$K$7:$K$326,ROW($A$1:$A$320)),ROW($A107)),COLUMN(D$1)),"") ->  | E111: =IFERROR(INDEX(MyProgram!$A$7:$G$326,SMALL(IF(MyProgram!$K$7:$K$326,ROW($A$1:$A$320)),ROW($A107)),COLUMN(E$1)),"") ->  | F111: =IFERROR(INDEX(MyProgram!$A$7:$G$326,SMALL(IF(MyProgram!$K$7:$K$326,ROW($A$1:$A$320)),ROW($A107)),COLUMN(F$1)),"") ->  | G111: =IFERROR(INDEX(MyProgram!$A$7:$G$326,SMALL(IF(MyProgram!$K$7:$K$326,ROW($A$1:$A$320)),ROW($A107)),COLUMN(G$1)),"") -> 
B112: =IFERROR(INDEX(MyProgram!$A$7:$G$326,SMALL(IF(MyProgram!$K$7:$K$326,ROW($A$1:$A$320)),ROW($A108)),COLUMN(B$1)),"") ->  | C112: =IFERROR(INDEX(MyProgram!$A$7:$G$326,SMALL(IF(MyProgram!$K$7:$K$326,ROW($A$1:$A$320)),ROW($A108)),COLUMN(C$1)),"") ->  | D112: =IFERROR(INDEX(MyProgram!$A$7:$G$326,SMALL(IF(MyProgram!$K$7:$K$326,ROW($A$1:$A$320)),ROW($A108)),COLUMN(D$1)),"") ->  | F112: =IFERROR(INDEX(MyProgram!$A$7:$G$326,SMALL(IF(MyProgram!$K$7:$K$326,ROW($A$1:$A$320)),ROW($A108)),COLUMN(F$1)),"") -> 
A113: =IFERROR(INDEX(MyProgram!$A$7:$G$326,SMALL(IF(MyProgram!$K$7:$K$326,ROW($A$1:$A$320)),ROW($A109)),COLUMN(A$1)),"") ->  | B113: =IFERROR(INDEX(MyProgram!$A$7:$G$326,SMALL(IF(MyProgram!$K$7:$K$326,ROW($A$1:$A$320)),ROW($A109)),COLUMN(B$1)),"") ->  | C113: =IFERROR(INDEX(MyProgram!$A$7:$G$326,SMALL(IF(MyProgram!$K$7:$K$326,ROW($A$1:$A$320)),ROW($A109)),COLUMN(C$1)),"") ->  | D113: =IFERROR(INDEX(MyProgram!$A$7:$G$326,SMALL(IF(MyProgram!$K$7:$K$326,ROW($A$1:$A$320)),ROW($A109)),COLUMN(D$1)),"") ->  | E113: =IFERROR(INDEX(MyProgram!$A$7:$G$326,SMALL(IF(MyProgram!$K$7:$K$326,ROW($A$1:$A$320)),ROW($A109)),COLUMN(E$1)),"") ->  | F113: =IFERROR(INDEX(MyProgram!$A$7:$G$326,SMALL(IF(MyProgram!$K$7:$K$326,ROW($A$1:$A$320)),ROW($A109)),COLUMN(F$1)),"") ->  | G113: =IFERROR(INDEX(MyProgram!$A$7:$G$326,SMALL(IF(MyProgram!$K$7:$K$326,ROW($A$1:$A$320)),ROW($A109)),COLUMN(G$1)),"") -> 
B114: =IFERROR(INDEX(MyProgram!$A$7:$G$326,SMALL(IF(MyProgram!$K$7:$K$326,ROW($A$1:$A$320)),ROW($A110)),COLUMN(B$1)),"") ->  | C114: =IFERROR(INDEX(MyProgram!$A$7:$G$326,SMALL(IF(MyProgram!$K$7:$K$326,ROW($A$1:$A$320)),ROW($A110)),COLUMN(C$1)),"") ->  | D114: =IFERROR(INDEX(MyProgram!$A$7:$G$326,SMALL(IF(MyProgram!$K$7:$K$326,ROW($A$1:$A$320)),ROW($A110)),COLUMN(D$1)),"") ->  | F114: =IFERROR(INDEX(MyProgram!$A$7:$G$326,SMALL(IF(MyProgram!$K$7:$K$326,ROW($A$1:$A$320)),ROW($A110)),COLUMN(F$1)),"") -> 
A115: =IFERROR(INDEX(MyProgram!$A$7:$G$326,SMALL(IF(MyProgram!$K$7:$K$326,ROW($A$1:$A$320)),ROW($A111)),COLUMN(A$1)),"") ->  | B115: =IFERROR(INDEX(MyProgram!$A$7:$G$326,SMALL(IF(MyProgram!$K$7:$K$326,ROW($A$1:$A$320)),ROW($A111)),COLUMN(B$1)),"") ->  | C115: =IFERROR(INDEX(MyProgram!$A$7:$G$326,SMALL(IF(MyProgram!$K$7:$K$326,ROW($A$1:$A$320)),ROW($A111)),COLUMN(C$1)),"") ->  | D115: =IFERROR(INDEX(MyProgram!$A$7:$G$326,SMALL(IF(MyProgram!$K$7:$K$326,ROW($A$1:$A$320)),ROW($A111)),COLUMN(D$1)),"") ->  | E115: =IFERROR(INDEX(MyProgram!$A$7:$G$326,SMALL(IF(MyProgram!$K$7:$K$326,ROW($A$1:$A$320)),ROW($A111)),COLUMN(E$1)),"") ->  | F115: =IFERROR(INDEX(MyProgram!$A$7:$G$326,SMALL(IF(MyProgram!$K$7:$K$326,ROW($A$1:$A$320)),ROW($A111)),COLUMN(F$1)),"") ->  | G115: =IFERROR(INDEX(MyProgram!$A$7:$G$326,SMALL(IF(MyProgram!$K$7:$K$326,ROW($A$1:$A$320)),ROW($A111)),COLUMN(G$1)),"") -> 
B116: =IFERROR(INDEX(MyProgram!$A$7:$G$326,SMALL(IF(MyProgram!$K$7:$K$326,ROW($A$1:$A$320)),ROW($A112)),COLUMN(B$1)),"") ->  | C116: =IFERROR(INDEX(MyProgram!$A$7:$G$326,SMALL(IF(MyProgram!$K$7:$K$326,ROW($A$1:$A$320)),ROW($A112)),COLUMN(C$1)),"") ->  | D116: =IFERROR(INDEX(MyProgram!$A$7:$G$326,SMALL(IF(MyProgram!$K$7:$K$326,ROW($A$1:$A$320)),ROW($A112)),COLUMN(D$1)),"") ->  | F116: =IFERROR(INDEX(MyProgram!$A$7:$G$326,SMALL(IF(MyProgram!$K$7:$K$326,ROW($A$1:$A$320)),ROW($A112)),COLUMN(F$1)),"") -> 
A117: =IFERROR(INDEX(MyProgram!$A$7:$G$326,SMALL(IF(MyProgram!$K$7:$K$326,ROW($A$1:$A$320)),ROW($A113)),COLUMN(A$1)),"") ->  | B117: =IFERROR(INDEX(MyProgram!$A$7:$G$326,SMALL(IF(MyProgram!$K$7:$K$326,ROW($A$1:$A$320)),ROW($A113)),COLUMN(B$1)),"") ->  | C117: =IFERROR(INDEX(MyProgram!$A$7:$G$326,SMALL(IF(MyProgram!$K$7:$K$326,ROW($A$1:$A$320)),ROW($A113)),COLUMN(C$1)),"") ->  | D117: =IFERROR(INDEX(MyProgram!$A$7:$G$326,SMALL(IF(MyProgram!$K$7:$K$326,ROW($A$1:$A$320)),ROW($A113)),COLUMN(D$1)),"") ->  | E117: =IFERROR(INDEX(MyProgram!$A$7:$G$326,SMALL(IF(MyProgram!$K$7:$K$326,ROW($A$1:$A$320)),ROW($A113)),COLUMN(E$1)),"") ->  | F117: =IFERROR(INDEX(MyProgram!$A$7:$G$326,SMALL(IF(MyProgram!$K$7:$K$326,ROW($A$1:$A$320)),ROW($A113)),COLUMN(F$1)),"") ->  | G117: =IFERROR(INDEX(MyProgram!$A$7:$G$326,SMALL(IF(MyProgram!$K$7:$K$326,ROW($A$1:$A$320)),ROW($A113)),COLUMN(G$1)),"") -> 
B118: =IFERROR(INDEX(MyProgram!$A$7:$G$326,SMALL(IF(MyProgram!$K$7:$K$326,ROW($A$1:$A$320)),ROW($A114)),COLUMN(B$1)),"") ->  | C118: =IFERROR(INDEX(MyProgram!$A$7:$G$326,SMALL(IF(MyProgram!$K$7:$K$326,ROW($A$1:$A$320)),ROW($A114)),COLUMN(C$1)),"") ->  | D118: =IFERROR(INDEX(MyProgram!$A$7:$G$326,SMALL(IF(MyProgram!$K$7:$K$326,ROW($A$1:$A$320)),ROW($A114)),COLUMN(D$1)),"") ->  | F118: =IFERROR(INDEX(MyProgram!$A$7:$G$326,SMALL(IF(MyProgram!$K$7:$K$326,ROW($A$1:$A$320)),ROW($A114)),COLUMN(F$1)),"") -> 
A119: =IFERROR(INDEX(MyProgram!$A$7:$G$326,SMALL(IF(MyProgram!$K$7:$K$326,ROW($A$1:$A$320)),ROW($A115)),COLUMN(A$1)),"") ->  | B119: =IFERROR(INDEX(MyProgram!$A$7:$G$326,SMALL(IF(MyProgram!$K$7:$K$326,ROW($A$1:$A$320)),ROW($A115)),COLUMN(B$1)),"") ->  | C119: =IFERROR(INDEX(MyProgram!$A$7:$G$326,SMALL(IF(MyProgram!$K$7:$K$326,ROW($A$1:$A$320)),ROW($A115)),COLUMN(C$1)),"") ->  | D119: =IFERROR(INDEX(MyProgram!$A$7:$G$326,SMALL(IF(MyProgram!$K$7:$K$326,ROW($A$1:$A$320)),ROW($A115)),COLUMN(D$1)),"") ->  | E119: =IFERROR(INDEX(MyProgram!$A$7:$G$326,SMALL(IF(MyProgram!$K$7:$K$326,ROW($A$1:$A$320)),ROW($A115)),COLUMN(E$1)),"") ->  | F119: =IFERROR(INDEX(MyProgram!$A$7:$G$326,SMALL(IF(MyProgram!$K$7:$K$326,ROW($A$1:$A$320)),ROW($A115)),COLUMN(F$1)),"") ->  | G119: =IFERROR(INDEX(MyProgram!$A$7:$G$326,SMALL(IF(MyProgram!$K$7:$K$326,ROW($A$1:$A$320)),ROW($A115)),COLUMN(G$1)),"") -> 
B120: =IFERROR(INDEX(MyProgram!$A$7:$G$326,SMALL(IF(MyProgram!$K$7:$K$326,ROW($A$1:$A$320)),ROW($A116)),COLUMN(B$1)),"") ->  | C120: =IFERROR(INDEX(MyProgram!$A$7:$G$326,SMALL(IF(MyProgram!$K$7:$K$326,ROW($A$1:$A$320)),ROW($A116)),COLUMN(C$1)),"") ->  | D120: =IFERROR(INDEX(MyProgram!$A$7:$G$326,SMALL(IF(MyProgram!$K$7:$K$326,ROW($A$1:$A$320)),ROW($A116)),COLUMN(D$1)),"") ->  | F120: =IFERROR(INDEX(MyProgram!$A$7:$G$326,SMALL(IF(MyProgram!$K$7:$K$326,ROW($A$1:$A$320)),ROW($A116)),COLUMN(F$1)),"") -> 
A121: =IFERROR(INDEX(MyProgram!$A$7:$G$326,SMALL(IF(MyProgram!$K$7:$K$326,ROW($A$1:$A$320)),ROW($A117)),COLUMN(A$1)),"") ->  | B121: =IFERROR(INDEX(MyProgram!$A$7:$G$326,SMALL(IF(MyProgram!$K$7:$K$326,ROW($A$1:$A$320)),ROW($A117)),COLUMN(B$1)),"") ->  | C121: =IFERROR(INDEX(MyProgram!$A$7:$G$326,SMALL(IF(MyProgram!$K$7:$K$326,ROW($A$1:$A$320)),ROW($A117)),COLUMN(C$1)),"") ->  | D121: =IFERROR(INDEX(MyProgram!$A$7:$G$326,SMALL(IF(MyProgram!$K$7:$K$326,ROW($A$1:$A$320)),ROW($A117)),COLUMN(D$1)),"") ->  | E121: =IFERROR(INDEX(MyProgram!$A$7:$G$326,SMALL(IF(MyProgram!$K$7:$K$326,ROW($A$1:$A$320)),ROW($A117)),COLUMN(E$1)),"") ->  | F121: =IFERROR(INDEX(MyProgram!$A$7:$G$326,SMALL(IF(MyProgram!$K$7:$K$326,ROW($A$1:$A$320)),ROW($A117)),COLUMN(F$1)),"") ->  | G121: =IFERROR(INDEX(MyProgram!$A$7:$G$326,SMALL(IF(MyProgram!$K$7:$K$326,ROW($A$1:$A$320)),ROW($A117)),COLUMN(G$1)),"") -> 
B122: =IFERROR(INDEX(MyProgram!$A$7:$G$326,SMALL(IF(MyProgram!$K$7:$K$326,ROW($A$1:$A$320)),ROW($A118)),COLUMN(B$1)),"") ->  | C122: =IFERROR(INDEX(MyProgram!$A$7:$G$326,SMALL(IF(MyProgram!$K$7:$K$326,ROW($A$1:$A$320)),ROW($A118)),COLUMN(C$1)),"") ->  | D122: =IFERROR(INDEX(MyProgram!$A$7:$G$326,SMALL(IF(MyProgram!$K$7:$K$326,ROW($A$1:$A$320)),ROW($A118)),COLUMN(D$1)),"") ->  | F122: =IFERROR(INDEX(MyProgram!$A$7:$G$326,SMALL(IF(MyProgram!$K$7:$K$326,ROW($A$1:$A$320)),ROW($A118)),COLUMN(F$1)),"") -> 
A123: =IFERROR(INDEX(MyProgram!$A$7:$G$326,SMALL(IF(MyProgram!$K$7:$K$326,ROW($A$1:$A$320)),ROW($A119)),COLUMN(A$1)),"") ->  | B123: =IFERROR(INDEX(MyProgram!$A$7:$G$326,SMALL(IF(MyProgram!$K$7:$K$326,ROW($A$1:$A$320)),ROW($A119)),COLUMN(B$1)),"") ->  | C123: =IFERROR(INDEX(MyProgram!$A$7:$G$326,SMALL(IF(MyProgram!$K$7:$K$326,ROW($A$1:$A$320)),ROW($A119)),COLUMN(C$1)),"") ->  | D123: =IFERROR(INDEX(MyProgram!$A$7:$G$326,SMALL(IF(MyProgram!$K$7:$K$326,ROW($A$1:$A$320)),ROW($A119)),COLUMN(D$1)),"") ->  | E123: =IFERROR(INDEX(MyProgram!$A$7:$G$326,SMALL(IF(MyProgram!$K$7:$K$326,ROW($A$1:$A$320)),ROW($A119)),COLUMN(E$1)),"") ->  | F123: =IFERROR(INDEX(MyProgram!$A$7:$G$326,SMALL(IF(MyProgram!$K$7:$K$326,ROW($A$1:$A$320)),ROW($A119)),COLUMN(F$1)),"") ->  | G123: =IFERROR(INDEX(MyProgram!$A$7:$G$326,SMALL(IF(MyProgram!$K$7:$K$326,ROW($A$1:$A$320)),ROW($A119)),COLUMN(G$1)),"") -> 
B124: =IFERROR(INDEX(MyProgram!$A$7:$G$326,SMALL(IF(MyProgram!$K$7:$K$326,ROW($A$1:$A$320)),ROW($A120)),COLUMN(B$1)),"") ->  | C124: =IFERROR(INDEX(MyProgram!$A$7:$G$326,SMALL(IF(MyProgram!$K$7:$K$326,ROW($A$1:$A$320)),ROW($A120)),COLUMN(C$1)),"") ->  | D124: =IFERROR(INDEX(MyProgram!$A$7:$G$326,SMALL(IF(MyProgram!$K$7:$K$326,ROW($A$1:$A$320)),ROW($A120)),COLUMN(D$1)),"") ->  | F124: =IFERROR(INDEX(MyProgram!$A$7:$G$326,SMALL(IF(MyProgram!$K$7:$K$326,ROW($A$1:$A$320)),ROW($A120)),COLUMN(F$1)),"") -> 
A125: =IFERROR(INDEX(MyProgram!$A$7:$G$326,SMALL(IF(MyProgram!$K$7:$K$326,ROW($A$1:$A$320)),ROW($A121)),COLUMN(A$1)),"") ->  | B125: =IFERROR(INDEX(MyProgram!$A$7:$G$326,SMALL(IF(MyProgram!$K$7:$K$326,ROW($A$1:$A$320)),ROW($A121)),COLUMN(B$1)),"") ->  | C125: =IFERROR(INDEX(MyProgram!$A$7:$G$326,SMALL(IF(MyProgram!$K$7:$K$326,ROW($A$1:$A$320)),ROW($A121)),COLUMN(C$1)),"") ->  | D125: =IFERROR(INDEX(MyProgram!$A$7:$G$326,SMALL(IF(MyProgram!$K$7:$K$326,ROW($A$1:$A$320)),ROW($A121)),COLUMN(D$1)),"") ->  | E125: =IFERROR(INDEX(MyProgram!$A$7:$G$326,SMALL(IF(MyProgram!$K$7:$K$326,ROW($A$1:$A$320)),ROW($A121)),COLUMN(E$1)),"") ->  | F125: =IFERROR(INDEX(MyProgram!$A$7:$G$326,SMALL(IF(MyProgram!$K$7:$K$326,ROW($A$1:$A$320)),ROW($A121)),COLUMN(F$1)),"") ->  | G125: =IFERROR(INDEX(MyProgram!$A$7:$G$326,SMALL(IF(MyProgram!$K$7:$K$326,ROW($A$1:$A$320)),ROW($A121)),COLUMN(G$1)),"") -> 
B126: =IFERROR(INDEX(MyProgram!$A$7:$G$326,SMALL(IF(MyProgram!$K$7:$K$326,ROW($A$1:$A$320)),ROW($A122)),COLUMN(B$1)),"") ->  | C126: =IFERROR(INDEX(MyProgram!$A$7:$G$326,SMALL(IF(MyProgram!$K$7:$K$326,ROW($A$1:$A$320)),ROW($A122)),COLUMN(C$1)),"") ->  | D126: =IFERROR(INDEX(MyProgram!$A$7:$G$326,SMALL(IF(MyProgram!$K$7:$K$326,ROW($A$1:$A$320)),ROW($A122)),COLUMN(D$1)),"") ->  | F126: =IFERROR(INDEX(MyProgram!$A$7:$G$326,SMALL(IF(MyProgram!$K$7:$K$326,ROW($A$1:$A$320)),ROW($A122)),COLUMN(F$1)),"") -> 
A127: =IFERROR(INDEX(MyProgram!$A$7:$G$326,SMALL(IF(MyProgram!$K$7:$K$326,ROW($A$1:$A$320)),ROW($A123)),COLUMN(A$1)),"") ->  | B127: =IFERROR(INDEX(MyProgram!$A$7:$G$326,SMALL(IF(MyProgram!$K$7:$K$326,ROW($A$1:$A$320)),ROW($A123)),COLUMN(B$1)),"") ->  | C127: =IFERROR(INDEX(MyProgram!$A$7:$G$326,SMALL(IF(MyProgram!$K$7:$K$326,ROW($A$1:$A$320)),ROW($A123)),COLUMN(C$1)),"") ->  | D127: =IFERROR(INDEX(MyProgram!$A$7:$G$326,SMALL(IF(MyProgram!$K$7:$K$326,ROW($A$1:$A$320)),ROW($A123)),COLUMN(D$1)),"") ->  | E127: =IFERROR(INDEX(MyProgram!$A$7:$G$326,SMALL(IF(MyProgram!$K$7:$K$326,ROW($A$1:$A$320)),ROW($A123)),COLUMN(E$1)),"") ->  | F127: =IFERROR(INDEX(MyProgram!$A$7:$G$326,SMALL(IF(MyProgram!$K$7:$K$326,ROW($A$1:$A$320)),ROW($A123)),COLUMN(F$1)),"") ->  | G127: =IFERROR(INDEX(MyProgram!$A$7:$G$326,SMALL(IF(MyProgram!$K$7:$K$326,ROW($A$1:$A$320)),ROW($A123)),COLUMN(G$1)),"") -> 
B128: =IFERROR(INDEX(MyProgram!$A$7:$G$326,SMALL(IF(MyProgram!$K$7:$K$326,ROW($A$1:$A$320)),ROW($A124)),COLUMN(B$1)),"") ->  | C128: =IFERROR(INDEX(MyProgram!$A$7:$G$326,SMALL(IF(MyProgram!$K$7:$K$326,ROW($A$1:$A$320)),ROW($A124)),COLUMN(C$1)),"") ->  | D128: =IFERROR(INDEX(MyProgram!$A$7:$G$326,SMALL(IF(MyProgram!$K$7:$K$326,ROW($A$1:$A$320)),ROW($A124)),COLUMN(D$1)),"") ->  | F128: =IFERROR(INDEX(MyProgram!$A$7:$G$326,SMALL(IF(MyProgram!$K$7:$K$326,ROW($A$1:$A$320)),ROW($A124)),COLUMN(F$1)),"") -> 
A129: =IFERROR(INDEX(MyProgram!$A$7:$G$326,SMALL(IF(MyProgram!$K$7:$K$326,ROW($A$1:$A$320)),ROW($A125)),COLUMN(A$1)),"") ->  | B129: =IFERROR(INDEX(MyProgram!$A$7:$G$326,SMALL(IF(MyProgram!$K$7:$K$326,ROW($A$1:$A$320)),ROW($A125)),COLUMN(B$1)),"") ->  | C129: =IFERROR(INDEX(MyProgram!$A$7:$G$326,SMALL(IF(MyProgram!$K$7:$K$326,ROW($A$1:$A$320)),ROW($A125)),COLUMN(C$1)),"") ->  | D129: =IFERROR(INDEX(MyProgram!$A$7:$G$326,SMALL(IF(MyProgram!$K$7:$K$326,ROW($A$1:$A$320)),ROW($A125)),COLUMN(D$1)),"") ->  | E129: =IFERROR(INDEX(MyProgram!$A$7:$G$326,SMALL(IF(MyProgram!$K$7:$K$326,ROW($A$1:$A$320)),ROW($A125)),COLUMN(E$1)),"") ->  | F129: =IFERROR(INDEX(MyProgram!$A$7:$G$326,SMALL(IF(MyProgram!$K$7:$K$326,ROW($A$1:$A$320)),ROW($A125)),COLUMN(F$1)),"") ->  | G129: =IFERROR(INDEX(MyProgram!$A$7:$G$326,SMALL(IF(MyProgram!$K$7:$K$326,ROW($A$1:$A$320)),ROW($A125)),COLUMN(G$1)),"") -> 
B130: =IFERROR(INDEX(MyProgram!$A$7:$G$326,SMALL(IF(MyProgram!$K$7:$K$326,ROW($A$1:$A$320)),ROW($A126)),COLUMN(B$1)),"") ->  | C130: =IFERROR(INDEX(MyProgram!$A$7:$G$326,SMALL(IF(MyProgram!$K$7:$K$326,ROW($A$1:$A$320)),ROW($A126)),COLUMN(C$1)),"") ->  | D130: =IFERROR(INDEX(MyProgram!$A$7:$G$326,SMALL(IF(MyProgram!$K$7:$K$326,ROW($A$1:$A$320)),ROW($A126)),COLUMN(D$1)),"") ->  | F130: =IFERROR(INDEX(MyProgram!$A$7:$G$326,SMALL(IF(MyProgram!$K$7:$K$326,ROW($A$1:$A$320)),ROW($A126)),COLUMN(F$1)),"") -> 
A131: =IFERROR(INDEX(MyProgram!$A$7:$G$326,SMALL(IF(MyProgram!$K$7:$K$326,ROW($A$1:$A$320)),ROW($A127)),COLUMN(A$1)),"") ->  | B131: =IFERROR(INDEX(MyProgram!$A$7:$G$326,SMALL(IF(MyProgram!$K$7:$K$326,ROW($A$1:$A$320)),ROW($A127)),COLUMN(B$1)),"") ->  | C131: =IFERROR(INDEX(MyProgram!$A$7:$G$326,SMALL(IF(MyProgram!$K$7:$K$326,ROW($A$1:$A$320)),ROW($A127)),COLUMN(C$1)),"") ->  | D131: =IFERROR(INDEX(MyProgram!$A$7:$G$326,SMALL(IF(MyProgram!$K$7:$K$326,ROW($A$1:$A$320)),ROW($A127)),COLUMN(D$1)),"") ->  | E131: =IFERROR(INDEX(MyProgram!$A$7:$G$326,SMALL(IF(MyProgram!$K$7:$K$326,ROW($A$1:$A$320)),ROW($A127)),COLUMN(E$1)),"") ->  | F131: =IFERROR(INDEX(MyProgram!$A$7:$G$326,SMALL(IF(MyProgram!$K$7:$K$326,ROW($A$1:$A$320)),ROW($A127)),COLUMN(F$1)),"") ->  | G131: =IFERROR(INDEX(MyProgram!$A$7:$G$326,SMALL(IF(MyProgram!$K$7:$K$326,ROW($A$1:$A$320)),ROW($A127)),COLUMN(G$1)),"") -> 
B132: =IFERROR(INDEX(MyProgram!$A$7:$G$326,SMALL(IF(MyProgram!$K$7:$K$326,ROW($A$1:$A$320)),ROW($A128)),COLUMN(B$1)),"") ->  | C132: =IFERROR(INDEX(MyProgram!$A$7:$G$326,SMALL(IF(MyProgram!$K$7:$K$326,ROW($A$1:$A$320)),ROW($A128)),COLUMN(C$1)),"") ->  | D132: =IFERROR(INDEX(MyProgram!$A$7:$G$326,SMALL(IF(MyProgram!$K$7:$K$326,ROW($A$1:$A$320)),ROW($A128)),COLUMN(D$1)),"") ->  | F132: =IFERROR(INDEX(MyProgram!$A$7:$G$326,SMALL(IF(MyProgram!$K$7:$K$326,ROW($A$1:$A$320)),ROW($A128)),COLUMN(F$1)),"") -> 
A133: =IFERROR(INDEX(MyProgram!$A$7:$G$326,SMALL(IF(MyProgram!$K$7:$K$326,ROW($A$1:$A$320)),ROW($A129)),COLUMN(A$1)),"") ->  | B133: =IFERROR(INDEX(MyProgram!$A$7:$G$326,SMALL(IF(MyProgram!$K$7:$K$326,ROW($A$1:$A$320)),ROW($A129)),COLUMN(B$1)),"") ->  | C133: =IFERROR(INDEX(MyProgram!$A$7:$G$326,SMALL(IF(MyProgram!$K$7:$K$326,ROW($A$1:$A$320)),ROW($A129)),COLUMN(C$1)),"") ->  | D133: =IFERROR(INDEX(MyProgram!$A$7:$G$326,SMALL(IF(MyProgram!$K$7:$K$326,ROW($A$1:$A$320)),ROW($A129)),COLUMN(D$1)),"") ->  | E133: =IFERROR(INDEX(MyProgram!$A$7:$G$326,SMALL(IF(MyProgram!$K$7:$K$326,ROW($A$1:$A$320)),ROW($A129)),COLUMN(E$1)),"") ->  | F133: =IFERROR(INDEX(MyProgram!$A$7:$G$326,SMALL(IF(MyProgram!$K$7:$K$326,ROW($A$1:$A$320)),ROW($A129)),COLUMN(F$1)),"") ->  | G133: =IFERROR(INDEX(MyProgram!$A$7:$G$326,SMALL(IF(MyProgram!$K$7:$K$326,ROW($A$1:$A$320)),ROW($A129)),COLUMN(G$1)),"") -> 
B134: =IFERROR(INDEX(MyProgram!$A$7:$G$326,SMALL(IF(MyProgram!$K$7:$K$326,ROW($A$1:$A$320)),ROW($A130)),COLUMN(B$1)),"") ->  | C134: =IFERROR(INDEX(MyProgram!$A$7:$G$326,SMALL(IF(MyProgram!$K$7:$K$326,ROW($A$1:$A$320)),ROW($A130)),COLUMN(C$1)),"") ->  | D134: =IFERROR(INDEX(MyProgram!$A$7:$G$326,SMALL(IF(MyProgram!$K$7:$K$326,ROW($A$1:$A$320)),ROW($A130)),COLUMN(D$1)),"") ->  | F134: =IFERROR(INDEX(MyProgram!$A$7:$G$326,SMALL(IF(MyProgram!$K$7:$K$326,ROW($A$1:$A$320)),ROW($A130)),COLUMN(F$1)),"") -> 
A135: =IFERROR(INDEX(MyProgram!$A$7:$G$326,SMALL(IF(MyProgram!$K$7:$K$326,ROW($A$1:$A$320)),ROW($A131)),COLUMN(A$1)),"") ->  | B135: =IFERROR(INDEX(MyProgram!$A$7:$G$326,SMALL(IF(MyProgram!$K$7:$K$326,ROW($A$1:$A$320)),ROW($A131)),COLUMN(B$1)),"") ->  | C135: =IFERROR(INDEX(MyProgram!$A$7:$G$326,SMALL(IF(MyProgram!$K$7:$K$326,ROW($A$1:$A$320)),ROW($A131)),COLUMN(C$1)),"") ->  | D135: =IFERROR(INDEX(MyProgram!$A$7:$G$326,SMALL(IF(MyProgram!$K$7:$K$326,ROW($A$1:$A$320)),ROW($A131)),COLUMN(D$1)),"") ->  | E135: =IFERROR(INDEX(MyProgram!$A$7:$G$326,SMALL(IF(MyProgram!$K$7:$K$326,ROW($A$1:$A$320)),ROW($A131)),COLUMN(E$1)),"") ->  | F135: =IFERROR(INDEX(MyProgram!$A$7:$G$326,SMALL(IF(MyProgram!$K$7:$K$326,ROW($A$1:$A$320)),ROW($A131)),COLUMN(F$1)),"") ->  | G135: =IFERROR(INDEX(MyProgram!$A$7:$G$326,SMALL(IF(MyProgram!$K$7:$K$326,ROW($A$1:$A$320)),ROW($A131)),COLUMN(G$1)),"") -> 
B136: =IFERROR(INDEX(MyProgram!$A$7:$G$326,SMALL(IF(MyProgram!$K$7:$K$326,ROW($A$1:$A$320)),ROW($A132)),COLUMN(B$1)),"") ->  | C136: =IFERROR(INDEX(MyProgram!$A$7:$G$326,SMALL(IF(MyProgram!$K$7:$K$326,ROW($A$1:$A$320)),ROW($A132)),COLUMN(C$1)),"") ->  | D136: =IFERROR(INDEX(MyProgram!$A$7:$G$326,SMALL(IF(MyProgram!$K$7:$K$326,ROW($A$1:$A$320)),ROW($A132)),COLUMN(D$1)),"") ->  | F136: =IFERROR(INDEX(MyProgram!$A$7:$G$326,SMALL(IF(MyProgram!$K$7:$K$326,ROW($A$1:$A$320)),ROW($A132)),COLUMN(F$1)),"") -> 
A137: =IFERROR(INDEX(MyProgram!$A$7:$G$326,SMALL(IF(MyProgram!$K$7:$K$326,ROW($A$1:$A$320)),ROW($A133)),COLUMN(A$1)),"") ->  | B137: =IFERROR(INDEX(MyProgram!$A$7:$G$326,SMALL(IF(MyProgram!$K$7:$K$326,ROW($A$1:$A$320)),ROW($A133)),COLUMN(B$1)),"") ->  | C137: =IFERROR(INDEX(MyProgram!$A$7:$G$326,SMALL(IF(MyProgram!$K$7:$K$326,ROW($A$1:$A$320)),ROW($A133)),COLUMN(C$1)),"") ->  | D137: =IFERROR(INDEX(MyProgram!$A$7:$G$326,SMALL(IF(MyProgram!$K$7:$K$326,ROW($A$1:$A$320)),ROW($A133)),COLUMN(D$1)),"") ->  | E137: =IFERROR(INDEX(MyProgram!$A$7:$G$326,SMALL(IF(MyProgram!$K$7:$K$326,ROW($A$1:$A$320)),ROW($A133)),COLUMN(E$1)),"") ->  | F137: =IFERROR(INDEX(MyProgram!$A$7:$G$326,SMALL(IF(MyProgram!$K$7:$K$326,ROW($A$1:$A$320)),ROW($A133)),COLUMN(F$1)),"") ->  | G137: =IFERROR(INDEX(MyProgram!$A$7:$G$326,SMALL(IF(MyProgram!$K$7:$K$326,ROW($A$1:$A$320)),ROW($A133)),COLUMN(G$1)),"") -> 
B138: =IFERROR(INDEX(MyProgram!$A$7:$G$326,SMALL(IF(MyProgram!$K$7:$K$326,ROW($A$1:$A$320)),ROW($A134)),COLUMN(B$1)),"") ->  | C138: =IFERROR(INDEX(MyProgram!$A$7:$G$326,SMALL(IF(MyProgram!$K$7:$K$326,ROW($A$1:$A$320)),ROW($A134)),COLUMN(C$1)),"") ->  | D138: =IFERROR(INDEX(MyProgram!$A$7:$G$326,SMALL(IF(MyProgram!$K$7:$K$326,ROW($A$1:$A$320)),ROW($A134)),COLUMN(D$1)),"") ->  | F138: =IFERROR(INDEX(MyProgram!$A$7:$G$326,SMALL(IF(MyProgram!$K$7:$K$326,ROW($A$1:$A$320)),ROW($A134)),COLUMN(F$1)),"") -> 
A139: =IFERROR(INDEX(MyProgram!$A$7:$G$326,SMALL(IF(MyProgram!$K$7:$K$326,ROW($A$1:$A$320)),ROW($A135)),COLUMN(A$1)),"") ->  | B139: =IFERROR(INDEX(MyProgram!$A$7:$G$326,SMALL(IF(MyProgram!$K$7:$K$326,ROW($A$1:$A$320)),ROW($A135)),COLUMN(B$1)),"") ->  | C139: =IFERROR(INDEX(MyProgram!$A$7:$G$326,SMALL(IF(MyProgram!$K$7:$K$326,ROW($A$1:$A$320)),ROW($A135)),COLUMN(C$1)),"") ->  | D139: =IFERROR(INDEX(MyProgram!$A$7:$G$326,SMALL(IF(MyProgram!$K$7:$K$326,ROW($A$1:$A$320)),ROW($A135)),COLUMN(D$1)),"") ->  | E139: =IFERROR(INDEX(MyProgram!$A$7:$G$326,SMALL(IF(MyProgram!$K$7:$K$326,ROW($A$1:$A$320)),ROW($A135)),COLUMN(E$1)),"") ->  | F139: =IFERROR(INDEX(MyProgram!$A$7:$G$326,SMALL(IF(MyProgram!$K$7:$K$326,ROW($A$1:$A$320)),ROW($A135)),COLUMN(F$1)),"") ->  | G139: =IFERROR(INDEX(MyProgram!$A$7:$G$326,SMALL(IF(MyProgram!$K$7:$K$326,ROW($A$1:$A$320)),ROW($A135)),COLUMN(G$1)),"") -> 
B140: =IFERROR(INDEX(MyProgram!$A$7:$G$326,SMALL(IF(MyProgram!$K$7:$K$326,ROW($A$1:$A$320)),ROW($A136)),COLUMN(B$1)),"") ->  | C140: =IFERROR(INDEX(MyProgram!$A$7:$G$326,SMALL(IF(MyProgram!$K$7:$K$326,ROW($A$1:$A$320)),ROW($A136)),COLUMN(C$1)),"") ->  | D140: =IFERROR(INDEX(MyProgram!$A$7:$G$326,SMALL(IF(MyProgram!$K$7:$K$326,ROW($A$1:$A$320)),ROW($A136)),COLUMN(D$1)),"") ->  | F140: =IFERROR(INDEX(MyProgram!$A$7:$G$326,SMALL(IF(MyProgram!$K$7:$K$326,ROW($A$1:$A$320)),ROW($A136)),COLUMN(F$1)),"") -> 
A141: =IFERROR(INDEX(MyProgram!$A$7:$G$326,SMALL(IF(MyProgram!$K$7:$K$326,ROW($A$1:$A$320)),ROW($A137)),COLUMN(A$1)),"") ->  | B141: =IFERROR(INDEX(MyProgram!$A$7:$G$326,SMALL(IF(MyProgram!$K$7:$K$326,ROW($A$1:$A$320)),ROW($A137)),COLUMN(B$1)),"") ->  | C141: =IFERROR(INDEX(MyProgram!$A$7:$G$326,SMALL(IF(MyProgram!$K$7:$K$326,ROW($A$1:$A$320)),ROW($A137)),COLUMN(C$1)),"") ->  | D141: =IFERROR(INDEX(MyProgram!$A$7:$G$326,SMALL(IF(MyProgram!$K$7:$K$326,ROW($A$1:$A$320)),ROW($A137)),COLUMN(D$1)),"") ->  | E141: =IFERROR(INDEX(MyProgram!$A$7:$G$326,SMALL(IF(MyProgram!$K$7:$K$326,ROW($A$1:$A$320)),ROW($A137)),COLUMN(E$1)),"") ->  | F141: =IFERROR(INDEX(MyProgram!$A$7:$G$326,SMALL(IF(MyProgram!$K$7:$K$326,ROW($A$1:$A$320)),ROW($A137)),COLUMN(F$1)),"") ->  | G141: =IFERROR(INDEX(MyProgram!$A$7:$G$326,SMALL(IF(MyProgram!$K$7:$K$326,ROW($A$1:$A$320)),ROW($A137)),COLUMN(G$1)),"") -> 
B142: =IFERROR(INDEX(MyProgram!$A$7:$G$326,SMALL(IF(MyProgram!$K$7:$K$326,ROW($A$1:$A$320)),ROW($A138)),COLUMN(B$1)),"") ->  | C142: =IFERROR(INDEX(MyProgram!$A$7:$G$326,SMALL(IF(MyProgram!$K$7:$K$326,ROW($A$1:$A$320)),ROW($A138)),COLUMN(C$1)),"") ->  | D142: =IFERROR(INDEX(MyProgram!$A$7:$G$326,SMALL(IF(MyProgram!$K$7:$K$326,ROW($A$1:$A$320)),ROW($A138)),COLUMN(D$1)),"") ->  | F142: =IFERROR(INDEX(MyProgram!$A$7:$G$326,SMALL(IF(MyProgram!$K$7:$K$326,ROW($A$1:$A$320)),ROW($A138)),COLUMN(F$1)),"") -> 
A143: =IFERROR(INDEX(MyProgram!$A$7:$G$326,SMALL(IF(MyProgram!$K$7:$K$326,ROW($A$1:$A$320)),ROW($A139)),COLUMN(A$1)),"") ->  | B143: =IFERROR(INDEX(MyProgram!$A$7:$G$326,SMALL(IF(MyProgram!$K$7:$K$326,ROW($A$1:$A$320)),ROW($A139)),COLUMN(B$1)),"") ->  | C143: =IFERROR(INDEX(MyProgram!$A$7:$G$326,SMALL(IF(MyProgram!$K$7:$K$326,ROW($A$1:$A$320)),ROW($A139)),COLUMN(C$1)),"") ->  | D143: =IFERROR(INDEX(MyProgram!$A$7:$G$326,SMALL(IF(MyProgram!$K$7:$K$326,ROW($A$1:$A$320)),ROW($A139)),COLUMN(D$1)),"") ->  | E143: =IFERROR(INDEX(MyProgram!$A$7:$G$326,SMALL(IF(MyProgram!$K$7:$K$326,ROW($A$1:$A$320)),ROW($A139)),COLUMN(E$1)),"") ->  | F143: =IFERROR(INDEX(MyProgram!$A$7:$G$326,SMALL(IF(MyProgram!$K$7:$K$326,ROW($A$1:$A$320)),ROW($A139)),COLUMN(F$1)),"") ->  | G143: =IFERROR(INDEX(MyProgram!$A$7:$G$326,SMALL(IF(MyProgram!$K$7:$K$326,ROW($A$1:$A$320)),ROW($A139)),COLUMN(G$1)),"") -> 
B144: =IFERROR(INDEX(MyProgram!$A$7:$G$326,SMALL(IF(MyProgram!$K$7:$K$326,ROW($A$1:$A$320)),ROW($A140)),COLUMN(B$1)),"") ->  | C144: =IFERROR(INDEX(MyProgram!$A$7:$G$326,SMALL(IF(MyProgram!$K$7:$K$326,ROW($A$1:$A$320)),ROW($A140)),COLUMN(C$1)),"") ->  | D144: =IFERROR(INDEX(MyProgram!$A$7:$G$326,SMALL(IF(MyProgram!$K$7:$K$326,ROW($A$1:$A$320)),ROW($A140)),COLUMN(D$1)),"") ->  | F144: =IFERROR(INDEX(MyProgram!$A$7:$G$326,SMALL(IF(MyProgram!$K$7:$K$326,ROW($A$1:$A$320)),ROW($A140)),COLUMN(F$1)),"") -> 
A145: =IFERROR(INDEX(MyProgram!$A$7:$G$326,SMALL(IF(MyProgram!$K$7:$K$326,ROW($A$1:$A$320)),ROW($A141)),COLUMN(A$1)),"") ->  | B145: =IFERROR(INDEX(MyProgram!$A$7:$G$326,SMALL(IF(MyProgram!$K$7:$K$326,ROW($A$1:$A$320)),ROW($A141)),COLUMN(B$1)),"") ->  | C145: =IFERROR(INDEX(MyProgram!$A$7:$G$326,SMALL(IF(MyProgram!$K$7:$K$326,ROW($A$1:$A$320)),ROW($A141)),COLUMN(C$1)),"") ->  | D145: =IFERROR(INDEX(MyProgram!$A$7:$G$326,SMALL(IF(MyProgram!$K$7:$K$326,ROW($A$1:$A$320)),ROW($A141)),COLUMN(D$1)),"") ->  | E145: =IFERROR(INDEX(MyProgram!$A$7:$G$326,SMALL(IF(MyProgram!$K$7:$K$326,ROW($A$1:$A$320)),ROW($A141)),COLUMN(E$1)),"") ->  | F145: =IFERROR(INDEX(MyProgram!$A$7:$G$326,SMALL(IF(MyProgram!$K$7:$K$326,ROW($A$1:$A$320)),ROW($A141)),COLUMN(F$1)),"") ->  | G145: =IFERROR(INDEX(MyProgram!$A$7:$G$326,SMALL(IF(MyProgram!$K$7:$K$326,ROW($A$1:$A$320)),ROW($A141)),COLUMN(G$1)),"") -> 
B146: =IFERROR(INDEX(MyProgram!$A$7:$G$326,SMALL(IF(MyProgram!$K$7:$K$326,ROW($A$1:$A$320)),ROW($A142)),COLUMN(B$1)),"") ->  | C146: =IFERROR(INDEX(MyProgram!$A$7:$G$326,SMALL(IF(MyProgram!$K$7:$K$326,ROW($A$1:$A$320)),ROW($A142)),COLUMN(C$1)),"") ->  | D146: =IFERROR(INDEX(MyProgram!$A$7:$G$326,SMALL(IF(MyProgram!$K$7:$K$326,ROW($A$1:$A$320)),ROW($A142)),COLUMN(D$1)),"") ->  | F146: =IFERROR(INDEX(MyProgram!$A$7:$G$326,SMALL(IF(MyProgram!$K$7:$K$326,ROW($A$1:$A$320)),ROW($A142)),COLUMN(F$1)),"") -> 
A147: =IFERROR(INDEX(MyProgram!$A$7:$G$326,SMALL(IF(MyProgram!$K$7:$K$326,ROW($A$1:$A$320)),ROW($A143)),COLUMN(A$1)),"") ->  | B147: =IFERROR(INDEX(MyProgram!$A$7:$G$326,SMALL(IF(MyProgram!$K$7:$K$326,ROW($A$1:$A$320)),ROW($A143)),COLUMN(B$1)),"") ->  | C147: =IFERROR(INDEX(MyProgram!$A$7:$G$326,SMALL(IF(MyProgram!$K$7:$K$326,ROW($A$1:$A$320)),ROW($A143)),COLUMN(C$1)),"") ->  | D147: =IFERROR(INDEX(MyProgram!$A$7:$G$326,SMALL(IF(MyProgram!$K$7:$K$326,ROW($A$1:$A$320)),ROW($A143)),COLUMN(D$1)),"") ->  | E147: =IFERROR(INDEX(MyProgram!$A$7:$G$326,SMALL(IF(MyProgram!$K$7:$K$326,ROW($A$1:$A$320)),ROW($A143)),COLUMN(E$1)),"") ->  | F147: =IFERROR(INDEX(MyProgram!$A$7:$G$326,SMALL(IF(MyProgram!$K$7:$K$326,ROW($A$1:$A$320)),ROW($A143)),COLUMN(F$1)),"") ->  | G147: =IFERROR(INDEX(MyProgram!$A$7:$G$326,SMALL(IF(MyProgram!$K$7:$K$326,ROW($A$1:$A$320)),ROW($A143)),COLUMN(G$1)),"") -> 
B148: =IFERROR(INDEX(MyProgram!$A$7:$G$326,SMALL(IF(MyProgram!$K$7:$K$326,ROW($A$1:$A$320)),ROW($A144)),COLUMN(B$1)),"") ->  | C148: =IFERROR(INDEX(MyProgram!$A$7:$G$326,SMALL(IF(MyProgram!$K$7:$K$326,ROW($A$1:$A$320)),ROW($A144)),COLUMN(C$1)),"") ->  | D148: =IFERROR(INDEX(MyProgram!$A$7:$G$326,SMALL(IF(MyProgram!$K$7:$K$326,ROW($A$1:$A$320)),ROW($A144)),COLUMN(D$1)),"") ->  | F148: =IFERROR(INDEX(MyProgram!$A$7:$G$326,SMALL(IF(MyProgram!$K$7:$K$326,ROW($A$1:$A$320)),ROW($A144)),COLUMN(F$1)),"") -> 
A149: =IFERROR(INDEX(MyProgram!$A$7:$G$326,SMALL(IF(MyProgram!$K$7:$K$326,ROW($A$1:$A$320)),ROW($A145)),COLUMN(A$1)),"") ->  | B149: =IFERROR(INDEX(MyProgram!$A$7:$G$326,SMALL(IF(MyProgram!$K$7:$K$326,ROW($A$1:$A$320)),ROW($A145)),COLUMN(B$1)),"") ->  | C149: =IFERROR(INDEX(MyProgram!$A$7:$G$326,SMALL(IF(MyProgram!$K$7:$K$326,ROW($A$1:$A$320)),ROW($A145)),COLUMN(C$1)),"") ->  | D149: =IFERROR(INDEX(MyProgram!$A$7:$G$326,SMALL(IF(MyProgram!$K$7:$K$326,ROW($A$1:$A$320)),ROW($A145)),COLUMN(D$1)),"") ->  | E149: =IFERROR(INDEX(MyProgram!$A$7:$G$326,SMALL(IF(MyProgram!$K$7:$K$326,ROW($A$1:$A$320)),ROW($A145)),COLUMN(E$1)),"") ->  | F149: =IFERROR(INDEX(MyProgram!$A$7:$G$326,SMALL(IF(MyProgram!$K$7:$K$326,ROW($A$1:$A$320)),ROW($A145)),COLUMN(F$1)),"") ->  | G149: =IFERROR(INDEX(MyProgram!$A$7:$G$326,SMALL(IF(MyProgram!$K$7:$K$326,ROW($A$1:$A$320)),ROW($A145)),COLUMN(G$1)),"") -> 
B150: =IFERROR(INDEX(MyProgram!$A$7:$G$326,SMALL(IF(MyProgram!$K$7:$K$326,ROW($A$1:$A$320)),ROW($A146)),COLUMN(B$1)),"") ->  | C150: =IFERROR(INDEX(MyProgram!$A$7:$G$326,SMALL(IF(MyProgram!$K$7:$K$326,ROW($A$1:$A$320)),ROW($A146)),COLUMN(C$1)),"") ->  | D150: =IFERROR(INDEX(MyProgram!$A$7:$G$326,SMALL(IF(MyProgram!$K$7:$K$326,ROW($A$1:$A$320)),ROW($A146)),COLUMN(D$1)),"") ->  | F150: =IFERROR(INDEX(MyProgram!$A$7:$G$326,SMALL(IF(MyProgram!$K$7:$K$326,ROW($A$1:$A$320)),ROW($A146)),COLUMN(F$1)),"") -> 
A151: =IFERROR(INDEX(MyProgram!$A$7:$G$326,SMALL(IF(MyProgram!$K$7:$K$326,ROW($A$1:$A$320)),ROW($A147)),COLUMN(A$1)),"") ->  | B151: =IFERROR(INDEX(MyProgram!$A$7:$G$326,SMALL(IF(MyProgram!$K$7:$K$326,ROW($A$1:$A$320)),ROW($A147)),COLUMN(B$1)),"") ->  | C151: =IFERROR(INDEX(MyProgram!$A$7:$G$326,SMALL(IF(MyProgram!$K$7:$K$326,ROW($A$1:$A$320)),ROW($A147)),COLUMN(C$1)),"") ->  | D151: =IFERROR(INDEX(MyProgram!$A$7:$G$326,SMALL(IF(MyProgram!$K$7:$K$326,ROW($A$1:$A$320)),ROW($A147)),COLUMN(D$1)),"") ->  | E151: =IFERROR(INDEX(MyProgram!$A$7:$G$326,SMALL(IF(MyProgram!$K$7:$K$326,ROW($A$1:$A$320)),ROW($A147)),COLUMN(E$1)),"") ->  | F151: =IFERROR(INDEX(MyProgram!$A$7:$G$326,SMALL(IF(MyProgram!$K$7:$K$326,ROW($A$1:$A$320)),ROW($A147)),COLUMN(F$1)),"") ->  | G151: =IFERROR(INDEX(MyProgram!$A$7:$G$326,SMALL(IF(MyProgram!$K$7:$K$326,ROW($A$1:$A$320)),ROW($A147)),COLUMN(G$1)),"") -> 
B152: =IFERROR(INDEX(MyProgram!$A$7:$G$326,SMALL(IF(MyProgram!$K$7:$K$326,ROW($A$1:$A$320)),ROW($A148)),COLUMN(B$1)),"") ->  | C152: =IFERROR(INDEX(MyProgram!$A$7:$G$326,SMALL(IF(MyProgram!$K$7:$K$326,ROW($A$1:$A$320)),ROW($A148)),COLUMN(C$1)),"") ->  | D152: =IFERROR(INDEX(MyProgram!$A$7:$G$326,SMALL(IF(MyProgram!$K$7:$K$326,ROW($A$1:$A$320)),ROW($A148)),COLUMN(D$1)),"") ->  | F152: =IFERROR(INDEX(MyProgram!$A$7:$G$326,SMALL(IF(MyProgram!$K$7:$K$326,ROW($A$1:$A$320)),ROW($A148)),COLUMN(F$1)),"") -> 
A153: =IFERROR(INDEX(MyProgram!$A$7:$G$326,SMALL(IF(MyProgram!$K$7:$K$326,ROW($A$1:$A$320)),ROW($A149)),COLUMN(A$1)),"") ->  | B153: =IFERROR(INDEX(MyProgram!$A$7:$G$326,SMALL(IF(MyProgram!$K$7:$K$326,ROW($A$1:$A$320)),ROW($A149)),COLUMN(B$1)),"") ->  | C153: =IFERROR(INDEX(MyProgram!$A$7:$G$326,SMALL(IF(MyProgram!$K$7:$K$326,ROW($A$1:$A$320)),ROW($A149)),COLUMN(C$1)),"") ->  | D153: =IFERROR(INDEX(MyProgram!$A$7:$G$326,SMALL(IF(MyProgram!$K$7:$K$326,ROW($A$1:$A$320)),ROW($A149)),COLUMN(D$1)),"") ->  | E153: =IFERROR(INDEX(MyProgram!$A$7:$G$326,SMALL(IF(MyProgram!$K$7:$K$326,ROW($A$1:$A$320)),ROW($A149)),COLUMN(E$1)),"") ->  | F153: =IFERROR(INDEX(MyProgram!$A$7:$G$326,SMALL(IF(MyProgram!$K$7:$K$326,ROW($A$1:$A$320)),ROW($A149)),COLUMN(F$1)),"") ->  | G153: =IFERROR(INDEX(MyProgram!$A$7:$G$326,SMALL(IF(MyProgram!$K$7:$K$326,ROW($A$1:$A$320)),ROW($A149)),COLUMN(G$1)),"") -> 
B154: =IFERROR(INDEX(MyProgram!$A$7:$G$326,SMALL(IF(MyProgram!$K$7:$K$326,ROW($A$1:$A$320)),ROW($A150)),COLUMN(B$1)),"") ->  | C154: =IFERROR(INDEX(MyProgram!$A$7:$G$326,SMALL(IF(MyProgram!$K$7:$K$326,ROW($A$1:$A$320)),ROW($A150)),COLUMN(C$1)),"") ->  | D154: =IFERROR(INDEX(MyProgram!$A$7:$G$326,SMALL(IF(MyProgram!$K$7:$K$326,ROW($A$1:$A$320)),ROW($A150)),COLUMN(D$1)),"") ->  | F154: =IFERROR(INDEX(MyProgram!$A$7:$G$326,SMALL(IF(MyProgram!$K$7:$K$326,ROW($A$1:$A$320)),ROW($A150)),COLUMN(F$1)),"") -> 
A155: =IFERROR(INDEX(MyProgram!$A$7:$G$326,SMALL(IF(MyProgram!$K$7:$K$326,ROW($A$1:$A$320)),ROW($A151)),COLUMN(A$1)),"") ->  | B155: =IFERROR(INDEX(MyProgram!$A$7:$G$326,SMALL(IF(MyProgram!$K$7:$K$326,ROW($A$1:$A$320)),ROW($A151)),COLUMN(B$1)),"") ->  | C155: =IFERROR(INDEX(MyProgram!$A$7:$G$326,SMALL(IF(MyProgram!$K$7:$K$326,ROW($A$1:$A$320)),ROW($A151)),COLUMN(C$1)),"") ->  | D155: =IFERROR(INDEX(MyProgram!$A$7:$G$326,SMALL(IF(MyProgram!$K$7:$K$326,ROW($A$1:$A$320)),ROW($A151)),COLUMN(D$1)),"") ->  | E155: =IFERROR(INDEX(MyProgram!$A$7:$G$326,SMALL(IF(MyProgram!$K$7:$K$326,ROW($A$1:$A$320)),ROW($A151)),COLUMN(E$1)),"") ->  | F155: =IFERROR(INDEX(MyProgram!$A$7:$G$326,SMALL(IF(MyProgram!$K$7:$K$326,ROW($A$1:$A$320)),ROW($A151)),COLUMN(F$1)),"") ->  | G155: =IFERROR(INDEX(MyProgram!$A$7:$G$326,SMALL(IF(MyProgram!$K$7:$K$326,ROW($A$1:$A$320)),ROW($A151)),COLUMN(G$1)),"") -> 
B156: =IFERROR(INDEX(MyProgram!$A$7:$G$326,SMALL(IF(MyProgram!$K$7:$K$326,ROW($A$1:$A$320)),ROW($A152)),COLUMN(B$1)),"") ->  | C156: =IFERROR(INDEX(MyProgram!$A$7:$G$326,SMALL(IF(MyProgram!$K$7:$K$326,ROW($A$1:$A$320)),ROW($A152)),COLUMN(C$1)),"") ->  | D156: =IFERROR(INDEX(MyProgram!$A$7:$G$326,SMALL(IF(MyProgram!$K$7:$K$326,ROW($A$1:$A$320)),ROW($A152)),COLUMN(D$1)),"") ->  | F156: =IFERROR(INDEX(MyProgram!$A$7:$G$326,SMALL(IF(MyProgram!$K$7:$K$326,ROW($A$1:$A$320)),ROW($A152)),COLUMN(F$1)),"") -> 
A157: =IFERROR(INDEX(MyProgram!$A$7:$G$326,SMALL(IF(MyProgram!$K$7:$K$326,ROW($A$1:$A$320)),ROW($A153)),COLUMN(A$1)),"") ->  | B157: =IFERROR(INDEX(MyProgram!$A$7:$G$326,SMALL(IF(MyProgram!$K$7:$K$326,ROW($A$1:$A$320)),ROW($A153)),COLUMN(B$1)),"") ->  | C157: =IFERROR(INDEX(MyProgram!$A$7:$G$326,SMALL(IF(MyProgram!$K$7:$K$326,ROW($A$1:$A$320)),ROW($A153)),COLUMN(C$1)),"") ->  | D157: =IFERROR(INDEX(MyProgram!$A$7:$G$326,SMALL(IF(MyProgram!$K$7:$K$326,ROW($A$1:$A$320)),ROW($A153)),COLUMN(D$1)),"") ->  | E157: =IFERROR(INDEX(MyProgram!$A$7:$G$326,SMALL(IF(MyProgram!$K$7:$K$326,ROW($A$1:$A$320)),ROW($A153)),COLUMN(E$1)),"") ->  | F157: =IFERROR(INDEX(MyProgram!$A$7:$G$326,SMALL(IF(MyProgram!$K$7:$K$326,ROW($A$1:$A$320)),ROW($A153)),COLUMN(F$1)),"") ->  | G157: =IFERROR(INDEX(MyProgram!$A$7:$G$326,SMALL(IF(MyProgram!$K$7:$K$326,ROW($A$1:$A$320)),ROW($A153)),COLUMN(G$1)),"") -> 
B158: =IFERROR(INDEX(MyProgram!$A$7:$G$326,SMALL(IF(MyProgram!$K$7:$K$326,ROW($A$1:$A$320)),ROW($A154)),COLUMN(B$1)),"") ->  | C158: =IFERROR(INDEX(MyProgram!$A$7:$G$326,SMALL(IF(MyProgram!$K$7:$K$326,ROW($A$1:$A$320)),ROW($A154)),COLUMN(C$1)),"") ->  | D158: =IFERROR(INDEX(MyProgram!$A$7:$G$326,SMALL(IF(MyProgram!$K$7:$K$326,ROW($A$1:$A$320)),ROW($A154)),COLUMN(D$1)),"") ->  | F158: =IFERROR(INDEX(MyProgram!$A$7:$G$326,SMALL(IF(MyProgram!$K$7:$K$326,ROW($A$1:$A$320)),ROW($A154)),COLUMN(F$1)),"") -> 
A159: =IFERROR(INDEX(MyProgram!$A$7:$G$326,SMALL(IF(MyProgram!$K$7:$K$326,ROW($A$1:$A$320)),ROW($A155)),COLUMN(A$1)),"") ->  | B159: =IFERROR(INDEX(MyProgram!$A$7:$G$326,SMALL(IF(MyProgram!$K$7:$K$326,ROW($A$1:$A$320)),ROW($A155)),COLUMN(B$1)),"") ->  | C159: =IFERROR(INDEX(MyProgram!$A$7:$G$326,SMALL(IF(MyProgram!$K$7:$K$326,ROW($A$1:$A$320)),ROW($A155)),COLUMN(C$1)),"") ->  | D159: =IFERROR(INDEX(MyProgram!$A$7:$G$326,SMALL(IF(MyProgram!$K$7:$K$326,ROW($A$1:$A$320)),ROW($A155)),COLUMN(D$1)),"") ->  | E159: =IFERROR(INDEX(MyProgram!$A$7:$G$326,SMALL(IF(MyProgram!$K$7:$K$326,ROW($A$1:$A$320)),ROW($A155)),COLUMN(E$1)),"") ->  | F159: =IFERROR(INDEX(MyProgram!$A$7:$G$326,SMALL(IF(MyProgram!$K$7:$K$326,ROW($A$1:$A$320)),ROW($A155)),COLUMN(F$1)),"") ->  | G159: =IFERROR(INDEX(MyProgram!$A$7:$G$326,SMALL(IF(MyProgram!$K$7:$K$326,ROW($A$1:$A$320)),ROW($A155)),COLUMN(G$1)),"") -> 
B160: =IFERROR(INDEX(MyProgram!$A$7:$G$326,SMALL(IF(MyProgram!$K$7:$K$326,ROW($A$1:$A$320)),ROW($A156)),COLUMN(B$1)),"") ->  | C160: =IFERROR(INDEX(MyProgram!$A$7:$G$326,SMALL(IF(MyProgram!$K$7:$K$326,ROW($A$1:$A$320)),ROW($A156)),COLUMN(C$1)),"") ->  | D160: =IFERROR(INDEX(MyProgram!$A$7:$G$326,SMALL(IF(MyProgram!$K$7:$K$326,ROW($A$1:$A$320)),ROW($A156)),COLUMN(D$1)),"") ->  | F160: =IFERROR(INDEX(MyProgram!$A$7:$G$326,SMALL(IF(MyProgram!$K$7:$K$326,ROW($A$1:$A$320)),ROW($A156)),COLUMN(F$1)),"") -> 
A161: =IFERROR(INDEX(MyProgram!$A$7:$G$326,SMALL(IF(MyProgram!$K$7:$K$326,ROW($A$1:$A$320)),ROW($A157)),COLUMN(A$1)),"") ->  | B161: =IFERROR(INDEX(MyProgram!$A$7:$G$326,SMALL(IF(MyProgram!$K$7:$K$326,ROW($A$1:$A$320)),ROW($A157)),COLUMN(B$1)),"") ->  | C161: =IFERROR(INDEX(MyProgram!$A$7:$G$326,SMALL(IF(MyProgram!$K$7:$K$326,ROW($A$1:$A$320)),ROW($A157)),COLUMN(C$1)),"") ->  | D161: =IFERROR(INDEX(MyProgram!$A$7:$G$326,SMALL(IF(MyProgram!$K$7:$K$326,ROW($A$1:$A$320)),ROW($A157)),COLUMN(D$1)),"") ->  | E161: =IFERROR(INDEX(MyProgram!$A$7:$G$326,SMALL(IF(MyProgram!$K$7:$K$326,ROW($A$1:$A$320)),ROW($A157)),COLUMN(E$1)),"") ->  | F161: =IFERROR(INDEX(MyProgram!$A$7:$G$326,SMALL(IF(MyProgram!$K$7:$K$326,ROW($A$1:$A$320)),ROW($A157)),COLUMN(F$1)),"") ->  | G161: =IFERROR(INDEX(MyProgram!$A$7:$G$326,SMALL(IF(MyProgram!$K$7:$K$326,ROW($A$1:$A$320)),ROW($A157)),COLUMN(G$1)),"") -> 
B162: =IFERROR(INDEX(MyProgram!$A$7:$G$326,SMALL(IF(MyProgram!$K$7:$K$326,ROW($A$1:$A$320)),ROW($A158)),COLUMN(B$1)),"") ->  | C162: =IFERROR(INDEX(MyProgram!$A$7:$G$326,SMALL(IF(MyProgram!$K$7:$K$326,ROW($A$1:$A$320)),ROW($A158)),COLUMN(C$1)),"") ->  | D162: =IFERROR(INDEX(MyProgram!$A$7:$G$326,SMALL(IF(MyProgram!$K$7:$K$326,ROW($A$1:$A$320)),ROW($A158)),COLUMN(D$1)),"") ->  | F162: =IFERROR(INDEX(MyProgram!$A$7:$G$326,SMALL(IF(MyProgram!$K$7:$K$326,ROW($A$1:$A$320)),ROW($A158)),COLUMN(F$1)),"") -> 
A163: =IFERROR(INDEX(MyProgram!$A$7:$G$326,SMALL(IF(MyProgram!$K$7:$K$326,ROW($A$1:$A$320)),ROW($A159)),COLUMN(A$1)),"") ->  | B163: =IFERROR(INDEX(MyProgram!$A$7:$G$326,SMALL(IF(MyProgram!$K$7:$K$326,ROW($A$1:$A$320)),ROW($A159)),COLUMN(B$1)),"") ->  | C163: =IFERROR(INDEX(MyProgram!$A$7:$G$326,SMALL(IF(MyProgram!$K$7:$K$326,ROW($A$1:$A$320)),ROW($A159)),COLUMN(C$1)),"") ->  | D163: =IFERROR(INDEX(MyProgram!$A$7:$G$326,SMALL(IF(MyProgram!$K$7:$K$326,ROW($A$1:$A$320)),ROW($A159)),COLUMN(D$1)),"") ->  | E163: =IFERROR(INDEX(MyProgram!$A$7:$G$326,SMALL(IF(MyProgram!$K$7:$K$326,ROW($A$1:$A$320)),ROW($A159)),COLUMN(E$1)),"") ->  | F163: =IFERROR(INDEX(MyProgram!$A$7:$G$326,SMALL(IF(MyProgram!$K$7:$K$326,ROW($A$1:$A$320)),ROW($A159)),COLUMN(F$1)),"") ->  | G163: =IFERROR(INDEX(MyProgram!$A$7:$G$326,SMALL(IF(MyProgram!$K$7:$K$326,ROW($A$1:$A$320)),ROW($A159)),COLUMN(G$1)),"") -> 
B164: =IFERROR(INDEX(MyProgram!$A$7:$G$326,SMALL(IF(MyProgram!$K$7:$K$326,ROW($A$1:$A$320)),ROW($A160)),COLUMN(B$1)),"") ->  | C164: =IFERROR(INDEX(MyProgram!$A$7:$G$326,SMALL(IF(MyProgram!$K$7:$K$326,ROW($A$1:$A$320)),ROW($A160)),COLUMN(C$1)),"") ->  | D164: =IFERROR(INDEX(MyProgram!$A$7:$G$326,SMALL(IF(MyProgram!$K$7:$K$326,ROW($A$1:$A$320)),ROW($A160)),COLUMN(D$1)),"") ->  | F164: =IFERROR(INDEX(MyProgram!$A$7:$G$326,SMALL(IF(MyProgram!$K$7:$K$326,ROW($A$1:$A$320)),ROW($A160)),COLUMN(F$1)),"") -> 
A165: =IFERROR(INDEX(MyProgram!$A$7:$G$326,SMALL(IF(MyProgram!$K$7:$K$326,ROW($A$1:$A$320)),ROW($A161)),COLUMN(A$1)),"") ->  | B165: =IFERROR(INDEX(MyProgram!$A$7:$G$326,SMALL(IF(MyProgram!$K$7:$K$326,ROW($A$1:$A$320)),ROW($A161)),COLUMN(B$1)),"") ->  | C165: =IFERROR(INDEX(MyProgram!$A$7:$G$326,SMALL(IF(MyProgram!$K$7:$K$326,ROW($A$1:$A$320)),ROW($A161)),COLUMN(C$1)),"") ->  | D165: =IFERROR(INDEX(MyProgram!$A$7:$G$326,SMALL(IF(MyProgram!$K$7:$K$326,ROW($A$1:$A$320)),ROW($A161)),COLUMN(D$1)),"") ->  | E165: =IFERROR(INDEX(MyProgram!$A$7:$G$326,SMALL(IF(MyProgram!$K$7:$K$326,ROW($A$1:$A$320)),ROW($A161)),COLUMN(E$1)),"") ->  | F165: =IFERROR(INDEX(MyProgram!$A$7:$G$326,SMALL(IF(MyProgram!$K$7:$K$326,ROW($A$1:$A$320)),ROW($A161)),COLUMN(F$1)),"") ->  | G165: =IFERROR(INDEX(MyProgram!$A$7:$G$326,SMALL(IF(MyProgram!$K$7:$K$326,ROW($A$1:$A$320)),ROW($A161)),COLUMN(G$1)),"") -> 
B166: =IFERROR(INDEX(MyProgram!$A$7:$G$326,SMALL(IF(MyProgram!$K$7:$K$326,ROW($A$1:$A$320)),ROW($A162)),COLUMN(B$1)),"") ->  | C166: =IFERROR(INDEX(MyProgram!$A$7:$G$326,SMALL(IF(MyProgram!$K$7:$K$326,ROW($A$1:$A$320)),ROW($A162)),COLUMN(C$1)),"") ->  | D166: =IFERROR(INDEX(MyProgram!$A$7:$G$326,SMALL(IF(MyProgram!$K$7:$K$326,ROW($A$1:$A$320)),ROW($A162)),COLUMN(D$1)),"") ->  | F166: =IFERROR(INDEX(MyProgram!$A$7:$G$326,SMALL(IF(MyProgram!$K$7:$K$326,ROW($A$1:$A$320)),ROW($A162)),COLUMN(F$1)),"") -> 
A167: =IFERROR(INDEX(MyProgram!$A$7:$G$326,SMALL(IF(MyProgram!$K$7:$K$326,ROW($A$1:$A$320)),ROW($A163)),COLUMN(A$1)),"") ->  | B167: =IFERROR(INDEX(MyProgram!$A$7:$G$326,SMALL(IF(MyProgram!$K$7:$K$326,ROW($A$1:$A$320)),ROW($A163)),COLUMN(B$1)),"") ->  | C167: =IFERROR(INDEX(MyProgram!$A$7:$G$326,SMALL(IF(MyProgram!$K$7:$K$326,ROW($A$1:$A$320)),ROW($A163)),COLUMN(C$1)),"") ->  | D167: =IFERROR(INDEX(MyProgram!$A$7:$G$326,SMALL(IF(MyProgram!$K$7:$K$326,ROW($A$1:$A$320)),ROW($A163)),COLUMN(D$1)),"") ->  | E167: =IFERROR(INDEX(MyProgram!$A$7:$G$326,SMALL(IF(MyProgram!$K$7:$K$326,ROW($A$1:$A$320)),ROW($A163)),COLUMN(E$1)),"") ->  | F167: =IFERROR(INDEX(MyProgram!$A$7:$G$326,SMALL(IF(MyProgram!$K$7:$K$326,ROW($A$1:$A$320)),ROW($A163)),COLUMN(F$1)),"") ->  | G167: =IFERROR(INDEX(MyProgram!$A$7:$G$326,SMALL(IF(MyProgram!$K$7:$K$326,ROW($A$1:$A$320)),ROW($A163)),COLUMN(G$1)),"") -> 
B168: =IFERROR(INDEX(MyProgram!$A$7:$G$326,SMALL(IF(MyProgram!$K$7:$K$326,ROW($A$1:$A$320)),ROW($A164)),COLUMN(B$1)),"") ->  | C168: =IFERROR(INDEX(MyProgram!$A$7:$G$326,SMALL(IF(MyProgram!$K$7:$K$326,ROW($A$1:$A$320)),ROW($A164)),COLUMN(C$1)),"") ->  | D168: =IFERROR(INDEX(MyProgram!$A$7:$G$326,SMALL(IF(MyProgram!$K$7:$K$326,ROW($A$1:$A$320)),ROW($A164)),COLUMN(D$1)),"") ->  | F168: =IFERROR(INDEX(MyProgram!$A$7:$G$326,SMALL(IF(MyProgram!$K$7:$K$326,ROW($A$1:$A$320)),ROW($A164)),COLUMN(F$1)),"") -> 
A169: =IFERROR(INDEX(MyProgram!$A$7:$G$326,SMALL(IF(MyProgram!$K$7:$K$326,ROW($A$1:$A$320)),ROW($A165)),COLUMN(A$1)),"") ->  | B169: =IFERROR(INDEX(MyProgram!$A$7:$G$326,SMALL(IF(MyProgram!$K$7:$K$326,ROW($A$1:$A$320)),ROW($A165)),COLUMN(B$1)),"") ->  | C169: =IFERROR(INDEX(MyProgram!$A$7:$G$326,SMALL(IF(MyProgram!$K$7:$K$326,ROW($A$1:$A$320)),ROW($A165)),COLUMN(C$1)),"") ->  | D169: =IFERROR(INDEX(MyProgram!$A$7:$G$326,SMALL(IF(MyProgram!$K$7:$K$326,ROW($A$1:$A$320)),ROW($A165)),COLUMN(D$1)),"") ->  | E169: =IFERROR(INDEX(MyProgram!$A$7:$G$326,SMALL(IF(MyProgram!$K$7:$K$326,ROW($A$1:$A$320)),ROW($A165)),COLUMN(E$1)),"") ->  | F169: =IFERROR(INDEX(MyProgram!$A$7:$G$326,SMALL(IF(MyProgram!$K$7:$K$326,ROW($A$1:$A$320)),ROW($A165)),COLUMN(F$1)),"") ->  | G169: =IFERROR(INDEX(MyProgram!$A$7:$G$326,SMALL(IF(MyProgram!$K$7:$K$326,ROW($A$1:$A$320)),ROW($A165)),COLUMN(G$1)),"") -> 
B170: =IFERROR(INDEX(MyProgram!$A$7:$G$326,SMALL(IF(MyProgram!$K$7:$K$326,ROW($A$1:$A$320)),ROW($A166)),COLUMN(B$1)),"") ->  | C170: =IFERROR(INDEX(MyProgram!$A$7:$G$326,SMALL(IF(MyProgram!$K$7:$K$326,ROW($A$1:$A$320)),ROW($A166)),COLUMN(C$1)),"") ->  | D170: =IFERROR(INDEX(MyProgram!$A$7:$G$326,SMALL(IF(MyProgram!$K$7:$K$326,ROW($A$1:$A$320)),ROW($A166)),COLUMN(D$1)),"") ->  | F170: =IFERROR(INDEX(MyProgram!$A$7:$G$326,SMALL(IF(MyProgram!$K$7:$K$326,ROW($A$1:$A$320)),ROW($A166)),COLUMN(F$1)),"") -> 
A171: =IFERROR(INDEX(MyProgram!$A$7:$G$326,SMALL(IF(MyProgram!$K$7:$K$326,ROW($A$1:$A$320)),ROW($A167)),COLUMN(A$1)),"") ->  | B171: =IFERROR(INDEX(MyProgram!$A$7:$G$326,SMALL(IF(MyProgram!$K$7:$K$326,ROW($A$1:$A$320)),ROW($A167)),COLUMN(B$1)),"") ->  | C171: =IFERROR(INDEX(MyProgram!$A$7:$G$326,SMALL(IF(MyProgram!$K$7:$K$326,ROW($A$1:$A$320)),ROW($A167)),COLUMN(C$1)),"") ->  | D171: =IFERROR(INDEX(MyProgram!$A$7:$G$326,SMALL(IF(MyProgram!$K$7:$K$326,ROW($A$1:$A$320)),ROW($A167)),COLUMN(D$1)),"") ->  | E171: =IFERROR(INDEX(MyProgram!$A$7:$G$326,SMALL(IF(MyProgram!$K$7:$K$326,ROW($A$1:$A$320)),ROW($A167)),COLUMN(E$1)),"") ->  | F171: =IFERROR(INDEX(MyProgram!$A$7:$G$326,SMALL(IF(MyProgram!$K$7:$K$326,ROW($A$1:$A$320)),ROW($A167)),COLUMN(F$1)),"") ->  | G171: =IFERROR(INDEX(MyProgram!$A$7:$G$326,SMALL(IF(MyProgram!$K$7:$K$326,ROW($A$1:$A$320)),ROW($A167)),COLUMN(G$1)),"") -> 
B172: =IFERROR(INDEX(MyProgram!$A$7:$G$326,SMALL(IF(MyProgram!$K$7:$K$326,ROW($A$1:$A$320)),ROW($A168)),COLUMN(B$1)),"") ->  | C172: =IFERROR(INDEX(MyProgram!$A$7:$G$326,SMALL(IF(MyProgram!$K$7:$K$326,ROW($A$1:$A$320)),ROW($A168)),COLUMN(C$1)),"") ->  | D172: =IFERROR(INDEX(MyProgram!$A$7:$G$326,SMALL(IF(MyProgram!$K$7:$K$326,ROW($A$1:$A$320)),ROW($A168)),COLUMN(D$1)),"") ->  | F172: =IFERROR(INDEX(MyProgram!$A$7:$G$326,SMALL(IF(MyProgram!$K$7:$K$326,ROW($A$1:$A$320)),ROW($A168)),COLUMN(F$1)),"") -> 
A173: =IFERROR(INDEX(MyProgram!$A$7:$G$326,SMALL(IF(MyProgram!$K$7:$K$326,ROW($A$1:$A$320)),ROW($A169)),COLUMN(A$1)),"") ->  | B173: =IFERROR(INDEX(MyProgram!$A$7:$G$326,SMALL(IF(MyProgram!$K$7:$K$326,ROW($A$1:$A$320)),ROW($A169)),COLUMN(B$1)),"") ->  | C173: =IFERROR(INDEX(MyProgram!$A$7:$G$326,SMALL(IF(MyProgram!$K$7:$K$326,ROW($A$1:$A$320)),ROW($A169)),COLUMN(C$1)),"") ->  | D173: =IFERROR(INDEX(MyProgram!$A$7:$G$326,SMALL(IF(MyProgram!$K$7:$K$326,ROW($A$1:$A$320)),ROW($A169)),COLUMN(D$1)),"") ->  | E173: =IFERROR(INDEX(MyProgram!$A$7:$G$326,SMALL(IF(MyProgram!$K$7:$K$326,ROW($A$1:$A$320)),ROW($A169)),COLUMN(E$1)),"") ->  | F173: =IFERROR(INDEX(MyProgram!$A$7:$G$326,SMALL(IF(MyProgram!$K$7:$K$326,ROW($A$1:$A$320)),ROW($A169)),COLUMN(F$1)),"") ->  | G173: =IFERROR(INDEX(MyProgram!$A$7:$G$326,SMALL(IF(MyProgram!$K$7:$K$326,ROW($A$1:$A$320)),ROW($A169)),COLUMN(G$1)),"") -> 
B174: =IFERROR(INDEX(MyProgram!$A$7:$G$326,SMALL(IF(MyProgram!$K$7:$K$326,ROW($A$1:$A$320)),ROW($A170)),COLUMN(B$1)),"") ->  | C174: =IFERROR(INDEX(MyProgram!$A$7:$G$326,SMALL(IF(MyProgram!$K$7:$K$326,ROW($A$1:$A$320)),ROW($A170)),COLUMN(C$1)),"") ->  | D174: =IFERROR(INDEX(MyProgram!$A$7:$G$326,SMALL(IF(MyProgram!$K$7:$K$326,ROW($A$1:$A$320)),ROW($A170)),COLUMN(D$1)),"") ->  | F174: =IFERROR(INDEX(MyProgram!$A$7:$G$326,SMALL(IF(MyProgram!$K$7:$K$326,ROW($A$1:$A$320)),ROW($A170)),COLUMN(F$1)),"") -> 
A175: =IFERROR(INDEX(MyProgram!$A$7:$G$326,SMALL(IF(MyProgram!$K$7:$K$326,ROW($A$1:$A$320)),ROW($A171)),COLUMN(A$1)),"") ->  | B175: =IFERROR(INDEX(MyProgram!$A$7:$G$326,SMALL(IF(MyProgram!$K$7:$K$326,ROW($A$1:$A$320)),ROW($A171)),COLUMN(B$1)),"") ->  | C175: =IFERROR(INDEX(MyProgram!$A$7:$G$326,SMALL(IF(MyProgram!$K$7:$K$326,ROW($A$1:$A$320)),ROW($A171)),COLUMN(C$1)),"") ->  | D175: =IFERROR(INDEX(MyProgram!$A$7:$G$326,SMALL(IF(MyProgram!$K$7:$K$326,ROW($A$1:$A$320)),ROW($A171)),COLUMN(D$1)),"") ->  | E175: =IFERROR(INDEX(MyProgram!$A$7:$G$326,SMALL(IF(MyProgram!$K$7:$K$326,ROW($A$1:$A$320)),ROW($A171)),COLUMN(E$1)),"") ->  | F175: =IFERROR(INDEX(MyProgram!$A$7:$G$326,SMALL(IF(MyProgram!$K$7:$K$326,ROW($A$1:$A$320)),ROW($A171)),COLUMN(F$1)),"") ->  | G175: =IFERROR(INDEX(MyProgram!$A$7:$G$326,SMALL(IF(MyProgram!$K$7:$K$326,ROW($A$1:$A$320)),ROW($A171)),COLUMN(G$1)),"") -> 
B176: =IFERROR(INDEX(MyProgram!$A$7:$G$326,SMALL(IF(MyProgram!$K$7:$K$326,ROW($A$1:$A$320)),ROW($A172)),COLUMN(B$1)),"") ->  | C176: =IFERROR(INDEX(MyProgram!$A$7:$G$326,SMALL(IF(MyProgram!$K$7:$K$326,ROW($A$1:$A$320)),ROW($A172)),COLUMN(C$1)),"") ->  | D176: =IFERROR(INDEX(MyProgram!$A$7:$G$326,SMALL(IF(MyProgram!$K$7:$K$326,ROW($A$1:$A$320)),ROW($A172)),COLUMN(D$1)),"") ->  | F176: =IFERROR(INDEX(MyProgram!$A$7:$G$326,SMALL(IF(MyProgram!$K$7:$K$326,ROW($A$1:$A$320)),ROW($A172)),COLUMN(F$1)),"") -> 
A177: =IFERROR(INDEX(MyProgram!$A$7:$G$326,SMALL(IF(MyProgram!$K$7:$K$326,ROW($A$1:$A$320)),ROW($A173)),COLUMN(A$1)),"") ->  | B177: =IFERROR(INDEX(MyProgram!$A$7:$G$326,SMALL(IF(MyProgram!$K$7:$K$326,ROW($A$1:$A$320)),ROW($A173)),COLUMN(B$1)),"") ->  | C177: =IFERROR(INDEX(MyProgram!$A$7:$G$326,SMALL(IF(MyProgram!$K$7:$K$326,ROW($A$1:$A$320)),ROW($A173)),COLUMN(C$1)),"") ->  | D177: =IFERROR(INDEX(MyProgram!$A$7:$G$326,SMALL(IF(MyProgram!$K$7:$K$326,ROW($A$1:$A$320)),ROW($A173)),COLUMN(D$1)),"") ->  | E177: =IFERROR(INDEX(MyProgram!$A$7:$G$326,SMALL(IF(MyProgram!$K$7:$K$326,ROW($A$1:$A$320)),ROW($A173)),COLUMN(E$1)),"") ->  | F177: =IFERROR(INDEX(MyProgram!$A$7:$G$326,SMALL(IF(MyProgram!$K$7:$K$326,ROW($A$1:$A$320)),ROW($A173)),COLUMN(F$1)),"") ->  | G177: =IFERROR(INDEX(MyProgram!$A$7:$G$326,SMALL(IF(MyProgram!$K$7:$K$326,ROW($A$1:$A$320)),ROW($A173)),COLUMN(G$1)),"") -> 
B178: =IFERROR(INDEX(MyProgram!$A$7:$G$326,SMALL(IF(MyProgram!$K$7:$K$326,ROW($A$1:$A$320)),ROW($A174)),COLUMN(B$1)),"") ->  | C178: =IFERROR(INDEX(MyProgram!$A$7:$G$326,SMALL(IF(MyProgram!$K$7:$K$326,ROW($A$1:$A$320)),ROW($A174)),COLUMN(C$1)),"") ->  | D178: =IFERROR(INDEX(MyProgram!$A$7:$G$326,SMALL(IF(MyProgram!$K$7:$K$326,ROW($A$1:$A$320)),ROW($A174)),COLUMN(D$1)),"") ->  | F178: =IFERROR(INDEX(MyProgram!$A$7:$G$326,SMALL(IF(MyProgram!$K$7:$K$326,ROW($A$1:$A$320)),ROW($A174)),COLUMN(F$1)),"") -> 
A179: =IFERROR(INDEX(MyProgram!$A$7:$G$326,SMALL(IF(MyProgram!$K$7:$K$326,ROW($A$1:$A$320)),ROW($A175)),COLUMN(A$1)),"") ->  | B179: =IFERROR(INDEX(MyProgram!$A$7:$G$326,SMALL(IF(MyProgram!$K$7:$K$326,ROW($A$1:$A$320)),ROW($A175)),COLUMN(B$1)),"") ->  | C179: =IFERROR(INDEX(MyProgram!$A$7:$G$326,SMALL(IF(MyProgram!$K$7:$K$326,ROW($A$1:$A$320)),ROW($A175)),COLUMN(C$1)),"") ->  | D179: =IFERROR(INDEX(MyProgram!$A$7:$G$326,SMALL(IF(MyProgram!$K$7:$K$326,ROW($A$1:$A$320)),ROW($A175)),COLUMN(D$1)),"") ->  | E179: =IFERROR(INDEX(MyProgram!$A$7:$G$326,SMALL(IF(MyProgram!$K$7:$K$326,ROW($A$1:$A$320)),ROW($A175)),COLUMN(E$1)),"") ->  | F179: =IFERROR(INDEX(MyProgram!$A$7:$G$326,SMALL(IF(MyProgram!$K$7:$K$326,ROW($A$1:$A$320)),ROW($A175)),COLUMN(F$1)),"") ->  | G179: =IFERROR(INDEX(MyProgram!$A$7:$G$326,SMALL(IF(MyProgram!$K$7:$K$326,ROW($A$1:$A$320)),ROW($A175)),COLUMN(G$1)),"") -> 
B180: =IFERROR(INDEX(MyProgram!$A$7:$G$326,SMALL(IF(MyProgram!$K$7:$K$326,ROW($A$1:$A$320)),ROW($A176)),COLUMN(B$1)),"") ->  | C180: =IFERROR(INDEX(MyProgram!$A$7:$G$326,SMALL(IF(MyProgram!$K$7:$K$326,ROW($A$1:$A$320)),ROW($A176)),COLUMN(C$1)),"") ->  | D180: =IFERROR(INDEX(MyProgram!$A$7:$G$326,SMALL(IF(MyProgram!$K$7:$K$326,ROW($A$1:$A$320)),ROW($A176)),COLUMN(D$1)),"") ->  | F180: =IFERROR(INDEX(MyProgram!$A$7:$G$326,SMALL(IF(MyProgram!$K$7:$K$326,ROW($A$1:$A$320)),ROW($A176)),COLUMN(F$1)),"") -> 
A181: =IFERROR(INDEX(MyProgram!$A$7:$G$326,SMALL(IF(MyProgram!$K$7:$K$326,ROW($A$1:$A$320)),ROW($A177)),COLUMN(A$1)),"") ->  | B181: =IFERROR(INDEX(MyProgram!$A$7:$G$326,SMALL(IF(MyProgram!$K$7:$K$326,ROW($A$1:$A$320)),ROW($A177)),COLUMN(B$1)),"") ->  | C181: =IFERROR(INDEX(MyProgram!$A$7:$G$326,SMALL(IF(MyProgram!$K$7:$K$326,ROW($A$1:$A$320)),ROW($A177)),COLUMN(C$1)),"") ->  | D181: =IFERROR(INDEX(MyProgram!$A$7:$G$326,SMALL(IF(MyProgram!$K$7:$K$326,ROW($A$1:$A$320)),ROW($A177)),COLUMN(D$1)),"") ->  | E181: =IFERROR(INDEX(MyProgram!$A$7:$G$326,SMALL(IF(MyProgram!$K$7:$K$326,ROW($A$1:$A$320)),ROW($A177)),COLUMN(E$1)),"") ->  | F181: =IFERROR(INDEX(MyProgram!$A$7:$G$326,SMALL(IF(MyProgram!$K$7:$K$326,ROW($A$1:$A$320)),ROW($A177)),COLUMN(F$1)),"") ->  | G181: =IFERROR(INDEX(MyProgram!$A$7:$G$326,SMALL(IF(MyProgram!$K$7:$K$326,ROW($A$1:$A$320)),ROW($A177)),COLUMN(G$1)),"") -> 
B182: =IFERROR(INDEX(MyProgram!$A$7:$G$326,SMALL(IF(MyProgram!$K$7:$K$326,ROW($A$1:$A$320)),ROW($A178)),COLUMN(B$1)),"") ->  | C182: =IFERROR(INDEX(MyProgram!$A$7:$G$326,SMALL(IF(MyProgram!$K$7:$K$326,ROW($A$1:$A$320)),ROW($A178)),COLUMN(C$1)),"") ->  | D182: =IFERROR(INDEX(MyProgram!$A$7:$G$326,SMALL(IF(MyProgram!$K$7:$K$326,ROW($A$1:$A$320)),ROW($A178)),COLUMN(D$1)),"") ->  | F182: =IFERROR(INDEX(MyProgram!$A$7:$G$326,SMALL(IF(MyProgram!$K$7:$K$326,ROW($A$1:$A$320)),ROW($A178)),COLUMN(F$1)),"") -> 
A183: =IFERROR(INDEX(MyProgram!$A$7:$G$326,SMALL(IF(MyProgram!$K$7:$K$326,ROW($A$1:$A$320)),ROW($A179)),COLUMN(A$1)),"") ->  | B183: =IFERROR(INDEX(MyProgram!$A$7:$G$326,SMALL(IF(MyProgram!$K$7:$K$326,ROW($A$1:$A$320)),ROW($A179)),COLUMN(B$1)),"") ->  | C183: =IFERROR(INDEX(MyProgram!$A$7:$G$326,SMALL(IF(MyProgram!$K$7:$K$326,ROW($A$1:$A$320)),ROW($A179)),COLUMN(C$1)),"") ->  | D183: =IFERROR(INDEX(MyProgram!$A$7:$G$326,SMALL(IF(MyProgram!$K$7:$K$326,ROW($A$1:$A$320)),ROW($A179)),COLUMN(D$1)),"") ->  | E183: =IFERROR(INDEX(MyProgram!$A$7:$G$326,SMALL(IF(MyProgram!$K$7:$K$326,ROW($A$1:$A$320)),ROW($A179)),COLUMN(E$1)),"") ->  | F183: =IFERROR(INDEX(MyProgram!$A$7:$G$326,SMALL(IF(MyProgram!$K$7:$K$326,ROW($A$1:$A$320)),ROW($A179)),COLUMN(F$1)),"") ->  | G183: =IFERROR(INDEX(MyProgram!$A$7:$G$326,SMALL(IF(MyProgram!$K$7:$K$326,ROW($A$1:$A$320)),ROW($A179)),COLUMN(G$1)),"") -> 
B184: =IFERROR(INDEX(MyProgram!$A$7:$G$326,SMALL(IF(MyProgram!$K$7:$K$326,ROW($A$1:$A$320)),ROW($A180)),COLUMN(B$1)),"") ->  | C184: =IFERROR(INDEX(MyProgram!$A$7:$G$326,SMALL(IF(MyProgram!$K$7:$K$326,ROW($A$1:$A$320)),ROW($A180)),COLUMN(C$1)),"") ->  | D184: =IFERROR(INDEX(MyProgram!$A$7:$G$326,SMALL(IF(MyProgram!$K$7:$K$326,ROW($A$1:$A$320)),ROW($A180)),COLUMN(D$1)),"") ->  | F184: =IFERROR(INDEX(MyProgram!$A$7:$G$326,SMALL(IF(MyProgram!$K$7:$K$326,ROW($A$1:$A$320)),ROW($A180)),COLUMN(F$1)),"") -> 
A185: =IFERROR(INDEX(MyProgram!$A$7:$G$326,SMALL(IF(MyProgram!$K$7:$K$326,ROW($A$1:$A$320)),ROW($A181)),COLUMN(A$1)),"") ->  | B185: =IFERROR(INDEX(MyProgram!$A$7:$G$326,SMALL(IF(MyProgram!$K$7:$K$326,ROW($A$1:$A$320)),ROW($A181)),COLUMN(B$1)),"") ->  | C185: =IFERROR(INDEX(MyProgram!$A$7:$G$326,SMALL(IF(MyProgram!$K$7:$K$326,ROW($A$1:$A$320)),ROW($A181)),COLUMN(C$1)),"") ->  | D185: =IFERROR(INDEX(MyProgram!$A$7:$G$326,SMALL(IF(MyProgram!$K$7:$K$326,ROW($A$1:$A$320)),ROW($A181)),COLUMN(D$1)),"") ->  | E185: =IFERROR(INDEX(MyProgram!$A$7:$G$326,SMALL(IF(MyProgram!$K$7:$K$326,ROW($A$1:$A$320)),ROW($A181)),COLUMN(E$1)),"") ->  | F185: =IFERROR(INDEX(MyProgram!$A$7:$G$326,SMALL(IF(MyProgram!$K$7:$K$326,ROW($A$1:$A$320)),ROW($A181)),COLUMN(F$1)),"") ->  | G185: =IFERROR(INDEX(MyProgram!$A$7:$G$326,SMALL(IF(MyProgram!$K$7:$K$326,ROW($A$1:$A$320)),ROW($A181)),COLUMN(G$1)),"") -> 
B186: =IFERROR(INDEX(MyProgram!$A$7:$G$326,SMALL(IF(MyProgram!$K$7:$K$326,ROW($A$1:$A$320)),ROW($A182)),COLUMN(B$1)),"") ->  | C186: =IFERROR(INDEX(MyProgram!$A$7:$G$326,SMALL(IF(MyProgram!$K$7:$K$326,ROW($A$1:$A$320)),ROW($A182)),COLUMN(C$1)),"") ->  | D186: =IFERROR(INDEX(MyProgram!$A$7:$G$326,SMALL(IF(MyProgram!$K$7:$K$326,ROW($A$1:$A$320)),ROW($A182)),COLUMN(D$1)),"") ->  | F186: =IFERROR(INDEX(MyProgram!$A$7:$G$326,SMALL(IF(MyProgram!$K$7:$K$326,ROW($A$1:$A$320)),ROW($A182)),COLUMN(F$1)),"") -> 
A187: =IFERROR(INDEX(MyProgram!$A$7:$G$326,SMALL(IF(MyProgram!$K$7:$K$326,ROW($A$1:$A$320)),ROW($A183)),COLUMN(A$1)),"") ->  | B187: =IFERROR(INDEX(MyProgram!$A$7:$G$326,SMALL(IF(MyProgram!$K$7:$K$326,ROW($A$1:$A$320)),ROW($A183)),COLUMN(B$1)),"") ->  | C187: =IFERROR(INDEX(MyProgram!$A$7:$G$326,SMALL(IF(MyProgram!$K$7:$K$326,ROW($A$1:$A$320)),ROW($A183)),COLUMN(C$1)),"") ->  | D187: =IFERROR(INDEX(MyProgram!$A$7:$G$326,SMALL(IF(MyProgram!$K$7:$K$326,ROW($A$1:$A$320)),ROW($A183)),COLUMN(D$1)),"") ->  | E187: =IFERROR(INDEX(MyProgram!$A$7:$G$326,SMALL(IF(MyProgram!$K$7:$K$326,ROW($A$1:$A$320)),ROW($A183)),COLUMN(E$1)),"") ->  | F187: =IFERROR(INDEX(MyProgram!$A$7:$G$326,SMALL(IF(MyProgram!$K$7:$K$326,ROW($A$1:$A$320)),ROW($A183)),COLUMN(F$1)),"") ->  | G187: =IFERROR(INDEX(MyProgram!$A$7:$G$326,SMALL(IF(MyProgram!$K$7:$K$326,ROW($A$1:$A$320)),ROW($A183)),COLUMN(G$1)),"") -> 
B188: =IFERROR(INDEX(MyProgram!$A$7:$G$326,SMALL(IF(MyProgram!$K$7:$K$326,ROW($A$1:$A$320)),ROW($A184)),COLUMN(B$1)),"") ->  | C188: =IFERROR(INDEX(MyProgram!$A$7:$G$326,SMALL(IF(MyProgram!$K$7:$K$326,ROW($A$1:$A$320)),ROW($A184)),COLUMN(C$1)),"") ->  | D188: =IFERROR(INDEX(MyProgram!$A$7:$G$326,SMALL(IF(MyProgram!$K$7:$K$326,ROW($A$1:$A$320)),ROW($A184)),COLUMN(D$1)),"") ->  | F188: =IFERROR(INDEX(MyProgram!$A$7:$G$326,SMALL(IF(MyProgram!$K$7:$K$326,ROW($A$1:$A$320)),ROW($A184)),COLUMN(F$1)),"") -> 
A189: =IFERROR(INDEX(MyProgram!$A$7:$G$326,SMALL(IF(MyProgram!$K$7:$K$326,ROW($A$1:$A$320)),ROW($A185)),COLUMN(A$1)),"") ->  | B189: =IFERROR(INDEX(MyProgram!$A$7:$G$326,SMALL(IF(MyProgram!$K$7:$K$326,ROW($A$1:$A$320)),ROW($A185)),COLUMN(B$1)),"") ->  | C189: =IFERROR(INDEX(MyProgram!$A$7:$G$326,SMALL(IF(MyProgram!$K$7:$K$326,ROW($A$1:$A$320)),ROW($A185)),COLUMN(C$1)),"") ->  | D189: =IFERROR(INDEX(MyProgram!$A$7:$G$326,SMALL(IF(MyProgram!$K$7:$K$326,ROW($A$1:$A$320)),ROW($A185)),COLUMN(D$1)),"") ->  | E189: =IFERROR(INDEX(MyProgram!$A$7:$G$326,SMALL(IF(MyProgram!$K$7:$K$326,ROW($A$1:$A$320)),ROW($A185)),COLUMN(E$1)),"") ->  | F189: =IFERROR(INDEX(MyProgram!$A$7:$G$326,SMALL(IF(MyProgram!$K$7:$K$326,ROW($A$1:$A$320)),ROW($A185)),COLUMN(F$1)),"") ->  | G189: =IFERROR(INDEX(MyProgram!$A$7:$G$326,SMALL(IF(MyProgram!$K$7:$K$326,ROW($A$1:$A$320)),ROW($A185)),COLUMN(G$1)),"") -> 
B190: =IFERROR(INDEX(MyProgram!$A$7:$G$326,SMALL(IF(MyProgram!$K$7:$K$326,ROW($A$1:$A$320)),ROW($A186)),COLUMN(B$1)),"") ->  | C190: =IFERROR(INDEX(MyProgram!$A$7:$G$326,SMALL(IF(MyProgram!$K$7:$K$326,ROW($A$1:$A$320)),ROW($A186)),COLUMN(C$1)),"") ->  | D190: =IFERROR(INDEX(MyProgram!$A$7:$G$326,SMALL(IF(MyProgram!$K$7:$K$326,ROW($A$1:$A$320)),ROW($A186)),COLUMN(D$1)),"") ->  | F190: =IFERROR(INDEX(MyProgram!$A$7:$G$326,SMALL(IF(MyProgram!$K$7:$K$326,ROW($A$1:$A$320)),ROW($A186)),COLUMN(F$1)),"") -> 
A191: =IFERROR(INDEX(MyProgram!$A$7:$G$326,SMALL(IF(MyProgram!$K$7:$K$326,ROW($A$1:$A$320)),ROW($A187)),COLUMN(A$1)),"") ->  | B191: =IFERROR(INDEX(MyProgram!$A$7:$G$326,SMALL(IF(MyProgram!$K$7:$K$326,ROW($A$1:$A$320)),ROW($A187)),COLUMN(B$1)),"") ->  | C191: =IFERROR(INDEX(MyProgram!$A$7:$G$326,SMALL(IF(MyProgram!$K$7:$K$326,ROW($A$1:$A$320)),ROW($A187)),COLUMN(C$1)),"") ->  | D191: =IFERROR(INDEX(MyProgram!$A$7:$G$326,SMALL(IF(MyProgram!$K$7:$K$326,ROW($A$1:$A$320)),ROW($A187)),COLUMN(D$1)),"") ->  | E191: =IFERROR(INDEX(MyProgram!$A$7:$G$326,SMALL(IF(MyProgram!$K$7:$K$326,ROW($A$1:$A$320)),ROW($A187)),COLUMN(E$1)),"") ->  | F191: =IFERROR(INDEX(MyProgram!$A$7:$G$326,SMALL(IF(MyProgram!$K$7:$K$326,ROW($A$1:$A$320)),ROW($A187)),COLUMN(F$1)),"") ->  | G191: =IFERROR(INDEX(MyProgram!$A$7:$G$326,SMALL(IF(MyProgram!$K$7:$K$326,ROW($A$1:$A$320)),ROW($A187)),COLUMN(G$1)),"") -> 
B192: =IFERROR(INDEX(MyProgram!$A$7:$G$326,SMALL(IF(MyProgram!$K$7:$K$326,ROW($A$1:$A$320)),ROW($A188)),COLUMN(B$1)),"") ->  | C192: =IFERROR(INDEX(MyProgram!$A$7:$G$326,SMALL(IF(MyProgram!$K$7:$K$326,ROW($A$1:$A$320)),ROW($A188)),COLUMN(C$1)),"") ->  | D192: =IFERROR(INDEX(MyProgram!$A$7:$G$326,SMALL(IF(MyProgram!$K$7:$K$326,ROW($A$1:$A$320)),ROW($A188)),COLUMN(D$1)),"") ->  | F192: =IFERROR(INDEX(MyProgram!$A$7:$G$326,SMALL(IF(MyProgram!$K$7:$K$326,ROW($A$1:$A$320)),ROW($A188)),COLUMN(F$1)),"") -> 
A193: =IFERROR(INDEX(MyProgram!$A$7:$G$326,SMALL(IF(MyProgram!$K$7:$K$326,ROW($A$1:$A$320)),ROW($A189)),COLUMN(A$1)),"") ->  | B193: =IFERROR(INDEX(MyProgram!$A$7:$G$326,SMALL(IF(MyProgram!$K$7:$K$326,ROW($A$1:$A$320)),ROW($A189)),COLUMN(B$1)),"") ->  | C193: =IFERROR(INDEX(MyProgram!$A$7:$G$326,SMALL(IF(MyProgram!$K$7:$K$326,ROW($A$1:$A$320)),ROW($A189)),COLUMN(C$1)),"") ->  | D193: =IFERROR(INDEX(MyProgram!$A$7:$G$326,SMALL(IF(MyProgram!$K$7:$K$326,ROW($A$1:$A$320)),ROW($A189)),COLUMN(D$1)),"") ->  | E193: =IFERROR(INDEX(MyProgram!$A$7:$G$326,SMALL(IF(MyProgram!$K$7:$K$326,ROW($A$1:$A$320)),ROW($A189)),COLUMN(E$1)),"") ->  | F193: =IFERROR(INDEX(MyProgram!$A$7:$G$326,SMALL(IF(MyProgram!$K$7:$K$326,ROW($A$1:$A$320)),ROW($A189)),COLUMN(F$1)),"") ->  | G193: =IFERROR(INDEX(MyProgram!$A$7:$G$326,SMALL(IF(MyProgram!$K$7:$K$326,ROW($A$1:$A$320)),ROW($A189)),COLUMN(G$1)),"") -> 
B194: =IFERROR(INDEX(MyProgram!$A$7:$G$326,SMALL(IF(MyProgram!$K$7:$K$326,ROW($A$1:$A$320)),ROW($A190)),COLUMN(B$1)),"") ->  | C194: =IFERROR(INDEX(MyProgram!$A$7:$G$326,SMALL(IF(MyProgram!$K$7:$K$326,ROW($A$1:$A$320)),ROW($A190)),COLUMN(C$1)),"") ->  | D194: =IFERROR(INDEX(MyProgram!$A$7:$G$326,SMALL(IF(MyProgram!$K$7:$K$326,ROW($A$1:$A$320)),ROW($A190)),COLUMN(D$1)),"") ->  | F194: =IFERROR(INDEX(MyProgram!$A$7:$G$326,SMALL(IF(MyProgram!$K$7:$K$326,ROW($A$1:$A$320)),ROW($A190)),COLUMN(F$1)),"") -> 
A195: =IFERROR(INDEX(MyProgram!$A$7:$G$326,SMALL(IF(MyProgram!$K$7:$K$326,ROW($A$1:$A$320)),ROW($A191)),COLUMN(A$1)),"") ->  | B195: =IFERROR(INDEX(MyProgram!$A$7:$G$326,SMALL(IF(MyProgram!$K$7:$K$326,ROW($A$1:$A$320)),ROW($A191)),COLUMN(B$1)),"") ->  | C195: =IFERROR(INDEX(MyProgram!$A$7:$G$326,SMALL(IF(MyProgram!$K$7:$K$326,ROW($A$1:$A$320)),ROW($A191)),COLUMN(C$1)),"") ->  | D195: =IFERROR(INDEX(MyProgram!$A$7:$G$326,SMALL(IF(MyProgram!$K$7:$K$326,ROW($A$1:$A$320)),ROW($A191)),COLUMN(D$1)),"") ->  | E195: =IFERROR(INDEX(MyProgram!$A$7:$G$326,SMALL(IF(MyProgram!$K$7:$K$326,ROW($A$1:$A$320)),ROW($A191)),COLUMN(E$1)),"") ->  | F195: =IFERROR(INDEX(MyProgram!$A$7:$G$326,SMALL(IF(MyProgram!$K$7:$K$326,ROW($A$1:$A$320)),ROW($A191)),COLUMN(F$1)),"") ->  | G195: =IFERROR(INDEX(MyProgram!$A$7:$G$326,SMALL(IF(MyProgram!$K$7:$K$326,ROW($A$1:$A$320)),ROW($A191)),COLUMN(G$1)),"") -> 
B196: =IFERROR(INDEX(MyProgram!$A$7:$G$326,SMALL(IF(MyProgram!$K$7:$K$326,ROW($A$1:$A$320)),ROW($A192)),COLUMN(B$1)),"") ->  | C196: =IFERROR(INDEX(MyProgram!$A$7:$G$326,SMALL(IF(MyProgram!$K$7:$K$326,ROW($A$1:$A$320)),ROW($A192)),COLUMN(C$1)),"") ->  | D196: =IFERROR(INDEX(MyProgram!$A$7:$G$326,SMALL(IF(MyProgram!$K$7:$K$326,ROW($A$1:$A$320)),ROW($A192)),COLUMN(D$1)),"") ->  | F196: =IFERROR(INDEX(MyProgram!$A$7:$G$326,SMALL(IF(MyProgram!$K$7:$K$326,ROW($A$1:$A$320)),ROW($A192)),COLUMN(F$1)),"") -> 
A197: =IFERROR(INDEX(MyProgram!$A$7:$G$326,SMALL(IF(MyProgram!$K$7:$K$326,ROW($A$1:$A$320)),ROW($A193)),COLUMN(A$1)),"") ->  | B197: =IFERROR(INDEX(MyProgram!$A$7:$G$326,SMALL(IF(MyProgram!$K$7:$K$326,ROW($A$1:$A$320)),ROW($A193)),COLUMN(B$1)),"") ->  | C197: =IFERROR(INDEX(MyProgram!$A$7:$G$326,SMALL(IF(MyProgram!$K$7:$K$326,ROW($A$1:$A$320)),ROW($A193)),COLUMN(C$1)),"") ->  | D197: =IFERROR(INDEX(MyProgram!$A$7:$G$326,SMALL(IF(MyProgram!$K$7:$K$326,ROW($A$1:$A$320)),ROW($A193)),COLUMN(D$1)),"") ->  | E197: =IFERROR(INDEX(MyProgram!$A$7:$G$326,SMALL(IF(MyProgram!$K$7:$K$326,ROW($A$1:$A$320)),ROW($A193)),COLUMN(E$1)),"") ->  | F197: =IFERROR(INDEX(MyProgram!$A$7:$G$326,SMALL(IF(MyProgram!$K$7:$K$326,ROW($A$1:$A$320)),ROW($A193)),COLUMN(F$1)),"") ->  | G197: =IFERROR(INDEX(MyProgram!$A$7:$G$326,SMALL(IF(MyProgram!$K$7:$K$326,ROW($A$1:$A$320)),ROW($A193)),COLUMN(G$1)),"") -> 
B198: =IFERROR(INDEX(MyProgram!$A$7:$G$326,SMALL(IF(MyProgram!$K$7:$K$326,ROW($A$1:$A$320)),ROW($A194)),COLUMN(B$1)),"") ->  | C198: =IFERROR(INDEX(MyProgram!$A$7:$G$326,SMALL(IF(MyProgram!$K$7:$K$326,ROW($A$1:$A$320)),ROW($A194)),COLUMN(C$1)),"") ->  | D198: =IFERROR(INDEX(MyProgram!$A$7:$G$326,SMALL(IF(MyProgram!$K$7:$K$326,ROW($A$1:$A$320)),ROW($A194)),COLUMN(D$1)),"") ->  | F198: =IFERROR(INDEX(MyProgram!$A$7:$G$326,SMALL(IF(MyProgram!$K$7:$K$326,ROW($A$1:$A$320)),ROW($A194)),COLUMN(F$1)),"") -> 
A199: =IFERROR(INDEX(MyProgram!$A$7:$G$326,SMALL(IF(MyProgram!$K$7:$K$326,ROW($A$1:$A$320)),ROW($A195)),COLUMN(A$1)),"") ->  | B199: =IFERROR(INDEX(MyProgram!$A$7:$G$326,SMALL(IF(MyProgram!$K$7:$K$326,ROW($A$1:$A$320)),ROW($A195)),COLUMN(B$1)),"") ->  | C199: =IFERROR(INDEX(MyProgram!$A$7:$G$326,SMALL(IF(MyProgram!$K$7:$K$326,ROW($A$1:$A$320)),ROW($A195)),COLUMN(C$1)),"") ->  | D199: =IFERROR(INDEX(MyProgram!$A$7:$G$326,SMALL(IF(MyProgram!$K$7:$K$326,ROW($A$1:$A$320)),ROW($A195)),COLUMN(D$1)),"") ->  | E199: =IFERROR(INDEX(MyProgram!$A$7:$G$326,SMALL(IF(MyProgram!$K$7:$K$326,ROW($A$1:$A$320)),ROW($A195)),COLUMN(E$1)),"") ->  | F199: =IFERROR(INDEX(MyProgram!$A$7:$G$326,SMALL(IF(MyProgram!$K$7:$K$326,ROW($A$1:$A$320)),ROW($A195)),COLUMN(F$1)),"") ->  | G199: =IFERROR(INDEX(MyProgram!$A$7:$G$326,SMALL(IF(MyProgram!$K$7:$K$326,ROW($A$1:$A$320)),ROW($A195)),COLUMN(G$1)),"") -> 
B200: =IFERROR(INDEX(MyProgram!$A$7:$G$326,SMALL(IF(MyProgram!$K$7:$K$326,ROW($A$1:$A$320)),ROW($A196)),COLUMN(B$1)),"") ->  | C200: =IFERROR(INDEX(MyProgram!$A$7:$G$326,SMALL(IF(MyProgram!$K$7:$K$326,ROW($A$1:$A$320)),ROW($A196)),COLUMN(C$1)),"") ->  | D200: =IFERROR(INDEX(MyProgram!$A$7:$G$326,SMALL(IF(MyProgram!$K$7:$K$326,ROW($A$1:$A$320)),ROW($A196)),COLUMN(D$1)),"") ->  | F200: =IFERROR(INDEX(MyProgram!$A$7:$G$326,SMALL(IF(MyProgram!$K$7:$K$326,ROW($A$1:$A$320)),ROW($A196)),COLUMN(F$1)),"") -> 
A201: =IFERROR(INDEX(MyProgram!$A$7:$G$326,SMALL(IF(MyProgram!$K$7:$K$326,ROW($A$1:$A$320)),ROW($A197)),COLUMN(A$1)),"") ->  | B201: =IFERROR(INDEX(MyProgram!$A$7:$G$326,SMALL(IF(MyProgram!$K$7:$K$326,ROW($A$1:$A$320)),ROW($A197)),COLUMN(B$1)),"") ->  | C201: =IFERROR(INDEX(MyProgram!$A$7:$G$326,SMALL(IF(MyProgram!$K$7:$K$326,ROW($A$1:$A$320)),ROW($A197)),COLUMN(C$1)),"") ->  | D201: =IFERROR(INDEX(MyProgram!$A$7:$G$326,SMALL(IF(MyProgram!$K$7:$K$326,ROW($A$1:$A$320)),ROW($A197)),COLUMN(D$1)),"") ->  | E201: =IFERROR(INDEX(MyProgram!$A$7:$G$326,SMALL(IF(MyProgram!$K$7:$K$326,ROW($A$1:$A$320)),ROW($A197)),COLUMN(E$1)),"") ->  | F201: =IFERROR(INDEX(MyProgram!$A$7:$G$326,SMALL(IF(MyProgram!$K$7:$K$326,ROW($A$1:$A$320)),ROW($A197)),COLUMN(F$1)),"") ->  | G201: =IFERROR(INDEX(MyProgram!$A$7:$G$326,SMALL(IF(MyProgram!$K$7:$K$326,ROW($A$1:$A$320)),ROW($A197)),COLUMN(G$1)),"") -> 
B202: =IFERROR(INDEX(MyProgram!$A$7:$G$326,SMALL(IF(MyProgram!$K$7:$K$326,ROW($A$1:$A$320)),ROW($A198)),COLUMN(B$1)),"") ->  | C202: =IFERROR(INDEX(MyProgram!$A$7:$G$326,SMALL(IF(MyProgram!$K$7:$K$326,ROW($A$1:$A$320)),ROW($A198)),COLUMN(C$1)),"") ->  | D202: =IFERROR(INDEX(MyProgram!$A$7:$G$326,SMALL(IF(MyProgram!$K$7:$K$326,ROW($A$1:$A$320)),ROW($A198)),COLUMN(D$1)),"") ->  | F202: =IFERROR(INDEX(MyProgram!$A$7:$G$326,SMALL(IF(MyProgram!$K$7:$K$326,ROW($A$1:$A$320)),ROW($A198)),COLUMN(F$1)),"") -> 
... 124 more rows

Sheet S (hidden)
B1: 1st Round | C1: 2nd Round
B2: =G2+H2/24 -> 2020-11-25T09:00:00 | D2: 00:30:00 | E2: 00:30:00 | G2: 2020-11-25 | H2: =MyProgram!J2 -> 9 | I2: 14
B3: =B2+D2 -> 2020-11-25T09:30:00 | C3: =B2+13/24 -> 2020-11-25T22:00:00 | D3: 01:00:00 | E3: 01:00:00 | I3: 13
B4: 2020-11-25T10:30:00 | C4: =C3+E3 -> 2020-11-25T23:00:00 | D4: 00:30:00 | E4: 00:30:00 | I4: 12
B5: 2020-11-25T11:00:00 | C5: 2020-11-25T23:30:00 | D5: 00:30:00 | E5: 00:30:00 | I5: 11
B6: 2020-11-25T11:30:00 | C6: 2020-11-26 | D6: 02:30:00 | E6: 00:30:00 | I6: 10
B7: 2020-11-25T14:00:00 | C7: 2020-11-26T00:30:00 | D7: 00:30:00 | E7: 00:30:00 | I7: 9
B8: 2020-11-25T14:30:00 | C8: 2020-11-26T01:00:00 | D8: 00:30:00 | E8: 00:30:00 | I8: 8
B9: 2020-11-25T15:00:00 | C9: 2020-11-26T01:30:00 | D9: 01:30:00 | E9: 01:30:00 | I9: 7
B10: 2020-11-25T16:30:00 | C10: 2020-11-26T03:00:00 | I10: 6
B11: 1st Round | C11: 2nd Round | I11: 5
C12: =C3+1 -> 2020-11-26T22:00:00 | E12: 01:00:00 | I12: 4
B13: =B4+1 -> 2020-11-26T10:30:00 | C13: =C12+E12 -> 2020-11-26T23:00:00 | D13: 00:30:00 | E13: 00:30:00 | I13: 3
B14: =B13+D13 -> 2020-11-26T11:00:00 | C14: 2020-11-26T23:30:00 | D14: 00:30:00 | E14: 00:30:00 | I14: 2
B15: 2020-11-26T11:30:00 | C15: 2020-11-27 | D15: 02:30:00 | E15: 00:30:00 | I15: 1
B16: 2020-11-26T14:00:00 | C16: 2020-11-27T00:30:00 | D16: 00:30:00 | E16: 00:30:00 | I16: 0
B17: 2020-11-26T14:30:00 | C17: 2020-11-27T01:00:00 | D17: 00:30:00 | E17: 00:30:00 | I17: -1
B18: 2020-11-26T15:00:00 | C18: 2020-11-27T01:30:00 | D18: 01:30:00 | E18: 01:30:00 | I18: -2
B19: 2020-11-26T16:30:00 | D19: 00:10:00 | E19: 00:10:00 | I19: -3
B20: 2020-11-26T16:40:00 | D20: 01:00:00 | I20: -4
B21: 2020-11-26T17:40:00 | I21: -5
B22: 1st Round | C22: 2nd Round | I22: -6
B23: =B3+2 -> 2020-11-27T09:30:00 | C23: =C3+2 -> 2020-11-27T22:00:00 | D23: 01:00:00 | E23: 01:00:00 | I23: -7
B24: =B23+D23 -> 2020-11-27T10:30:00 | C24: 2020-11-27T23:00:00 | D24: 00:30:00 | E24: 00:30:00 | I24: -8
B25: 2020-11-27T11:00:00 | C25: 2020-11-27T23:30:00 | D25: 00:30:00 | E25: 00:30:00 | I25: -9
B26: 2020-11-27T11:30:00 | C26: 2020-11-28 | D26: 02:30:00 | E26: 00:30:00 | I26: -10
B27: 2020-11-27T14:00:00 | C27: 2020-11-28T00:30:00 | D27: 00:30:00 | E27: 00:30:00 | I27: -11
B28: 2020-11-27T14:30:00 | C28: 2020-11-28T01:00:00 | D28: 00:30:00 | E28: 00:30:00 | I28: -12
B29: 2020-11-27T15:00:00 | C29: 2020-11-28T01:30:00 | D29: 01:30:00 | E29: 01:30:00
B30: =B29+D29 -> 2020-11-27T16:30:00 | D30: 00:30:00
B31: =B30+D30 -> 2020-11-27T17:00:00
B32: 1st Round
B33: =B2+3+1/24 -> 2020-11-28T10:00:00
B34: =B2+3+8/24 -> 2020-11-28T17:00:00
